Invoice ID,Supplier Name,Paid Date,Subjective Code,Subjective Name,Service Area,Cost Centre Name,Invoiced
2611141,24/7 MINIBUSES,12/11/2012,33201,Transport Hire,Environmental Services,SNT Adult Servs,"2,808.00"
2611143,3D PRIVATE HIRE#CARS,12/11/2012,33201,Transport Hire,Environmental Services,SNT Adult Servs,"5,592.60"
2618487,A E YATES LTD,22/11/2012,Z1051,Work in Progress Additions,Environmental Services,Environmental Services Balance sheet,"106,139.67"
2611158,A E YATES LTD,12/11/2012,Z1051,Work in Progress Additions,Highways,Stores,"8,714.88"
2623832,A E YATES LTD,04/12/2012,Z1051,Work in Progress Additions,Highways,Stores,529.84
2613890,A P S (SPECIALIST CONTRACTORS) LTD,29/11/2012,20100,Day To Day Maintenance,Property Services,Town Hall,540.00
2610740,A P Y PROPERTY MAINTENANCE,12/11/2012,Z1051,Work in Progress Additions,Housing GRF,Capital  General Fund,"5,390.00"
2626340,A P Y PROPERTY MAINTENANCE,04/12/2012,Z1051,Work in Progress Additions,Housing GRF,Capital  General Fund,"3,471.00"
2615449,A W BRINDLE AND CO LTD,29/11/2012,20100,Day To Day Maintenance,Environmental Services,Assets,"1,363.00"
2619597,A1 STEAM CLEANING & RECOVERY,26/11/2012,52200,Contracted Services,Environmental Services,Transport Support Service,690.00
2608268,ABACUS MINIBUSES LTD,08/11/2012,34402,Clients  Taxi Fares,Environmental Services,SNT Childrens Servs,"1,602.00"
2611145,ABACUS MINIBUSES LTD,12/11/2012,34402,Clients  Taxi Fares,Environmental Services,SNT Childrens Servs,"1,602.00"
2605923,ABAFIELDS RESIDENTIAL HOME,06/11/2012,54301,Residential Provision,Adult Services,LD Purchaser Residential Care,"2,914.12"
2605923,ABAFIELDS RESIDENTIAL HOME,06/11/2012,54301,Residential Provision,Adult Services,MH Residential External Provision,"1,522.96"
2605923,ABAFIELDS RESIDENTIAL HOME,06/11/2012,54301,Residential Provision,Adult Services,OA  External Provision Residential,"27,266.79"
2605922,ABAFIELDS RESIDENTIAL HOME,06/11/2012,54301,Residential Provision,Adult Services,OA  External Provision Residential,844.63
2625697,ABAFIELDS RESIDENTIAL HOME,05/12/2012,54301,Residential Provision,Adult Services,LD Purchaser Residential Care,"2,914.12"
2625697,ABAFIELDS RESIDENTIAL HOME,05/12/2012,54301,Residential Provision,Adult Services,MH Residential External Provision,"1,522.96"
2625697,ABAFIELDS RESIDENTIAL HOME,05/12/2012,54301,Residential Provision,Adult Services,OA  External Provision Residential,"26,112.06"
2625696,ABAFIELDS RESIDENTIAL HOME,05/12/2012,54301,Residential Provision,Adult Services,OA  External Provision Residential,765.25
2605963,ABBEYWOOD TOTTINGTON LTD,06/11/2012,54301,Residential Provision,Adult Services,OA  External Provision Residential,"1,574.44"
2625733,ABBEYWOOD TOTTINGTON LTD,05/12/2012,54301,Residential Provision,Adult Services,OA  External Provision Residential,"1,574.44"
2610155,ACCESS INTELLIGENCE MEDIA & COMMUNICATIONS LTD,12/11/2012,45431,Computer Software Licences,Central Services,Communication & Marketing Agency,"4,050.00"
2612926,ACCESS TO CARE LTD,15/11/2012,52000,Vol Assoc Grants  General,Children's Services,Res Serv Agency Placements,850.00
2612944,ACCESS TO CARE LTD,15/11/2012,52000,Vol Assoc Grants  General,Children's Services,Res Serv Agency Placements,850.00
2612945,ACCESS TO CARE LTD,15/11/2012,52000,Vol Assoc Grants  General,Children's Services,Res Serv Agency Placements,850.00
2612947,ACCESS TO CARE LTD,15/11/2012,52000,Vol Assoc Grants  General,Children's Services,Res Serv Agency Placements,850.00
2622357,ACCESS TO CARE LTD,29/11/2012,52000,Vol Assoc Grants  General,Children's Services,Res Serv Agency Placements,850.00
2622304,ACCESS TO CARE LTD,29/11/2012,52000,Vol Assoc Grants  General,Children's Services,Res Serv Agency Placements,850.00
2622306,ACCESS TO CARE LTD,29/11/2012,52000,Vol Assoc Grants  General,Children's Services,Res Serv Agency Placements,850.00
2622308,ACCESS TO CARE LTD,29/11/2012,52000,Vol Assoc Grants  General,Children's Services,Res Serv Agency Placements,850.00
2622311,ACCESS TO CARE LTD,29/11/2012,52000,Vol Assoc Grants  General,Children's Services,Res Serv Agency Placements,850.00
2622313,ACCESS TO CARE LTD,29/11/2012,52000,Vol Assoc Grants  General,Children's Services,Res Serv Agency Placements,850.00
2622314,ACCESS TO CARE LTD,29/11/2012,52000,Vol Assoc Grants  General,Children's Services,Res Serv Agency Placements,850.00
2622317,ACCESS TO CARE LTD,29/11/2012,52000,Vol Assoc Grants  General,Children's Services,Res Serv Agency Placements,850.00
2622319,ACCESS TO CARE LTD,29/11/2012,52000,Vol Assoc Grants  General,Children's Services,Res Serv Agency Placements,850.00
2622321,ACCESS TO CARE LTD,29/11/2012,52000,Vol Assoc Grants  General,Children's Services,Res Serv Agency Placements,850.00
2622322,ACCESS TO CARE LTD,29/11/2012,52000,Vol Assoc Grants  General,Children's Services,Res Serv Agency Placements,850.00
2622324,ACCESS TO CARE LTD,29/11/2012,52000,Vol Assoc Grants  General,Children's Services,Res Serv Agency Placements,850.00
2622327,ACCESS TO CARE LTD,29/11/2012,52000,Vol Assoc Grants  General,Children's Services,Res Serv Agency Placements,850.00
2622329,ACCESS TO CARE LTD,29/11/2012,52000,Vol Assoc Grants  General,Children's Services,Res Serv Agency Placements,850.00
2622332,ACCESS TO CARE LTD,29/11/2012,52000,Vol Assoc Grants  General,Children's Services,Res Serv Agency Placements,850.00
2622334,ACCESS TO CARE LTD,29/11/2012,52000,Vol Assoc Grants  General,Children's Services,Res Serv Agency Placements,850.00
2612857,ACCESS TO CARE LTD,15/11/2012,52000,Vol Assoc Grants  General,Children's Services,Res Serv Agency Placements,850.00
2612859,ACCESS TO CARE LTD,15/11/2012,52000,Vol Assoc Grants  General,Children's Services,Res Serv Agency Placements,850.00
2612996,ACCESS TO CARE LTD,15/11/2012,52000,Vol Assoc Grants  General,Children's Services,Res Serv Agency Placements,850.00
2612847,ACCESS TO CARE LTD,15/11/2012,52000,Vol Assoc Grants  General,Children's Services,Res Serv Agency Placements,850.00
2612995,ACCESS TO CARE LTD,15/11/2012,52000,Vol Assoc Grants  General,Children's Services,Res Serv Agency Placements,850.00
2612994,ACCESS TO CARE LTD,15/11/2012,52000,Vol Assoc Grants  General,Children's Services,Res Serv Agency Placements,850.00
2612973,ACCESS TO CARE LTD,15/11/2012,52000,Vol Assoc Grants  General,Children's Services,Res Serv Agency Placements,850.00
2612974,ACCESS TO CARE LTD,15/11/2012,52000,Vol Assoc Grants  General,Children's Services,Res Serv Agency Placements,850.00
2612871,ACCESS TO CARE LTD,15/11/2012,52000,Vol Assoc Grants  General,Children's Services,Res Serv Agency Placements,850.00
2612909,ACCESS TO CARE LTD,15/11/2012,52000,Vol Assoc Grants  General,Children's Services,Res Serv Agency Placements,850.00
2612925,ACCESS TO CARE LTD,15/11/2012,52000,Vol Assoc Grants  General,Children's Services,Res Serv Agency Placements,850.00
2611144,ACE MINIBUSES LTD,12/11/2012,33201,Transport Hire,Environmental Services,SNT Adult Servs,"2,924.00"
2609564,ACORN HOUSE FOSTERING SERVICES,12/11/2012,52000,Vol Assoc Grants  General,Children's Services,Res Serv Agency Placements,"5,584.34"
2605965,ACORNS CARE CENTRE,06/11/2012,54302,Nursing Provision,Adult Services,OA  External Provision Residential,"1,494.08"
2625735,ACORNS CARE CENTRE,05/12/2012,54302,Nursing Provision,Adult Services,OA  External Provision Residential,"1,494.08"
2606053,ACROSS THE BAY,06/11/2012,54301,Residential Provision,Adult Services,OA  External Provision Residential,"1,626.00"
2625817,ACROSS THE BAY,05/12/2012,54301,Residential Provision,Adult Services,OA  External Provision Residential,"1,626.00"
2620165,ACTION FOR CHILDREN,26/11/2012,52200,Contracted Services,Adult Services,Supporting People  Capital Financing,"7,278.54"
2620110,ADDICTION DEPENDENCY SOLUTIONS#ADS,26/11/2012,54301,Residential Provision,Adult Services,Alcohol Rehab Budget,"2,816.69"
2620109,ADDICTION DEPENDENCY SOLUTIONS#ADS,26/11/2012,54301,Residential Provision,Adult Services,Alcohol Rehab Budget,"2,112.20"
2613848,ADT FIRE & SECURITY PLC,04/12/2012,20100,Day To Day Maintenance,Finance Department,Schools Library Services,593.18
2613870,ADULT LEARNERS GROUP,15/11/2012,48509,Other Fees,Development & Regen,Adult Education,600.00
2609327,ADVANCED BUILDING (NW) LTD,29/11/2012,20100,Day To Day Maintenance,Property Services,Town Hall,540.00
2613850,ADVANCED BUILDING (NW) LTD,29/11/2012,20105,Painting & Decorating,Property Services,Albert Halls Complex,800.00
2609323,ADVANCED BUILDING (NW) LTD,29/11/2012,20100,Day To Day Maintenance,Property Services,Le Mans Crescent  Library,780.00
2606938,ADVANCED BUILDING (NW) LTD,29/11/2012,20100,Day To Day Maintenance,Environmental Services,Assets,995.00
2613855,ADVANCED BUILDING (NW) LTD,29/11/2012,20100,Day To Day Maintenance,Property Services,Alderbank EPH,"1,460.00"
2607519,ADVANCED BUILDING (NW) LTD,29/11/2012,20100,Day To Day Maintenance,Property Services,Firwood EPH,"1,200.00"
2613856,ADVANCED BUILDING (NW) LTD,10/12/2012,20100,Day To Day Maintenance,Property Services,Laburnum Lodge EPH,"2,702.00"
2628083,ADVANCED BUILDING (NW) LTD,24/12/2012,20100,Day To Day Maintenance,Property Services,Le Mans Crescent  Library,630.00
2617347,AGR BUILDING & FENCING CONTRACTORS LIMITED,22/11/2012,Z1051,Work in Progress Additions,Housing GRF,Capital  General Fund,"11,811.17"
2617948,AGR CARE SERVICES,22/11/2012,52000,Vol Assoc Grants  General,Children's Services,Res Serv Agency Placements,"11,532.00"
2617951,AGR CARE SERVICES,22/11/2012,52000,Vol Assoc Grants  General,Children's Services,Res Serv Agency Placements,"11,842.00"
2617945,AGR CARE SERVICES,22/11/2012,52000,Vol Assoc Grants  General,Children's Services,Res Serv Agency Placements,"11,842.00"
2612496,AIDAPT BATHROOMS LTD,19/11/2012,44051,Clients Aids & Adaptations,Adult Services,ICES,525.00
2613447,AIDAPT BATHROOMS LTD,22/11/2012,44051,Clients Aids & Adaptations,Adult Services,ICES,790.00
2605976,AINSWORTH NURSING HOME,06/11/2012,54301,Residential Provision,Adult Services,MH Residential External Provision,"6,297.76"
2605976,AINSWORTH NURSING HOME,06/11/2012,54302,Nursing Provision,Adult Services,MH Residential External Provision,"4,723.32"
2605976,AINSWORTH NURSING HOME,06/11/2012,54302,Nursing Provision,Adult Services,OA  External Provision Residential,"3,148.88"
2625746,AINSWORTH NURSING HOME,05/12/2012,54301,Residential Provision,Adult Services,MH Residential External Provision,"6,297.76"
2625746,AINSWORTH NURSING HOME,05/12/2012,54302,Nursing Provision,Adult Services,MH Residential External Provision,"4,723.32"
2625746,AINSWORTH NURSING HOME,05/12/2012,54302,Nursing Provision,Adult Services,OA  External Provision Residential,"3,148.88"
2611149,ALIMS MINIBUSES/ REDACTED - PERSONAL DATA,12/11/2012,33201,Transport Hire,Environmental Services,SNT Adult Servs,"3,168.00"
2614634,ALLIANCE DISPOSABLES LTD,29/11/2012,26001,Hygiene Requisite,Environmental Services,Markets  Rent Account,564.21
2612594,ALLIANCE DISPOSABLES LTD,22/11/2012,26001,Hygiene Requisite,Property Services,Operational Facilities Management,"2,554.00"
2622801,ALLIANCE DISPOSABLES LTD,04/12/2012,26000,Cleaning Materials,Environmental Services,Building Cleaning,"1,006.30"
2622797,ALLIANCE DISPOSABLES LTD,04/12/2012,26002,Other Materials,Environmental Services,Building Cleaning,815.00
2606672,ALLPAY.NET LTD,05/11/2012,48509,Other Fees,Finance Department,CSD Cashiers,601.38
2606859,ALLPAY.NET LTD,05/11/2012,48509,Other Fees,Finance Department,CSD Cashiers,"6,839.05"
2606937,ALLPAY.NET LTD,05/11/2012,48509,Other Fees,Finance Department,CSD Cashiers,"2,238.68"
2622767,ALLSTAR BUSINESS SOLUTIONS,29/11/2012,31301,Vehicle Fuel,Adult Services,ICES,554.28
2622767,ALLSTAR BUSINESS SOLUTIONS,29/11/2012,31301,Vehicle Fuel,Environmental Services,Activities and Operations,"11,907.16"
2622767,ALLSTAR BUSINESS SOLUTIONS,29/11/2012,31301,Vehicle Fuel,Environmental Services,Highway Services,"2,149.84"
2622767,ALLSTAR BUSINESS SOLUTIONS,29/11/2012,31301,Vehicle Fuel,Environmental Services,Highway Works  Unallocated Costs,"3,796.74"
2622767,ALLSTAR BUSINESS SOLUTIONS,29/11/2012,31301,Vehicle Fuel,Environmental Services,SNT Adult Servs,"4,229.97"
2622767,ALLSTAR BUSINESS SOLUTIONS,29/11/2012,31301,Vehicle Fuel,Environmental Services,SNT Childrens Servs,"1,831.19"
2622767,ALLSTAR BUSINESS SOLUTIONS,29/11/2012,31301,Vehicle Fuel,Environmental Services,Waste,"25,834.69"
2613177,ALLSTAR BUSINESS SOLUTIONS,15/11/2012,31301,Vehicle Fuel,Environmental Services,Activities and Operations,"10,281.48"
2613177,ALLSTAR BUSINESS SOLUTIONS,15/11/2012,31301,Vehicle Fuel,Environmental Services,Highway Works  Unallocated Costs,"3,678.84"
2613177,ALLSTAR BUSINESS SOLUTIONS,15/11/2012,31301,Vehicle Fuel,Environmental Services,SNT Adult Servs,"4,166.49"
2613177,ALLSTAR BUSINESS SOLUTIONS,15/11/2012,31301,Vehicle Fuel,Environmental Services,SNT Childrens Servs,"1,175.80"
2613177,ALLSTAR BUSINESS SOLUTIONS,15/11/2012,31301,Vehicle Fuel,Environmental Services,Transport Support Service,567.83
2613177,ALLSTAR BUSINESS SOLUTIONS,15/11/2012,31301,Vehicle Fuel,Environmental Services,Waste,"26,528.00"
2609875,ALSECURE GROUP LTD,22/11/2012,44401,Other Security Expenses,Housing GRF,Benjamin Court Accommodation,839.16
2613956,ALSECURE GROUP LTD,22/11/2012,44401,Other Security Expenses,Housing GRF,Benjamin Court Accommodation,839.16
2609654,ALSECURE GROUP LTD,22/11/2012,44401,Other Security Expenses,Housing GRF,Benjamin Court Accommodation,839.16
2618018,ALSECURE GROUP LTD,29/11/2012,44401,Other Security Expenses,Housing GRF,Benjamin Court Accommodation,839.16
2617376,REDACTED - PERSONAL DATA#2,22/11/2012,48502,Legal Fees,Central Corporate,Land & Property,"1,000.00"
2608777,ANGLIA DNA SERVICES LIMITED,08/11/2012,48509,Other Fees,Children's Services,Management Team,529.00
2617965,ANIMAL WARDENS,22/11/2012,52200,Contracted Services,Environmental Services,Activities and Operations,703.00
2611284,ANKH OF HARROGATE,12/11/2012,40613,Goods for Resale,Finance Department,LMA Retail,855.50
2616399,APH COMPUTERS LTD,19/11/2012,45431,Computer Software Licences,Environmental Services,Catering,"1,056.00"
2619598,APPLE VIDEO FACILITIES,26/11/2012,48203,Marketing,Central Services,Marketing  General,576.00
2622364,AQUAJOY BATHLIFTS LTD,06/12/2012,44051,Clients Aids & Adaptations,Adult Services,ICES,965.00
2608730,ARCH INITIATIVES,12/11/2012,52000,Vol Assoc Grants  General,Adult Services,Drugs Pooled Treatment Budget,"78,142.00"
2614296,ARCH INITIATIVES,29/11/2012,52200,Contracted Services,Adult Services,Drugs Pooled Treatment Budget,"1,249.00"
2608313,ARGOS BUSINESS SOLUTIONS,08/11/2012,40107,Kitchen Equipment,Housing GRF,Benjamin Court Accommodation,"2,083.30"
2611176,REDACTED - PERSONAL DATA,12/11/2012,33201,Transport Hire,Environmental Services,SNT Adult Servs,"1,360.00"
2621568,ARJOHUNTLEIGH UK,17/12/2012,25001,Fixed Equipment   Repairs,Property Services,Corporate Property Revenue Project Transfers to Other Projects,"2,438.10"
2623797,ASDA BUSINESS REWARDS,04/12/2012,45914,Commissioning Worklessness,Development & Regen,The Work Programme,500.00
2622555,ASH HIRE & SALES LTD,29/11/2012,33202,Plant Hire,Environmental Services,Depots,782.00
2610654,ASH HIRE & SALES LTD,15/11/2012,40610,Direct Materials,Environmental Services,Depots,536.50
2609880,ASH HIRE & SALES LTD,22/11/2012,20501,Engineering Work,Environmental Services,Highways Maintenance Billable Costs,616.25
2614019,ASH HIRE & SALES LTD,26/11/2012,Z6008,Expense AP Accrual,Bolton MBC Balance Sheet,Bolton MBC Balance Sheet,647.50
2611156,REDACTED - PERSONAL DATA,12/11/2012,33201,Transport Hire,Environmental Services,SNT Adult Servs,"1,681.20"
2606008,ASHLEIGH HOUSE CARE HOME,06/11/2012,54301,Residential Provision,Adult Services,OA  External Provision Residential,"1,468.00"
2625776,ASHLEIGH HOUSE CARE HOME,05/12/2012,54301,Residential Provision,Adult Services,OA  External Provision Residential,"1,468.00"
2624388,ASHTEAD PLANT HIRE CO LTD,04/12/2012,Z6008,Expense AP Accrual,Bolton MBC Balance Sheet,Bolton MBC Balance Sheet,919.21
2606024,ASHWOOD REST HOME,06/11/2012,54301,Residential Provision,Adult Services,OA  External Provision Residential,"1,624.00"
2625790,ASHWOOD REST HOME,05/12/2012,54301,Residential Provision,Adult Services,OA  External Provision Residential,"1,624.00"
2619054,ASPULL ENGINEERING CO LIMITED,06/12/2012,20101,Programmed Maint. Work,Environmental Services,Highway Management,"3,272.00"
2612501,ASSOCIATED CLEANING CONTRACTORS,15/11/2012,20100,Day To Day Maintenance,Children's Services,Technical Innovation Centre,"1,809.20"
2606378,ASSOCIATED CLEANING CONTRACTORS,05/11/2012,26101,Contract Cleaning,Adult Services,Transport,803.10
2607946,ASSURA PHARMACY,08/11/2012,52200,Contracted Services,Adult Services,Drugs Pooled Treatment Budget,628.00
2605972,ASTLEY GRANGE,06/11/2012,54302,Nursing Provision,Adult Services,OA  External Provision Residential,"3,241.36"
2625742,ASTLEY GRANGE,05/12/2012,54302,Nursing Provision,Adult Services,OA  External Provision Residential,"3,241.36"
2611150,ATLANTIC TRAVEL (GB) LTD,12/11/2012,33201,Transport Hire,Environmental Services,SNT Adult Servs,"1,575.00"
2606463,REDACTED - PERSONAL DATA,05/11/2012,34402,Clients  Taxi Fares,Environmental Services,SNT Childrens Servs,985.50
2611151,REDACTED - PERSONAL DATA,12/11/2012,33201,Transport Hire,Environmental Services,SNT Adult Servs,"1,314.00"
2628112,AUTOMATIC ALARMS LIMITED,06/12/2012,20100,Day To Day Maintenance,Property Services,Falcon View SEC,571.00
2609334,B & M DAVIES (PLANT HIRE) LTD,12/11/2012,Z6008,Expense AP Accrual,Bolton MBC Balance Sheet,Bolton MBC Balance Sheet,586.25
2613911,B & M DAVIES (PLANT HIRE) LTD,22/11/2012,33202,Plant Hire,Environmental Services,Activities and Operations,516.25
2609876,B & M DAVIES (PLANT HIRE) LTD,22/11/2012,33202,Plant Hire,Environmental Services,Activities and Operations,585.50
2617926,B & M DAVIES (PLANT HIRE) LTD,29/11/2012,33202,Plant Hire,Environmental Services,Bereavement Services,"1,406.00"
2609886,B & M DAVIES (PLANT HIRE) LTD,12/11/2012,33202,Plant Hire,Environmental Services,Bereavement Services,"1,444.00"
2622099,B & M DAVIES (PLANT HIRE) LTD,29/11/2012,33202,Plant Hire,Environmental Services,Bereavement Services,560.50
2622112,B & M DAVIES (PLANT HIRE) LTD,29/11/2012,33202,Plant Hire,Environmental Services,Bereavement Services,703.00
2616509,B & M DAVIES (PLANT HIRE) LTD,29/11/2012,Z6008,Expense AP Accrual,Bolton MBC Balance Sheet,Bolton MBC Balance Sheet,556.25
2613434,B & M DAVIES (PLANT HIRE) LTD,22/11/2012,Z6008,Expense AP Accrual,Bolton MBC Balance Sheet,Bolton MBC Balance Sheet,565.00
2616512,B & M DAVIES (PLANT HIRE) LTD,29/11/2012,Z6008,Expense AP Accrual,Bolton MBC Balance Sheet,Bolton MBC Balance Sheet,743.75
2609322,B & M DAVIES (PLANT HIRE) LTD,15/11/2012,Z6008,Expense AP Accrual,Bolton MBC Balance Sheet,Bolton MBC Balance Sheet,872.50
2609336,B & M DAVIES (PLANT HIRE) LTD,12/11/2012,Z6008,Expense AP Accrual,Bolton MBC Balance Sheet,Bolton MBC Balance Sheet,548.75
2628200,B & M DAVIES (PLANT HIRE) LTD,06/12/2012,33202,Plant Hire,Environmental Services,Bereavement Services,703.00
2628213,B & M DAVIES (PLANT HIRE) LTD,06/12/2012,33202,Plant Hire,Environmental Services,Bereavement Services,"1,406.00"
2626719,B FOLEY & SON,04/12/2012,Z1051,Work in Progress Additions,Housing GRF,Capital  General Fund,"13,210.00"
2606059,BANKFIELD,06/11/2012,54301,Residential Provision,Adult Services,OA  External Provision Residential,"1,492.84"
2625825,BANKFIELD,05/12/2012,54301,Residential Provision,Adult Services,OA  External Provision Residential,"1,492.84"
2617859,BARNARDO SERVICES LTD,29/11/2012,52200,Contracted Services,Children's Services,Admin Commissioning,"13,140.00"
2620521,BARNARDO SERVICES LTD,26/11/2012,48629,Miscellaneous Expenses,Children's Services,Contact & Direct Work,"4,112.00"
2613960,BARNARDOS,22/11/2012,52000,Vol Assoc Grants  General,Children's Services,Res Serv Agency Placements,"3,631.43"
2620168,BASE LTD#2,26/11/2012,52200,Contracted Services,Adult Services,Supporting People  Capital Financing,"16,004.70"
2609916,BCL,15/11/2012,20100,Day To Day Maintenance,Property Services,Accomm Rationalisation Strategy,"12,800.00"
2614388,BCL,26/11/2012,Z1051,Work in Progress Additions,Property Services,Property Services Balance Sheet,"1,327.30"
2606097,BEACH COURT,06/11/2012,54301,Residential Provision,Adult Services,OA  External Provision Residential,"1,759.84"
2625863,BEACH COURT,05/12/2012,54301,Residential Provision,Adult Services,OA  External Provision Residential,"1,759.84"
2606013,BEDFORD RESIDENTIAL NURSING CARE HOME,06/11/2012,54302,Nursing Provision,Adult Services,OA  External Provision Residential,"1,494.08"
2625782,BEDFORD RESIDENTIAL NURSING CARE HOME,05/12/2012,54302,Nursing Provision,Adult Services,OA  External Provision Residential,"1,494.08"
2606055,BEECHFIELD LODGE#ANCHOR TRUST,06/11/2012,54301,Residential Provision,Adult Services,OA  External Provision Residential,"1,531.44"
2625821,BEECHFIELD LODGE#ANCHOR TRUST,05/12/2012,54301,Residential Provision,Adult Services,OA  External Provision Residential,"1,531.44"
2606037,BEECHVILLE CARE HOME,06/11/2012,54301,Residential Provision,Adult Services,OA  External Provision Residential,"5,908.55"
2625802,BEECHVILLE CARE HOME,05/12/2012,54301,Residential Provision,Adult Services,OA  External Provision Residential,"6,433.12"
2606038,BEECHWOOD HOUSE,06/11/2012,54301,Residential Provision,Adult Services,OA  External Provision Residential,"1,991.08"
2625803,BEECHWOOD HOUSE,05/12/2012,54301,Residential Provision,Adult Services,OA  External Provision Residential,"1,991.08"
2606057,BELONG ATHERTON#EPH,06/11/2012,54302,Nursing Provision,Adult Services,MH Residential External Provision,"2,245.20"
2625823,BELONG ATHERTON#EPH,05/12/2012,54302,Nursing Provision,Adult Services,MH Residential External Provision,"2,245.20"
2606054,BELONG WIGAN#EPH,06/11/2012,54301,Residential Provision,Adult Services,OA  External Provision Residential,"1,492.68"
2625818,BELONG WIGAN#EPH,05/12/2012,54301,Residential Provision,Adult Services,OA  External Provision Residential,"1,492.68"
2607576,BERTRAM TRADING LTD#BERTRAM LIBRARY SERVICES,15/11/2012,40753,Book Fund Expenditure,Finance Department,Libraries Info. Services,"8,021.94"
2621975,BEST PRACTICE GROUP PLC,30/11/2012,48510,Consultancy Fees,Finance Department,IT Contract ReTender,"11,400.00"
2611112,BETHELL CONSTRUCTION LTD,12/11/2012,Z1051,Work in Progress Additions,Highways,Stores,"69,386.72"
2608095,BETHELL CONSTRUCTION LTD,08/11/2012,Z1051,Work in Progress Additions,Highways,Stores,"1,287.71"
2608121,BETHELL CONSTRUCTION LTD,08/11/2012,Z1051,Work in Progress Additions,Highways,Stores,"146,859.37"
2627811,BETHELL CONSTRUCTION LTD,06/12/2012,Z6008,Expense AP Accrual,Bolton MBC Balance Sheet,Bolton MBC Balance Sheet,785.45
2623823,BETHELL CONSTRUCTION LTD,04/12/2012,Z1051,Work in Progress Additions,Highways,Stores,"1,448.71"
2610218,BICKFORD TRUCK HIRE LTD,15/11/2012,33201,Transport Hire,Environmental Services,Transport Support Service,770.00
2613908,BICKFORD TRUCK HIRE LTD,22/11/2012,33201,Transport Hire,Environmental Services,Transport Support Service,"1,001.00"
2613966,BID GROUP LIMITED,15/11/2012,20100,Day To Day Maintenance,Environmental Services,Markets  Rent Account,541.60
2609395,BIRKDALE DESIGN LTD,08/11/2012,40150,Office Furniture Purchase,Housing GRF,Furnished Tenancies,634.40
2618623,BIRKDALE DESIGN LTD,22/11/2012,40150,Office Furniture Purchase,Housing GRF,Furnished Tenancies,728.00
2618628,BIRKDALE DESIGN LTD,22/11/2012,40150,Office Furniture Purchase,Housing GRF,Furnished Tenancies,884.00
2618629,BIRKDALE DESIGN LTD,22/11/2012,40150,Office Furniture Purchase,Housing GRF,Furnished Tenancies,859.04
2609401,BIRKDALE DESIGN LTD,08/11/2012,40150,Office Furniture Purchase,Housing GRF,Furnished Tenancies,859.04
2609411,BIRKDALE DESIGN LTD,08/11/2012,40150,Office Furniture Purchase,Housing GRF,Furnished Tenancies,686.40
2609419,BIRKDALE DESIGN LTD,08/11/2012,40150,Office Furniture Purchase,Housing GRF,Furnished Tenancies,859.04
2610129,BIRKDALE DESIGN LTD,12/11/2012,40150,Office Furniture Purchase,Housing GRF,Furnished Tenancies,859.04
2610137,BIRKDALE DESIGN LTD,12/11/2012,40150,Office Furniture Purchase,Housing GRF,Furnished Tenancies,859.04
2610141,BIRKDALE DESIGN LTD,12/11/2012,40150,Office Furniture Purchase,Housing GRF,Furnished Tenancies,774.80
2610143,BIRKDALE DESIGN LTD,12/11/2012,40150,Office Furniture Purchase,Housing GRF,Furnished Tenancies,774.80
2610145,BIRKDALE DESIGN LTD,12/11/2012,40150,Office Furniture Purchase,Housing GRF,Furnished Tenancies,774.80
2610148,BIRKDALE DESIGN LTD,12/11/2012,40150,Office Furniture Purchase,Housing GRF,Furnished Tenancies,774.80
2610156,BIRKDALE DESIGN LTD,12/11/2012,40150,Office Furniture Purchase,Housing GRF,Furnished Tenancies,859.04
2609882,BIRKDALE DESIGN LTD,08/11/2012,40150,Office Furniture Purchase,Housing GRF,Furnished Tenancies,774.80
2610186,BIRKDALE DESIGN LTD,12/11/2012,40150,Office Furniture Purchase,Housing GRF,Furnished Tenancies,774.80
2610188,BIRKDALE DESIGN LTD,12/11/2012,40150,Office Furniture Purchase,Housing GRF,Furnished Tenancies,974.48
2610207,BIRKDALE DESIGN LTD,12/11/2012,40150,Office Furniture Purchase,Housing GRF,Furnished Tenancies,630.24
2610213,BIRKDALE DESIGN LTD,12/11/2012,40150,Office Furniture Purchase,Housing GRF,Furnished Tenancies,859.04
2610216,BIRKDALE DESIGN LTD,12/11/2012,40150,Office Furniture Purchase,Housing GRF,Furnished Tenancies,859.04
2605978,BLACKROD HOUSE,06/11/2012,54301,Residential Provision,Adult Services,MH Residential External Provision,"1,522.96"
2605978,BLACKROD HOUSE,06/11/2012,54301,Residential Provision,Adult Services,OA  External Provision Residential,"18,421.51"
2605977,BLACKROD HOUSE,06/11/2012,54301,Residential Provision,Adult Services,OA  External Provision Residential,"2,665.18"
2625748,BLACKROD HOUSE,05/12/2012,54301,Residential Provision,Adult Services,MH Residential External Provision,"1,522.96"
2625748,BLACKROD HOUSE,05/12/2012,54301,Residential Provision,Adult Services,OA  External Provision Residential,"20,618.46"
2617343,BLAKELEY TONGE & PARTNER LTD,22/11/2012,Z1051,Work in Progress Additions,Property Services,Property Services Balance Sheet,"170,512.46"
2608182,BLAKELEY TONGE & PARTNER LTD,08/11/2012,Z1051,Work in Progress Additions,Property Services,Corporate Property Capital Project Transfers to Other Projects,"35,919.37"
2618408,BLAKELEY TONGE & PARTNER LTD,22/11/2012,Z1051,Work in Progress Additions,Housing GRF,Capital  General Fund,"20,767.44"
2613046,BNP PARIBAS LEASING SOLUTIONS LIMITED,15/11/2012,40143,Office Equipment Leased Rental,Central Services,Printing Services,"6,248.53"
2616461,BOLTON & DISTRICT CITIZENS ADVICE BUREAU LTD,19/11/2012,48509,Other Fees,Housing GRF,Benjamin Court Accommodation,"2,248.90"
2608646,BOLTON AT HOME#137,08/11/2012,48629,Miscellaneous Expenses,Chief Executives Department,Neighbourhood Mgt and Area Working Devolved,865.00
2618430,BOLTON AT HOME#137,22/11/2012,52200,Contracted Services,Adult Services,Supporting People  Capital Financing,"16,659.99"
2613947,BOLTON CARPET WAREHOUSE,19/11/2012,40150,Office Furniture Purchase,Housing GRF,Furnished Tenancies,622.21
2613935,BOLTON CARPET WAREHOUSE,19/11/2012,40150,Office Furniture Purchase,Housing GRF,Furnished Tenancies,622.21
2613929,BOLTON CARPET WAREHOUSE,19/11/2012,40150,Office Furniture Purchase,Housing GRF,Furnished Tenancies,700.74
2619056,BOLTON CARPET WAREHOUSE,26/11/2012,40150,Office Furniture Purchase,Housing GRF,Furnished Tenancies,700.74
2610028,BOLTON CARPET WAREHOUSE,15/11/2012,40150,Office Furniture Purchase,Housing GRF,Furnished Tenancies,700.74
2610032,BOLTON CARPET WAREHOUSE,15/11/2012,40150,Office Furniture Purchase,Housing GRF,Furnished Tenancies,622.21
2618603,BOLTON CARPET WAREHOUSE,26/11/2012,40150,Office Furniture Purchase,Housing GRF,Furnished Tenancies,700.74
2618607,BOLTON CARPET WAREHOUSE,26/11/2012,40150,Office Furniture Purchase,Housing GRF,Furnished Tenancies,622.21
2613988,BOLTON CARPET WAREHOUSE,13/12/2012,40150,Office Furniture Purchase,Housing GRF,Furnished Tenancies,700.74
2613799,BOLTON COMMUNITY LEISURE LTD,30/11/2012,52200,Contracted Services,Development & Regen,The Leisure Trust,"218,812.29"
2622819,BOLTON COMMUNITY LEISURE LTD,30/11/2012,52200,Contracted Services,Development & Regen,The Leisure Trust,"218,812.29"
2611164,BOLTON LINK JOBAXI LTD,12/11/2012,33201,Transport Hire,Environmental Services,SNT Adult Servs,"5,156.18"
2608587,BOLTON PRIMARY CARE TRUST#12#BOLTON PCT,08/11/2012,48510,Consultancy Fees,Finance Department,C.R.M. Operations,"20,178.70"
2606377,BOLTON PRIMARY CARE TRUST#12#BOLTON PCT,05/11/2012,54300,Independant Sector Placements,Adult Services,OA  External Provision Residential,"5,059.31"
2617773,BOLTON PRIMARY CARE TRUST#12#BOLTON PCT,22/11/2012,48509,Other Fees,Development & Regen,Home Solutions,"37,413.00"
2611401,BOLTON SHOPMOBILITY#COMMUNITY CARE OPTIONS,12/11/2012,47103,Miscellaneous Grants,Chief Executives Department,Voluntary Sector Grants,"6,743.25"
2613384,BOLTON STONE RESTORATION LTD,15/11/2012,Z1051,Work in Progress Additions,Environmental Services,Environmental Services Balance sheet,845.50
2613385,BOLTON STONE RESTORATION LTD,15/11/2012,Z1051,Work in Progress Additions,Environmental Services,Environmental Services Balance sheet,"3,335.37"
2618489,BOLTON STONE RESTORATION LTD,22/11/2012,Z1051,Work in Progress Additions,Environmental Services,Environmental Services Balance sheet,"1,570.19"
2616518,BOLTON SYMPHONY ORCHESTRA,22/11/2012,48501,Artistes Fees,Environmental Services,Albert Halls Entertainment,"1,266.00"
2611166,BOLTON TAXIS LTD,15/11/2012,33201,Transport Hire,Environmental Services,SNT Adult Servs,"2,184.00"
2609385,BOLTON WISE LTD#EATWISE#WISEWORKS#WISETRAINING (14-19)#STYLE WISE,08/11/2012,Z1051,Work in Progress Additions,Environmental Services,Environmental Services Balance sheet,716.74
2613509,BOLTON WISE LTD#EATWISE#WISEWORKS#WISETRAINING (14-19)#STYLE WISE,15/11/2012,55700,Grant Funded Expenditure,Chief Executives Department,Community Safety,"7,773.30"
2613439,BOLTON WISE LTD#EATWISE#WISEWORKS#WISETRAINING (14-19)#STYLE WISE,15/11/2012,48509,Other Fees,Housing GRF,Neighbourhood Management Project,721.30
2620179,BOLTON YOUNG PERSONS HOUSING SCHEME#BYPHS,26/11/2012,52200,Contracted Services,Adult Services,Supporting People  Capital Financing,"17,355.66"
2617463,BOUND AND GAGGED LIMITED,22/11/2012,48509,Other Fees,Environmental Services,Albert Halls Entertainment,"1,300.00"
2617455,BOUND AND GAGGED LIMITED,22/11/2012,48509,Other Fees,Environmental Services,Albert Halls Entertainment,800.00
2608200,BOUND AND GAGGED LIMITED,15/11/2012,48501,Artistes Fees,Environmental Services,Albert Halls Entertainment,"2,198.66"
2606036,BOWERSWOOD HOUSE RETIREMENT HOME LTD,06/11/2012,54301,Residential Provision,Adult Services,OA  External Provision Residential,"1,440.00"
2625801,BOWERSWOOD HOUSE RETIREMENT HOME LTD,05/12/2012,54301,Residential Provision,Adult Services,OA  External Provision Residential,"1,440.00"
2616378,BOZENA ALLEN LTD,19/11/2012,48510,Consultancy Fees,Adult Services,AD Departmental Management Team,"1,278.12"
2619604,BRADSHAW SHEET METAL WORKS LTD,26/11/2012,40601,General Materials,Environmental Services,Transport Support Service,688.00
2606056,BRIDEOAKE CARE HOME,06/11/2012,54301,Residential Provision,Adult Services,OA  External Provision Residential,"1,475.88"
2625822,BRIDEOAKE CARE HOME,05/12/2012,54301,Residential Provision,Adult Services,OA  External Provision Residential,"1,475.88"
2620938,BRIDGE HOUSE#1,26/11/2012,54301,Residential Provision,Adult Services,LD Purchaser Supported Housing,"1,599.47"
2611170,BRIDGE PRIVATE HIRE#REDACTED - PERSONAL DATA,12/11/2012,33201,Transport Hire,Environmental Services,SNT Adult Servs,"1,609.95"
2610669,BRIDGESTONE DEVELOPMENTS LIMITED,15/11/2012,22202,Sewerage & Env'mental Servs,Housing GRF,HMO Licence Fees,"2,330.00"
2613762,BRIDGESTONE DEVELOPMENTS LIMITED,15/11/2012,22202,Sewerage & Env'mental Servs,Housing GRF,HMO Licence Fees,"4,775.00"
2609996,BRIGHT DIRECTION TRAINING LIMITED,22/11/2012,44056,Clients Training Courses,Development & Regen,The Work Programme,"2,400.00"
2610003,BRIGHT DIRECTION TRAINING LIMITED,22/11/2012,44056,Clients Training Courses,Development & Regen,The Work Programme,"2,400.00"
2620053,BRIGHT INTERACTIVE LTD,29/11/2012,48203,Marketing,Central Services,Communication & Marketing Agency,815.00
2625388,BRITISH GAS BUSINESS,04/12/2012,21200,Gas  General,Property Services,Adult's General,"1,774.19"
2625390,BRITISH GAS BUSINESS,04/12/2012,21200,Gas  General,Housing GRF,Communal Services Capital And Admin.,"1,024.64"
2625377,BRITISH GAS BUSINESS,04/12/2012,21100,Electricity  General,Housing GRF,Communal Services Capital And Admin.,"2,474.13"
2625365,BRITISH GAS BUSINESS,04/12/2012,21100,Electricity  General,Housing GRF,Communal Services Capital And Admin.,"3,749.13"
2613965,BROOKE EDGLEY SPECIALIST TECHNICAL SVS LTD#BEST,29/11/2012,20100,Day To Day Maintenance,Property Services,Jubilee Centre,"1,600.00"
2606043,BROOKFIELD RESIDENTIAL CARE HOME LTD,06/11/2012,54301,Residential Provision,Adult Services,MH Residential External Provision,"2,200.00"
2625808,BROOKFIELD RESIDENTIAL CARE HOME LTD,05/12/2012,54301,Residential Provision,Adult Services,MH Residential External Provision,"2,200.00"
2606000,BROOKVALE,06/11/2012,54301,Residential Provision,Adult Services,LD Purchaser Residential Care,"7,000.00"
2625767,BROOKVALE,05/12/2012,54301,Residential Provision,Adult Services,LD Purchaser Residential Care,"7,000.00"
2614277,BROTHERS OF CHARITY SERVICES,26/11/2012,52200,Contracted Services,Adult Services,LD Purchaser Domiciliary Care,"2,124.40"
2614279,BROTHERS OF CHARITY SERVICES,26/11/2012,52200,Contracted Services,Adult Services,LD Purchaser Day Services,801.16
2614279,BROTHERS OF CHARITY SERVICES,26/11/2012,52200,Contracted Services,Adult Services,LD Purchaser Domiciliary Care,937.44
2605997,BROTHERS OF CHARITY SERVICES,06/11/2012,54302,Nursing Provision,Adult Services,LD Purchaser Residential Care,"3,617.20"
2625764,BROTHERS OF CHARITY SERVICES,05/12/2012,54302,Nursing Provision,Adult Services,LD Purchaser Residential Care,"3,617.20"
2605956,BROUGHTON HOUSE#EPH,06/11/2012,54301,Residential Provision,Adult Services,OA  External Provision Residential,"1,526.96"
2625727,BROUGHTON HOUSE#EPH,05/12/2012,54301,Residential Provision,Adult Services,OA  External Provision Residential,"1,526.96"
2605957,BROWFIELD RESIDENTIAL CARE HOME,06/11/2012,54301,Residential Provision,Adult Services,MH Residential External Provision,"4,663.48"
2625728,BROWFIELD RESIDENTIAL CARE HOME,05/12/2012,54301,Residential Provision,Adult Services,MH Residential External Provision,"4,663.48"
2613163,BS SUPPORT SERVICES LIMITED,15/11/2012,52200,Contracted Services,Children's Services,Youth Offending Team,"2,060.45"
2619072,BSM PRINT LTD,20/12/2012,43001,Printing General,Central Services,Printing Services,770.00
2608276,BUPA CARE SERVICES CARDERS COURT,06/11/2012,54301,Residential Provision,Adult Services,OA  External Provision Residential,"1,520.00"
2625865,BUPA CARE SERVICES CARDERS COURT,05/12/2012,54301,Residential Provision,Adult Services,OA  External Provision Residential,"1,520.00"
2620150,BURNT TREE GROUP,29/11/2012,33201,Transport Hire,Environmental Services,Transport Support Service,"1,170.00"
2620156,BURNT TREE GROUP,29/11/2012,33201,Transport Hire,Environmental Services,Transport Support Service,"1,170.00"
2620158,BURNT TREE GROUP,29/11/2012,33201,Transport Hire,Environmental Services,Transport Support Service,"1,170.00"
2620161,BURNT TREE GROUP,29/11/2012,33201,Transport Hire,Environmental Services,Transport Support Service,"1,170.00"
2620163,BURNT TREE GROUP,29/11/2012,33201,Transport Hire,Environmental Services,Transport Support Service,"1,170.00"
2620164,BURNT TREE GROUP,29/11/2012,33201,Transport Hire,Environmental Services,Transport Support Service,"1,170.00"
2620169,BURNT TREE GROUP,29/11/2012,33201,Transport Hire,Environmental Services,Transport Support Service,"1,170.00"
2620170,BURNT TREE GROUP,29/11/2012,33201,Transport Hire,Environmental Services,Transport Support Service,"1,170.00"
2620172,BURNT TREE GROUP,29/11/2012,33201,Transport Hire,Environmental Services,Transport Support Service,"1,170.00"
2620140,BURNT TREE GROUP,29/11/2012,33201,Transport Hire,Environmental Services,Transport Support Service,557.15
2615111,C M FAIR JOINERY LTD,19/11/2012,20100,Day To Day Maintenance,Property Services,Winifred Kettle,"2,820.00"
2609481,C P DAVIDSON & SONS LTD,08/11/2012,36200,Uninsured Losses  Vehicles,Environmental Services,Transport Support Service,877.99
2605992,CAMERON HOUSE CARE HOME,06/11/2012,54301,Residential Provision,Adult Services,OA  External Provision Residential,"4,723.32"
2625760,CAMERON HOUSE CARE HOME,05/12/2012,54301,Residential Provision,Adult Services,OA  External Provision Residential,"4,723.32"
2610775,CAPITA BUSINESS SERVICES LTD,12/11/2012,45431,Computer Software Licences,Finance Department,Housing Benefits,"53,100.00"
2618882,CAPITA BUSINESS SERVICES LTD,04/12/2012,45430,Computer Software,Finance Department,NonDomestic Rating,"1,050.00"
2609574,CARE MONITORING 2000 LTD,15/11/2012,Z1051,Work in Progress Additions,Adult Services,Adult Services Balance Sheet,"2,465.00"
2606009,CARE STANLEY GRANGE,06/11/2012,54301,Residential Provision,Adult Services,LD Purchaser Residential Care,"3,640.64"
2625777,CARE STANLEY GRANGE,05/12/2012,54301,Residential Provision,Adult Services,LD Purchaser Residential Care,"3,640.64"
2613094,CARE UK HOMECARE#CARE UK (BOLTON),15/11/2012,52200,Contracted Services,Adult Services,OA  Home Care Services external provision,"47,483.78"
2606385,CAREWATCH (BOLTON),05/11/2012,52200,Contracted Services,Adult Services,MH Residential External Provision,"1,080.66"
2626323,CAREWATCH (BOLTON),04/12/2012,52000,Vol Assoc Grants  General,Adult Services,OA  Home Care Services external provision,"26,328.39"
2609578,CARING ALTERNATIVES LIMITED,08/11/2012,52200,Contracted Services,Adult Services,MH Residential External Provision,836.00
2611173,REDACTED - PERSONAL DATA,12/11/2012,33201,Transport Hire,Environmental Services,SNT Adult Servs,"1,215.00"
2606039,CARR BANK HOUSE,06/11/2012,54301,Residential Provision,Adult Services,MH Residential External Provision,"1,537.92"
2625804,CARR BANK HOUSE,05/12/2012,54301,Residential Provision,Adult Services,MH Residential External Provision,"1,537.92"
2618517,CATEREPAIR LTD,13/12/2012,20100,Day To Day Maintenance,Property Services,Thicketford Centre,506.48
2618541,CATEREPAIR LTD,06/12/2012,20100,Day To Day Maintenance,Property Services,Wilfred Gere EPH,505.44
2613142,CATEREPAIR LTD,04/12/2012,20100,Day To Day Maintenance,Property Services,Winifred Kettle,512.08
2618512,CATEREPAIR LTD,13/12/2012,20100,Day To Day Maintenance,Property Services,Pocket Workshop(Community Meals),511.22
2628050,CATEREPAIR LTD,20/12/2012,20100,Day To Day Maintenance,Property Services,Town Hall,715.05
2628209,REDACTED - PERSONAL DATA,06/12/2012,45914,Commissioning Worklessness,Development & Regen,The Work Programme,800.00
2606458,CB BUILDING AND JOINERY LTD,05/11/2012,44051,Clients Aids & Adaptations,Adult Services,ICES,850.00
2614253,CBS OUTDOOR LTD,26/11/2012,48203,Marketing,Central Services,Marketing  General,"2,813.00"
2622384,CBS OUTDOOR LTD,29/11/2012,48203,Marketing,Central Services,Marketing  General,584.00
2614022,CDP SOFT LIMITED,22/11/2012,52200,Contracted Services,Adult Services,Supporting People  Capital Financing,"10,967.00"
2614047,CEFNDY HEALTHCARE#CEFNDY ENTERPRISES,22/11/2012,44051,Clients Aids & Adaptations,Adult Services,ICES,768.00
2612624,CEFNDY HEALTHCARE#CEFNDY ENTERPRISES,26/11/2012,44051,Clients Aids & Adaptations,Adult Services,ICES,693.00
2609329,CEMEX UK MATERIALS LTD,12/11/2012,40610,Direct Materials,Environmental Services,Highways Maintenance Billable Costs,690.54
2627812,CEMEX UK MATERIALS LTD,06/12/2012,Z6008,Expense AP Accrual,Bolton MBC Balance Sheet,Bolton MBC Balance Sheet,699.42
2627008,CEMEX UK MATERIALS LTD,13/12/2012,Z6008,Expense AP Accrual,Bolton MBC Balance Sheet,Bolton MBC Balance Sheet,646.35
2616672,CENTURION HYDRAULICS LTD,22/11/2012,20100,Day To Day Maintenance,Environmental Services,Depots,540.59
2613098,CENTURION HYDRAULICS LTD,22/11/2012,31305,Vehicle Servicing,Environmental Services,Transport Support Service,759.36
2606061,CHASEDALE CARE HOME,06/11/2012,54301,Residential Provision,Adult Services,OA  External Provision Residential,"1,788.00"
2606061,CHASEDALE CARE HOME,06/11/2012,54302,Nursing Provision,Adult Services,OA  External Provision Residential,"1,848.80"
2625827,CHASEDALE CARE HOME,05/12/2012,54301,Residential Provision,Adult Services,OA  External Provision Residential,"2,980.31"
2625827,CHASEDALE CARE HOME,05/12/2012,54302,Nursing Provision,Adult Services,OA  External Provision Residential,"1,848.80"
2613119,CHASSIS & CAB SPECIALISTS,19/11/2012,52200,Contracted Services,Environmental Services,Transport Support Service,664.00
2613113,CHASSIS & CAB SPECIALISTS,22/11/2012,52200,Contracted Services,Environmental Services,Transport Support Service,"4,136.00"
2617812,CHASSIS & CAB SPECIALISTS,29/11/2012,52200,Contracted Services,Environmental Services,Transport Support Service,"1,620.00"
2623471,CHASSIS & CAB SPECIALISTS,04/12/2012,52200,Contracted Services,Environmental Services,Transport Support Service,"2,740.00"
2605959,CHATAWAY NURSING HOME,06/11/2012,54302,Nursing Provision,Adult Services,MH Residential External Provision,"2,035.04"
2625730,CHATAWAY NURSING HOME,05/12/2012,54302,Nursing Provision,Adult Services,MH Residential External Provision,"2,035.04"
2612512,CHESHIRE CENTRE FOR INDEPENDANT LIVING,15/11/2012,53000,Private Contracted Services,Adult Services,STARS & ILS  North,"8,053.50"
2606060,CHESTER HOUSE CARE HOME,06/11/2012,54301,Residential Provision,Adult Services,LD Purchaser Residential Care,"1,728.00"
2625826,CHESTER HOUSE CARE HOME,05/12/2012,54301,Residential Provision,Adult Services,LD Purchaser Residential Care,"1,728.00"
2613102,CHILD ACTION NORTHWEST,15/11/2012,48509,Other Fees,Children's Services,Youth Offending Team,867.07
2623340,CHILD ACTION NORTHWEST,06/12/2012,52000,Vol Assoc Grants  General,Children's Services,Disability Serv External Provision,"4,703.23"
2623343,CHILD ACTION NORTHWEST,06/12/2012,52000,Vol Assoc Grants  General,Children's Services,Res Serv Agency Placements,"3,100.00"
2625436,CHILD ACTION NORTHWEST,04/12/2012,48509,Other Fees,Children's Services,Youth Offending Team,897.07
2623337,CHILD ACTION NORTHWEST,06/12/2012,52000,Vol Assoc Grants  General,Children's Services,Res Serv Agency Placements,"3,542.99"
2609569,CHOICES HOME FOR CHILDREN LTD,08/11/2012,52000,Vol Assoc Grants  General,Children's Services,Res Serv Agency Placements,"7,528.66"
2609567,CHOICES HOME FOR CHILDREN LTD,08/11/2012,52000,Vol Assoc Grants  General,Children's Services,Res Serv Agency Placements,"8,742.62"
2609566,CHOICES HOME FOR CHILDREN LTD,08/11/2012,52000,Vol Assoc Grants  General,Children's Services,Res Serv Agency Placements,"7,549.43"
2628218,CHUBB FIRE LTD,24/12/2012,Z1051,Work in Progress Additions,Property Services,Corporate Property Capital Project Transfers to Other Projects,597.96
2628234,CHUBB FIRE LTD,24/12/2012,Z1051,Work in Progress Additions,Property Services,Corporate Property Capital Project Transfers to Other Projects,"1,401.10"
2611466,CHUBB SYSTEMS LIMITED,12/11/2012,44051,Clients Aids & Adaptations,Adult Services,ASC External Funded Schemes,537.14
2610369,CIEH#CHARTERED INSTITUTE OF ENVIRONMENTAL HEALTH,15/11/2012,19105,Training Exp  Books Etc,Environmental Services,Catering,609.95
2617337,CITY BUILD MANCHESTER LTD,22/11/2012,20100,Day To Day Maintenance,Property Services,Accomm Rationalisation Strategy,"21,140.12"
2624410,CITY BUILD MANCHESTER LTD,04/12/2012,Z1051,Work in Progress Additions,Property Services,Corporate Property Capital Project Transfers to Other Projects,"124,478.32"
2613975,CIVILS & LINTELS#HENDRICKS LOVELL,20/12/2012,40601,General Materials,Environmental Services,Highways Works Billable,"1,025.00"
2614239,CIVILS & LINTELS#HENDRICKS LOVELL,04/12/2012,40601,General Materials,Environmental Services,Activities and Operations,844.01
2605993,CLEVELEYS NURSING HOME,06/11/2012,54302,Nursing Provision,Adult Services,OA  External Provision Residential,"1,792.00"
2625761,CLEVELEYS NURSING HOME,05/12/2012,54302,Nursing Provision,Adult Services,OA  External Provision Residential,"1,792.00"
2615446,CLOFIELD LIMITED,19/11/2012,44051,Clients Aids & Adaptations,Adult Services,ICES,888.61
2618958,CLOFIELD LIMITED,24/12/2012,44051,Clients Aids & Adaptations,Adult Services,ICES,981.50
2607918,COHENS CHEMIST#GORGEMEAD LTD,08/11/2012,52200,Contracted Services,Adult Services,Drugs Pooled Treatment Budget,590.20
2609909,COMENSURA LTD,08/11/2012,53102,Agency Staff  Other,Adult Services,AD  Contracts,822.07
2609909,COMENSURA LTD,08/11/2012,53102,Agency Staff  Other,Adult Services,LD Provider  Supported Housing,"1,044.53"
2609909,COMENSURA LTD,08/11/2012,53102,Agency Staff  Other,Adult Services,OA  Alderbank  Residential,"2,217.14"
2609909,COMENSURA LTD,08/11/2012,53102,Agency Staff  Other,Adult Services,OA  Darley Court Intermediate Care,"2,483.79"
2609909,COMENSURA LTD,08/11/2012,53102,Agency Staff  Other,Adult Services,OA  Fieldwork Team West,832.15
2609909,COMENSURA LTD,08/11/2012,53102,Agency Staff  Other,Adult Services,OA Merton  Extra Care Housing,705.67
2609909,COMENSURA LTD,08/11/2012,53102,Agency Staff  Other,Chief Executives Department,Occupational Health Unit,660.30
2609909,COMENSURA LTD,08/11/2012,53102,Agency Staff  Other,Environmental Services,Activities and Operations,933.53
2609909,COMENSURA LTD,08/11/2012,53102,Agency Staff  Other,Environmental Services,Bereavement Services,"1,042.23"
2609909,COMENSURA LTD,08/11/2012,53102,Agency Staff  Other,Environmental Services,Depots,"1,090.90"
2609909,COMENSURA LTD,08/11/2012,53102,Agency Staff  Other,Environmental Services,Markets  Rent Account,"2,860.66"
2609909,COMENSURA LTD,08/11/2012,53102,Agency Staff  Other,Environmental Services,Regulatory Services,516.89
2609909,COMENSURA LTD,08/11/2012,53102,Agency Staff  Other,Environmental Services,Security Services,511.04
2609909,COMENSURA LTD,08/11/2012,53102,Agency Staff  Other,Environmental Services,Transport Support Service,748.16
2609909,COMENSURA LTD,08/11/2012,53102,Agency Staff  Other,Environmental Services,Waste,"10,671.22"
2609909,COMENSURA LTD,08/11/2012,53102,Agency Staff  Other,Development & Regen,The Work Programme,"3,496.00"
2609909,COMENSURA LTD,08/11/2012,53102,Agency Staff  Other,Children's Services,Business Support    South District,"3,339.30"
2609909,COMENSURA LTD,08/11/2012,53102,Agency Staff  Other,Children's Services,Business Support    West District,"1,263.07"
2609909,COMENSURA LTD,08/11/2012,53102,Agency Staff  Other,Children's Services,Business Support – North District,"1,013.86"
2609909,COMENSURA LTD,08/11/2012,53102,Agency Staff  Other,Children's Services,Children and Family Supp Svs North,"1,478.33"
2609909,COMENSURA LTD,08/11/2012,53102,Agency Staff  Other,Children's Services,Children and Family Supp Svs South,"1,231.17"
2609909,COMENSURA LTD,08/11/2012,53102,Agency Staff  Other,Children's Services,Children and Family Supp Svs West,"2,339.68"
2609909,COMENSURA LTD,08/11/2012,53102,Agency Staff  Other,Children's Services,Disability Serv Family Support Team,810.24
2609909,COMENSURA LTD,08/11/2012,53102,Agency Staff  Other,Children's Services,Oxford Grove CC,"1,062.25"
2609909,COMENSURA LTD,08/11/2012,53102,Agency Staff  Other,Finance Department,Customer Services,"1,403.12"
2609909,COMENSURA LTD,08/11/2012,53102,Agency Staff  Other,Finance Department,Finance Ap Centre of Excellence,678.51
2609909,COMENSURA LTD,08/11/2012,50002,Other Agency/Contracted Services,Finance Department,Housing Benefits,"6,589.30"
2609909,COMENSURA LTD,08/11/2012,53102,Agency Staff  Other,Finance Department,Housing Benefits,503.29
2609909,COMENSURA LTD,08/11/2012,53102,Agency Staff  Other,Housing GRF,Find a Home,712.98
2609909,COMENSURA LTD,08/11/2012,53102,Agency Staff  Other,Property Services,Accomm Rationalisation Strategy,"1,000.48"
2609909,COMENSURA LTD,08/11/2012,53102,Agency Staff  Other,Property Services,Operational Facilities Management,"1,061.31"
2609909,COMENSURA LTD,08/11/2012,53102,Agency Staff  Other,Property Services,Projects,"3,058.40"
2609909,COMENSURA LTD,08/11/2012,53102,Agency Staff  Other,Legal Trading,Legal Services Trading Account,"3,474.08"
2621985,COMENSURA LTD,29/11/2012,53102,Agency Staff  Other,Adult Services,AD  Contracts,935.62
2621985,COMENSURA LTD,29/11/2012,53102,Agency Staff  Other,Adult Services,LD Provider  Supported Housing,739.06
2621985,COMENSURA LTD,29/11/2012,53102,Agency Staff  Other,Adult Services,OA  Alderbank  Residential,787.76
2621985,COMENSURA LTD,29/11/2012,53102,Agency Staff  Other,Adult Services,OA  Darley Court Intermediate Care,"4,213.55"
2621985,COMENSURA LTD,29/11/2012,53102,Agency Staff  Other,Adult Services,OA  Fieldwork Team West,719.68
2621985,COMENSURA LTD,29/11/2012,53102,Agency Staff  Other,Chief Executives Department,Occupational Health Unit,"2,047.76"
2621985,COMENSURA LTD,29/11/2012,53102,Agency Staff  Other,Environmental Services,Activities and Operations,"7,985.75"
2621985,COMENSURA LTD,29/11/2012,53102,Agency Staff  Other,Environmental Services,Business Support,565.26
2621985,COMENSURA LTD,29/11/2012,53102,Agency Staff  Other,Environmental Services,Depots,"1,019.03"
2621985,COMENSURA LTD,29/11/2012,53102,Agency Staff  Other,Environmental Services,Markets  Rent Account,913.87
2621985,COMENSURA LTD,29/11/2012,53102,Agency Staff  Other,Environmental Services,Performance and Improvement,"1,727.08"
2621985,COMENSURA LTD,29/11/2012,53102,Agency Staff  Other,Environmental Services,Regulatory Services,"1,753.58"
2621985,COMENSURA LTD,29/11/2012,53102,Agency Staff  Other,Environmental Services,Security Services,"1,208.61"
2621985,COMENSURA LTD,29/11/2012,53102,Agency Staff  Other,Environmental Services,Transport Support Service,"1,841.50"
2621985,COMENSURA LTD,29/11/2012,53102,Agency Staff  Other,Environmental Services,Waste,"29,166.14"
2621985,COMENSURA LTD,29/11/2012,53102,Agency Staff  Other,Development & Regen,The Work Programme,"1,633.92"
2621985,COMENSURA LTD,29/11/2012,53102,Agency Staff  Other,Children's Services,Admin Strategy&Performance,564.98
2621985,COMENSURA LTD,29/11/2012,53102,Agency Staff  Other,Children's Services,Business Support    South District,"4,688.34"
2621985,COMENSURA LTD,29/11/2012,53102,Agency Staff  Other,Children's Services,Business Support    West District,"1,282.48"
2621985,COMENSURA LTD,29/11/2012,53102,Agency Staff  Other,Children's Services,Business Support – Central Team,854.12
2621985,COMENSURA LTD,29/11/2012,53102,Agency Staff  Other,Children's Services,Business Support – North District,845.56
2621985,COMENSURA LTD,29/11/2012,53102,Agency Staff  Other,Children's Services,Children and Family Supp Svs North,"2,615.54"
2621985,COMENSURA LTD,29/11/2012,53102,Agency Staff  Other,Children's Services,Children and Family Supp Svs South,"3,290.21"
2621985,COMENSURA LTD,29/11/2012,53102,Agency Staff  Other,Children's Services,Children and Family Supp Svs West,"2,122.56"
2621985,COMENSURA LTD,29/11/2012,53102,Agency Staff  Other,Children's Services,Disability Serv Family Support Team,587.57
2621985,COMENSURA LTD,29/11/2012,53102,Agency Staff  Other,Children's Services,Oxford Grove CC,"1,222.64"
2621985,COMENSURA LTD,29/11/2012,53102,Agency Staff  Other,Finance Department,Customer Services,"1,309.49"
2621985,COMENSURA LTD,29/11/2012,53102,Agency Staff  Other,Finance Department,Finance Ap Centre of Excellence,678.51
2621985,COMENSURA LTD,29/11/2012,50002,Other Agency/Contracted Services,Finance Department,Housing Benefits,"7,967.86"
2621985,COMENSURA LTD,29/11/2012,53102,Agency Staff  Other,Finance Department,Housing Benefits,"1,798.86"
2621985,COMENSURA LTD,29/11/2012,53102,Agency Staff  Other,Housing GRF,Find a Home,712.98
2621985,COMENSURA LTD,29/11/2012,53102,Agency Staff  Other,Property Services,Accomm Rationalisation Strategy,973.44
2621985,COMENSURA LTD,29/11/2012,53102,Agency Staff  Other,Property Services,Operational Facilities Management,"1,733.18"
2621985,COMENSURA LTD,29/11/2012,53102,Agency Staff  Other,Property Services,Projects,"2,774.96"
2621985,COMENSURA LTD,29/11/2012,53102,Agency Staff  Other,Legal Trading,Legal Services Trading Account,"6,276.13"
2622579,COMENSURA LTD,29/11/2012,53102,Agency Staff  Other,Adult Services,AD  Contracts,"1,018.94"
2622579,COMENSURA LTD,29/11/2012,53102,Agency Staff  Other,Adult Services,LD Provider  Supported Housing,770.05
2622579,COMENSURA LTD,29/11/2012,53102,Agency Staff  Other,Adult Services,OA  Alderbank  Residential,686.77
2622579,COMENSURA LTD,29/11/2012,53102,Agency Staff  Other,Adult Services,OA  Darley Court Intermediate Care,"7,003.24"
2622579,COMENSURA LTD,29/11/2012,53102,Agency Staff  Other,Adult Services,OA  Fieldwork Team West,832.15
2622579,COMENSURA LTD,29/11/2012,53102,Agency Staff  Other,Adult Services,OA  Firwood  Residential,832.14
2622579,COMENSURA LTD,29/11/2012,53102,Agency Staff  Other,Adult Services,OA  Winifred Kettle  Residential,"1,856.79"
2622579,COMENSURA LTD,29/11/2012,53102,Agency Staff  Other,Adult Services,OA Merton  Extra Care Housing,681.21
2622579,COMENSURA LTD,29/11/2012,53102,Agency Staff  Other,Chief Executives Department,Occupational Health Unit,"1,354.03"
2622579,COMENSURA LTD,29/11/2012,53102,Agency Staff  Other,Environmental Services,Activities and Operations,"5,396.37"
2622579,COMENSURA LTD,29/11/2012,53102,Agency Staff  Other,Environmental Services,Depots,"1,512.03"
2622579,COMENSURA LTD,29/11/2012,53102,Agency Staff  Other,Environmental Services,Markets  Rent Account,"1,579.75"
2622579,COMENSURA LTD,29/11/2012,53102,Agency Staff  Other,Environmental Services,Performance and Improvement,"1,213.62"
2622579,COMENSURA LTD,29/11/2012,53102,Agency Staff  Other,Environmental Services,Regulatory Services,516.90
2622579,COMENSURA LTD,29/11/2012,53102,Agency Staff  Other,Environmental Services,Security Services,648.49
2622579,COMENSURA LTD,29/11/2012,53102,Agency Staff  Other,Environmental Services,Transport Support Service,"3,355.72"
2622579,COMENSURA LTD,29/11/2012,53102,Agency Staff  Other,Environmental Services,Waste,563.16
2622579,COMENSURA LTD,29/11/2012,53102,Agency Staff  Other,Development & Regen,The Work Programme,"1,089.28"
2622579,COMENSURA LTD,29/11/2012,53102,Agency Staff  Other,Children's Services,Admin Strategy&Performance,564.97
2622579,COMENSURA LTD,29/11/2012,53102,Agency Staff  Other,Children's Services,Business Support    South District,"4,298.81"
2622579,COMENSURA LTD,29/11/2012,53102,Agency Staff  Other,Children's Services,Business Support    West District,"1,691.22"
2622579,COMENSURA LTD,29/11/2012,53102,Agency Staff  Other,Children's Services,Business Support – Central Team,792.37
2622579,COMENSURA LTD,29/11/2012,53102,Agency Staff  Other,Children's Services,Business Support – North District,"1,013.86"
2622579,COMENSURA LTD,29/11/2012,53102,Agency Staff  Other,Children's Services,Children and Family Supp Svs North,"1,325.97"
2622579,COMENSURA LTD,29/11/2012,53102,Agency Staff  Other,Children's Services,Children and Family Supp Svs South,"1,430.17"
2622579,COMENSURA LTD,29/11/2012,53102,Agency Staff  Other,Children's Services,Children and Family Supp Svs West,"1,721.80"
2622579,COMENSURA LTD,29/11/2012,53102,Agency Staff  Other,Children's Services,Disability Serv Family Support Team,615.43
2622579,COMENSURA LTD,29/11/2012,53102,Agency Staff  Other,Children's Services,Oxford Grove CC,"1,137.72"
2622579,COMENSURA LTD,29/11/2012,53102,Agency Staff  Other,Children's Services,Youth & Play Management Team,514.78
2622579,COMENSURA LTD,29/11/2012,53102,Agency Staff  Other,Finance Department,Customer Services,"1,383.75"
2622579,COMENSURA LTD,29/11/2012,53102,Agency Staff  Other,Finance Department,Finance Ap Centre of Excellence,678.51
2622579,COMENSURA LTD,29/11/2012,50002,Other Agency/Contracted Services,Finance Department,Housing Benefits,"8,108.21"
2622579,COMENSURA LTD,29/11/2012,53102,Agency Staff  Other,Finance Department,Housing Benefits,989.19
2622579,COMENSURA LTD,29/11/2012,53102,Agency Staff  Other,Housing GRF,Find a Home,"1,069.39"
2622579,COMENSURA LTD,29/11/2012,53102,Agency Staff  Other,Property Services,Accomm Rationalisation Strategy,"1,081.60"
2622579,COMENSURA LTD,29/11/2012,53102,Agency Staff  Other,Property Services,Operational Facilities Management,"1,624.39"
2622579,COMENSURA LTD,29/11/2012,53102,Agency Staff  Other,Property Services,Projects,"2,977.10"
2622579,COMENSURA LTD,29/11/2012,53102,Agency Staff  Other,Legal Trading,Legal Services Trading Account,"6,207.54"
2618533,COMENSURA LTD,22/11/2012,53102,Agency Staff  Other,Adult Services,AD  Contracts,988.32
2618533,COMENSURA LTD,22/11/2012,53102,Agency Staff  Other,Adult Services,OA  Alderbank  Residential,"2,459.51"
2618533,COMENSURA LTD,22/11/2012,53102,Agency Staff  Other,Adult Services,OA  Darley Court Intermediate Care,"8,254.29"
2618533,COMENSURA LTD,22/11/2012,53102,Agency Staff  Other,Adult Services,OA  Fieldwork Team West,832.15
2618533,COMENSURA LTD,22/11/2012,53102,Agency Staff  Other,Adult Services,OA  Firwood  Residential,"1,394.15"
2618533,COMENSURA LTD,22/11/2012,53102,Agency Staff  Other,Adult Services,OA  Winifred Kettle  Residential,527.85
2618533,COMENSURA LTD,22/11/2012,53102,Agency Staff  Other,Adult Services,OA Merton  Extra Care Housing,"1,517.67"
2618533,COMENSURA LTD,22/11/2012,53102,Agency Staff  Other,Chief Executives Department,Occupational Health Unit,"1,354.03"
2618533,COMENSURA LTD,22/11/2012,53102,Agency Staff  Other,Environmental Services,Activities and Operations,"6,963.58"
2618533,COMENSURA LTD,22/11/2012,53102,Agency Staff  Other,Environmental Services,Depots,748.16
2618533,COMENSURA LTD,22/11/2012,53102,Agency Staff  Other,Environmental Services,Markets  Rent Account,"1,102.75"
2618533,COMENSURA LTD,22/11/2012,53102,Agency Staff  Other,Environmental Services,Security Services,650.70
2618533,COMENSURA LTD,22/11/2012,53102,Agency Staff  Other,Environmental Services,Transport Support Service,748.16
2618533,COMENSURA LTD,22/11/2012,53102,Agency Staff  Other,Environmental Services,Waste,"1,459.39"
2618533,COMENSURA LTD,22/11/2012,53102,Agency Staff  Other,Development & Regen,The Work Programme,986.24
2618533,COMENSURA LTD,22/11/2012,53102,Agency Staff  Other,Children's Services,Business Support    South District,"3,853.01"
2618533,COMENSURA LTD,22/11/2012,53102,Agency Staff  Other,Children's Services,Business Support    West District,"1,747.77"
2618533,COMENSURA LTD,22/11/2012,53102,Agency Staff  Other,Children's Services,Business Support – Central Team,763.88
2618533,COMENSURA LTD,22/11/2012,53102,Agency Staff  Other,Children's Services,Business Support – North District,810.19
2618533,COMENSURA LTD,22/11/2012,53102,Agency Staff  Other,Children's Services,Children and Family Supp Svs North,"2,066.24"
2618533,COMENSURA LTD,22/11/2012,53102,Agency Staff  Other,Children's Services,Children and Family Supp Svs South,"1,699.04"
2618533,COMENSURA LTD,22/11/2012,53102,Agency Staff  Other,Children's Services,Children and Family Supp Svs West,"2,127.02"
2618533,COMENSURA LTD,22/11/2012,53102,Agency Staff  Other,Children's Services,Disability Serv Family Support Team,570.80
2618533,COMENSURA LTD,22/11/2012,53102,Agency Staff  Other,Children's Services,Oxford Grove CC,"1,079.94"
2618533,COMENSURA LTD,22/11/2012,53102,Agency Staff  Other,Finance Department,Customer Services,"1,536.23"
2618533,COMENSURA LTD,22/11/2012,53102,Agency Staff  Other,Finance Department,Finance Ap Centre of Excellence,678.51
2618533,COMENSURA LTD,22/11/2012,50002,Other Agency/Contracted Services,Finance Department,Housing Benefits,"8,597.94"
2618533,COMENSURA LTD,22/11/2012,53102,Agency Staff  Other,Finance Department,Housing Benefits,"1,268.30"
2618533,COMENSURA LTD,22/11/2012,53102,Agency Staff  Other,Housing GRF,Find a Home,703.44
2618533,COMENSURA LTD,22/11/2012,53102,Agency Staff  Other,Property Services,Operational Facilities Management,"1,806.54"
2618533,COMENSURA LTD,22/11/2012,53102,Agency Staff  Other,Property Services,Projects,"1,807.33"
2618533,COMENSURA LTD,22/11/2012,53102,Agency Staff  Other,Legal Trading,Legal Services Trading Account,"5,080.67"
2612551,COMET BUSINESS SERVICES IN ADMINISTRATION,19/11/2012,40100,Operational Equipment Purchase,Adult Services,OA  Firwood  Residential,565.41
2613134,COMMUNITY CINEMAS LTD,15/11/2012,48501,Artistes Fees,Environmental Services,Albert Halls Entertainment,750.00
2614601,COMPASS HSC LTD,26/11/2012,Z1051,Work in Progress Additions,Development & Regen,Development & Regeneration Capital,550.00
2606063,CONISTON HOUSE CARE HOME,06/11/2012,54301,Residential Provision,Adult Services,OA  External Provision Residential,"3,176.00"
2625829,CONISTON HOUSE CARE HOME,05/12/2012,54301,Residential Provision,Adult Services,OA  External Provision Residential,"3,176.00"
2622297,CONSERVATION CONTRACTS NORTH WEST LTD,29/11/2012,52200,Contracted Services,Environmental Services,Assets,"1,626.22"
2622297,CONSERVATION CONTRACTS NORTH WEST LTD,29/11/2012,Z1051,Work in Progress Additions,Environmental Services,Environmental Services Balance sheet,"1,900.00"
2616494,CONSERVATION CONTRACTS NORTH WEST LTD,19/11/2012,20501,Engineering Work,Environmental Services,Assets,585.65
2622396,CONSERVATION CONTRACTS NORTH WEST LTD,29/11/2012,52200,Contracted Services,Environmental Services,Assets,"1,755.35"
2618921,CONSERVATION CONTRACTS NORTH WEST LTD,26/11/2012,52200,Contracted Services,Environmental Services,Assets,"1,950.78"
2605998,CORNERSTONE TRUST,06/11/2012,54301,Residential Provision,Adult Services,LD Purchaser Residential Care,"18,540.00"
2625765,CORNERSTONE TRUST,05/12/2012,54301,Residential Provision,Adult Services,LD Purchaser Residential Care,"18,540.00"
2625402,CORONA ENERGY RETAIL 4 LIMITED,04/12/2012,21200,Gas  General,Property Services,Admin Buildings  General,"1,878.97"
2609663,COUTTS INFORMATION SERVICES LTD,15/11/2012,40753,Book Fund Expenditure,Finance Department,Libraries Info. Services,"1,627.26"
2616643,COUTTS INFORMATION SERVICES LTD,26/11/2012,40753,Book Fund Expenditure,Finance Department,Libraries Info. Services,"1,401.10"
2611134,CRAEMER UK LTD,12/11/2012,Z1051,Work in Progress Additions,Environmental Services,Environmental Services Balance sheet,"1,569.54"
2624144,CRAEMER UK LTD,24/12/2012,Z1051,Work in Progress Additions,Environmental Services,Environmental Services Balance sheet,"9,827.10"
2624125,CRAEMER UK LTD,24/12/2012,Z1051,Work in Progress Additions,Environmental Services,Environmental Services Balance sheet,"2,928.00"
2624119,CRAEMER UK LTD,04/12/2012,Z1051,Work in Progress Additions,Environmental Services,Environmental Services Balance sheet,"2,190.00"
2627565,CRAEMER UK LTD,06/12/2012,Z1051,Work in Progress Additions,Environmental Services,Environmental Services Balance sheet,"6,935.00"
2613495,CRANLEIGH DESIGN CONSULTANTS LTD,15/11/2012,48509,Other Fees,Development & Regen,The Leisure Trust,"6,222.50"
2622037,CRAVEN ROOFING CONTRACTORS,13/12/2012,46203,Civic Hospitality,Central Services,Mayoralty,"1,640.00"
2619539,CRAVEN ROOFING CONTRACTORS,13/12/2012,46203,Civic Hospitality,Central Services,Mayoralty,"1,380.00"
2615382,CRAVEN ROOFING CONTRACTORS,10/12/2012,20100,Day To Day Maintenance,Children's Services,Tonge CC,620.00
2617854,CREATIVE SUPPORT LTD#3,22/11/2012,52200,Contracted Services,Adult Services,LD Purchaser Supported Housing,"33,725.44"
2617852,CREATIVE SUPPORT LTD#3,22/11/2012,52200,Contracted Services,Adult Services,LD Purchaser Supported Housing,"39,912.92"
2617856,CREATIVE SUPPORT LTD#3,22/11/2012,52200,Contracted Services,Adult Services,LD Purchaser Supported Housing,"23,948.90"
2609599,CREATIVE SUPPORT LTD#3,08/11/2012,52200,Contracted Services,Adult Services,LD Purchaser Supported Housing,"23,948.90"
2609597,CREATIVE SUPPORT LTD#3,08/11/2012,52200,Contracted Services,Adult Services,LD Purchaser Supported Housing,"39,912.92"
2609594,CREATIVE SUPPORT LTD#3,08/11/2012,52200,Contracted Services,Adult Services,LD Purchaser Supported Housing,"33,725.44"
2616493,CREST ENVIRONMENTAL LTD,06/12/2012,20102,Health & Safety,Environmental Services,Depots,"3,190.00"
2619535,CREST ENVIRONMENTAL LTD,04/12/2012,20102,Health & Safety,Property Services,Annual Charge Holding Account,"4,080.00"
2618825,CRIMINAL RECORDS BUREAU#CRB,26/11/2012,48528,CRB Checks  External,Environmental Services,Regulatory Services,"2,772.00"
2612326,CRIMINAL RECORDS BUREAU#CRB,12/11/2012,19400,Disclosure Monitoring,Chief Executives Department,HR  Corporate,"29,946.00"
2616441,CROMWELL POLYTHENE LTD,10/12/2012,Z1051,Work in Progress Additions,Environmental Services,Environmental Services Balance sheet,"18,357.04"
2620500,CROSSROADS CARE IN GREATER MANCHESTER LTD,26/11/2012,52200,Contracted Services,Adult Services,OA  Home Care Services external provision,"5,815.41"
2609602,CROSSROADS CARE IN GREATER MANCHESTER LTD,12/11/2012,52200,Contracted Services,Children's Services,Admin Commissioning,800.33
2623846,CROSSROADS CARE IN GREATER MANCHESTER LTD,04/12/2012,52200,Contracted Services,Children's Services,Admin Commissioning,654.76
2615626,CRYOSERVICE LIMITED,19/11/2012,40100,Operational Equipment Purchase,Development & Regen,BoltonOne Leisure,"1,209.00"
2614407,CTS TRAFFIC & TRANSPORTATION LTD,26/11/2012,48510,Consultancy Fees,Environmental Services,Regulatory Services,"2,349.00"
2612559,D A LANGUAGES LTD,22/11/2012,48509,Other Fees,Children's Services,Child Prot Leaving Care Team,528.00
2610742,D C BUILDERS,19/11/2012,Z1051,Work in Progress Additions,Housing GRF,Capital  General Fund,610.00
2613037,D RATCLIFFE PLUMBING & HEATING LTD,15/11/2012,Z1051,Work in Progress Additions,Housing GRF,Capital  General Fund,833.33
2620035,D2 DIGITAL BY DESIGN LTD#1,29/11/2012,52200,Contracted Services,Adult Services,Drugs Pooled Treatment Budget,"3,500.00"
2615412,DATASPACE,19/11/2012,48506,Records Storage,Legal Trading,Legal Services Trading Account,883.63
2628174,DATASPACE,06/12/2012,48506,Records Storage,Children's Services,Business Support – North District,"1,120.33"
2610215,DAWSONRENTALS BUS AND COACH LTD,15/11/2012,33201,Transport Hire,Environmental Services,Transport Support Service,728.58
2616546,DAWSONRENTALS BUS AND COACH LTD,29/11/2012,33201,Transport Hire,Environmental Services,Transport Support Service,"1,303.58"
2616550,DAWSONRENTALS BUS AND COACH LTD,29/11/2012,33201,Transport Hire,Environmental Services,Transport Support Service,"1,303.58"
2616552,DAWSONRENTALS BUS AND COACH LTD,29/11/2012,33201,Transport Hire,Environmental Services,Transport Support Service,"1,303.58"
2616555,DAWSONRENTALS BUS AND COACH LTD,29/11/2012,33201,Transport Hire,Environmental Services,Transport Support Service,"1,303.58"
2619606,DAWSONRENTALS BUS AND COACH LTD,29/11/2012,33201,Transport Hire,Environmental Services,Transport Support Service,"1,303.58"
2610200,DAWSONRENTALS BUS AND COACH LTD,15/11/2012,33201,Transport Hire,Environmental Services,Transport Support Service,728.58
2613839,DBN LIGHTING LTD,15/11/2012,20405,NonScheduled Work,Environmental Services,Activities and Operations,506.00
2606032,DEANWOOD MANOR CARE HOME,06/11/2012,54302,Nursing Provision,Adult Services,OA  External Provision Residential,"1,518.08"
2625797,DEANWOOD MANOR CARE HOME,05/12/2012,54302,Nursing Provision,Adult Services,OA  External Provision Residential,"1,518.08"
2611465,REDACTED - PERSONAL DATA,15/11/2012,48509,Other Fees,Adult Services,Independent,660.00
2617970,DEFENSIVE DRIVER TRAINING LTD,29/11/2012,19100,Training Exps Tuition Fees,Environmental Services,Transport Support Service,531.25
2613505,DEFENSIVE DRIVER TRAINING LTD,15/11/2012,19100,Training Exps Tuition Fees,Environmental Services,Transport Support Service,531.25
2613540,DEFENSIVE DRIVER TRAINING LTD,22/11/2012,19100,Training Exps Tuition Fees,Environmental Services,Transport Support Service,522.50
2618621,DEFENSIVE DRIVER TRAINING LTD,10/12/2012,19100,Training Exps Tuition Fees,Environmental Services,Transport Support Service,548.75
2616813,DELL CORPORATION LTD,13/12/2012,45400,Computer Purchase,Children's Services,Admin IT (Schools),"6,033.45"
2617462,DENNIS EAGLE LIMITED,26/11/2012,31305,Vehicle Servicing,Environmental Services,Transport Support Service,764.24
2617340,DESIGN SURVEYING PARTNERSHIP LTD,22/11/2012,Z1051,Work in Progress Additions,Property Services,Property Services Balance Sheet,"2,966.85"
2618955,DESTITUTE ANIMAL SHELTER,26/11/2012,52200,Contracted Services,Environmental Services,Activities and Operations,997.50
2612604,DETICA LTD,19/11/2012,45431,Computer Software Licences,Children's Services,ICS Revenue,964.63
2614276,DEVILBISS HEALTHCARE LIMITED,26/11/2012,44051,Clients Aids & Adaptations,Adult Services,ICES,"1,008.00"
2606021,DOLPHINLEE HOUSE,06/11/2012,54301,Residential Provision,Adult Services,OA  External Provision Residential,"1,866.00"
2625788,DOLPHINLEE HOUSE,05/12/2012,54301,Residential Provision,Adult Services,OA  External Provision Residential,"1,866.00"
2618501,DOROTHEA RESTORATIONS LTD,22/11/2012,Z1051,Work in Progress Additions,Environmental Services,Environmental Services Balance sheet,"10,760.05"
2606035,DOUGLAS BANK NURSING HOME#TUDOR BANK LTD,06/11/2012,54302,Nursing Provision,Adult Services,OA  External Provision Residential,"1,906.60"
2625800,DOUGLAS BANK NURSING HOME#TUDOR BANK LTD,05/12/2012,54302,Nursing Provision,Adult Services,OA  External Provision Residential,"1,906.60"
2606019,DOVE COURT RESIDENTIAL & NURSING HOME,06/11/2012,54301,Residential Provision,Adult Services,OA  External Provision Residential,"2,920.00"
2625786,DOVE COURT RESIDENTIAL & NURSING HOME,05/12/2012,54301,Residential Provision,Adult Services,OA  External Provision Residential,"2,920.00"
2606033,DOWNSHAW LODGE,06/11/2012,54302,Nursing Provision,Adult Services,OA  External Provision Residential,"1,960.92"
2625798,DOWNSHAW LODGE,05/12/2012,54302,Nursing Provision,Adult Services,OA  External Provision Residential,"1,960.92"
2616514,DP COLD PLANING LIMITED,26/11/2012,Z6008,Expense AP Accrual,Bolton MBC Balance Sheet,Bolton MBC Balance Sheet,"1,000.00"
2616468,REDACTED - PERSONAL DATA,19/11/2012,55711,Medical Referees Fees,Environmental Services,Bereavement Services,"2,184.00"
2616469,REDACTED - PERSONAL DATA,19/11/2012,55711,Medical Referees Fees,Environmental Services,Bereavement Services,"2,184.00"
2616463,REDACTED - PERSONAL DATA & ASSOCIATES,19/11/2012,48509,Other Fees,Children's Services,Management Team,723.30
2618826,DRS. DIRECT LTD#BIBBY FACTORS LEICESTER LIMITED,22/11/2012,55711,Medical Referees Fees,Chief Executives Department,Occ Health Holding Code,900.00
2618827,DRS. DIRECT LTD#BIBBY FACTORS LEICESTER LIMITED,22/11/2012,55711,Medical Referees Fees,Chief Executives Department,Occ Health Holding Code,900.00
2618829,DRS. DIRECT LTD#BIBBY FACTORS LEICESTER LIMITED,22/11/2012,55711,Medical Referees Fees,Chief Executives Department,Occ Health Holding Code,900.00
2618822,DRS. DIRECT LTD#BIBBY FACTORS LEICESTER LIMITED,22/11/2012,55711,Medical Referees Fees,Chief Executives Department,Occ Health Holding Code,900.00
2618824,DRS. DIRECT LTD#BIBBY FACTORS LEICESTER LIMITED,22/11/2012,55711,Medical Referees Fees,Chief Executives Department,Occ Health Holding Code,900.00
2610757,DS BUILDING SERVICES UK LTD,12/11/2012,44051,Clients Aids & Adaptations,Adult Services,ICES,680.00
2628199,DUGGIE CHAPMAN ASSOCIATES,06/12/2012,48501,Artistes Fees,Environmental Services,Albert Halls Entertainment,"17,500.00"
2628201,DUGGIE CHAPMAN ASSOCIATES,06/12/2012,48501,Artistes Fees,Environmental Services,Albert Halls Entertainment,"17,500.00"
2628203,DUGGIE CHAPMAN ASSOCIATES,06/12/2012,48501,Artistes Fees,Environmental Services,Albert Halls Entertainment,"17,500.00"
2628194,DUGGIE CHAPMAN ASSOCIATES,06/12/2012,48501,Artistes Fees,Environmental Services,Albert Halls Entertainment,"17,500.00"
2628196,DUGGIE CHAPMAN ASSOCIATES,06/12/2012,48501,Artistes Fees,Environmental Services,Albert Halls Entertainment,"17,500.00"
2606361,DUNCAN ROSS LAND DRAINAGE LTD,12/11/2012,20503,Strategic Landscape,Environmental Services,Assets,"1,092.00"
2616402,DURABLE LTD,04/12/2012,20106,Glazing,Property Services,Annual Charge Holding Account,"2,238.54"
2616487,DURABLE LTD,04/12/2012,20106,Glazing,Property Services,Annual Charge Holding Account,"2,881.98"
2616400,DURABLE LTD,04/12/2012,20106,Glazing,Property Services,Annual Charge Holding Account,"2,731.99"
2627026,DUTTON TECH CONSULTING#REDACTED - PERSONAL DATA,04/12/2012,48509,Other Fees,Children's Services,Technical Innovation Centre,"1,050.00"
2619077,DUVAL SECURITY,26/11/2012,44401,Other Security Expenses,Environmental Services,Markets  Rent Account,"2,224.49"
2617846,EASYLINK UK,26/11/2012,44051,Clients Aids & Adaptations,Adult Services,ASC External Funded Schemes,"1,034.25"
2622076,ECCLES CONSTRUCTION,29/11/2012,20100,Day To Day Maintenance,Children's Services,Oldhams CC,676.00
2622075,ECCLES CONSTRUCTION,29/11/2012,20100,Day To Day Maintenance,Children's Services,Harvey CC,875.00
2608640,ECCLES CONSTRUCTION,08/11/2012,20100,Day To Day Maintenance,Environmental Services,Assets,749.54
2615445,ECCLES CONSTRUCTION,19/11/2012,20100,Day To Day Maintenance,Property Services,Queen Street,985.00
2615450,ECCLES CONSTRUCTION,19/11/2012,20100,Day To Day Maintenance,Property Services,New Lane 24,633.29
2606003,ECCLESHOLME,06/11/2012,54301,Residential Provision,Adult Services,OA  External Provision Residential,"1,506.04"
2625770,ECCLESHOLME,05/12/2012,54301,Residential Provision,Adult Services,OA  External Provision Residential,"1,506.04"
2613488,ECE CONSULTANCY LTD,26/11/2012,20500,R & M Cremators,Environmental Services,Bereavement Services,"2,552.00"
2609538,ECON ENGINEERING LIMITED,15/11/2012,52200,Contracted Services,Environmental Services,Transport Support Service,"1,615.51"
2628006,EDUCATION SUPPORT PROFESSIONALS,24/12/2012,53000,Private Contracted Services,Children's Services,Admin IT (Schools),"1,120.00"
2610297,EDUCATION SUPPORT PROFESSIONALS,06/12/2012,53000,Private Contracted Services,Children's Services,Admin IT (Schools),"2,177.00"
2616815,EDUCATION SUPPORT PROFESSIONALS,13/12/2012,53000,Private Contracted Services,Children's Services,Admin IT (Schools),"1,134.00"
2606409,ELECTRICITY NORTH WEST LIMITED#UNITED UTILITIES ELECTRICITY SERVICES LTD,05/11/2012,Z1051,Work in Progress Additions,Highways,Stores,609.99
2606411,ELECTRICITY NORTH WEST LIMITED#UNITED UTILITIES ELECTRICITY SERVICES LTD,05/11/2012,Z1051,Work in Progress Additions,Highways,Stores,609.99
2606414,ELECTRICITY NORTH WEST LIMITED#UNITED UTILITIES ELECTRICITY SERVICES LTD,05/11/2012,Z1051,Work in Progress Additions,Highways,Stores,609.99
2606417,ELECTRICITY NORTH WEST LIMITED#UNITED UTILITIES ELECTRICITY SERVICES LTD,05/11/2012,Z1051,Work in Progress Additions,Highways,Stores,609.99
2606418,ELECTRICITY NORTH WEST LIMITED#UNITED UTILITIES ELECTRICITY SERVICES LTD,05/11/2012,Z1051,Work in Progress Additions,Highways,Stores,609.99
2606419,ELECTRICITY NORTH WEST LIMITED#UNITED UTILITIES ELECTRICITY SERVICES LTD,05/11/2012,Z1051,Work in Progress Additions,Highways,Stores,609.99
2606420,ELECTRICITY NORTH WEST LIMITED#UNITED UTILITIES ELECTRICITY SERVICES LTD,05/11/2012,Z1051,Work in Progress Additions,Highways,Stores,609.99
2606398,ELECTRICITY NORTH WEST LIMITED#UNITED UTILITIES ELECTRICITY SERVICES LTD,05/11/2012,Z1051,Work in Progress Additions,Highways,Stores,609.99
2613876,ELECTRICITY NORTH WEST LIMITED#UNITED UTILITIES ELECTRICITY SERVICES LTD,06/12/2012,Z1051,Work in Progress Additions,Highways,Stores,"40,031.13"
2611315,ELECTRICITY NORTH WEST LIMITED#UNITED UTILITIES ELECTRICITY SERVICES LTD,06/12/2012,Z1051,Work in Progress Additions,Highways,Stores,609.99
2611362,ELECTRICITY NORTH WEST LIMITED#UNITED UTILITIES ELECTRICITY SERVICES LTD,06/12/2012,Z1051,Work in Progress Additions,Highways,Stores,609.99
2611363,ELECTRICITY NORTH WEST LIMITED#UNITED UTILITIES ELECTRICITY SERVICES LTD,06/12/2012,Z1051,Work in Progress Additions,Highways,Stores,609.99
2624384,ELECTRICITY NORTH WEST LIMITED#UNITED UTILITIES ELECTRICITY SERVICES LTD,06/12/2012,20501,Engineering Work,Environmental Services,Highway Services,610.70
2611378,ELECTRICITY NORTH WEST LIMITED#UNITED UTILITIES ELECTRICITY SERVICES LTD,06/12/2012,20501,Engineering Work,Environmental Services,Highway Services,609.99
2615496,ELECTRICITY NORTH WEST LIMITED#UNITED UTILITIES ELECTRICITY SERVICES LTD,06/12/2012,20501,Engineering Work,Environmental Services,Highway Services,609.99
2615499,ELECTRICITY NORTH WEST LIMITED#UNITED UTILITIES ELECTRICITY SERVICES LTD,06/12/2012,20501,Engineering Work,Environmental Services,Highway Services,609.99
2615501,ELECTRICITY NORTH WEST LIMITED#UNITED UTILITIES ELECTRICITY SERVICES LTD,06/12/2012,20501,Engineering Work,Environmental Services,Highway Services,609.99
2605985,ELLERSHAW HOUSE LTD,06/11/2012,54301,Residential Provision,Adult Services,LD Purchaser Residential Care,"9,098.36"
2625754,ELLERSHAW HOUSE LTD,05/12/2012,54301,Residential Provision,Adult Services,LD Purchaser Residential Care,"9,098.36"
2606031,ELLERSLIE COURT#VITALISE,06/11/2012,54301,Residential Provision,Adult Services,PD Purchaser Residential Care,"2,722.32"
2625796,ELLERSLIE COURT#VITALISE,05/12/2012,54301,Residential Provision,Adult Services,PD Purchaser Residential Care,"2,722.32"
2613386,EMB CONSULTANTS LTD,15/11/2012,Z1051,Work in Progress Additions,Environmental Services,Environmental Services Balance sheet,"1,000.00"
2623396,EMINOX LTD,06/12/2012,31305,Vehicle Servicing,Environmental Services,Transport Support Service,"1,231.60"
2611355,EMMA LYNCH LTD,12/11/2012,48509,Other Fees,Adult Services,Independent,819.00
2613504,EMO OIL LTD#WAS SHELL OIL,15/11/2012,21203,Fuel Oil  General,Environmental Services,Heaton Fold,"2,084.79"
2613487,ENGINEERING SERVICE CO,15/11/2012,20100,Day To Day Maintenance,Development & Regen,The Leisure Trust,"1,165.52"
2609416,ENGINEERING SERVICE CO,08/11/2012,20300,Heating & Electrical Work,Property Services,CED Admin BuildBow St Storage,606.00
2615482,ENGINEERING SERVICE CO,19/11/2012,20100,Day To Day Maintenance,Property Services,Alderbank EPH,"2,110.95"
2620488,ENGLISH CHURCHES HOUSING GROUP#4,26/11/2012,52200,Contracted Services,Adult Services,Supporting People  Capital Financing,"7,266.95"
2614309,ENLIGHTKS LTD#ENLIGHT (GB) LTD,29/11/2012,Z1051,Work in Progress Additions,Adult Services,Adult Services Balance Sheet,"1,936.70"
2605975,EPWORTH GRANGE,06/11/2012,54301,Residential Provision,Adult Services,OA  External Provision Residential,"3,230.48"
2625745,EPWORTH GRANGE,05/12/2012,54301,Residential Provision,Adult Services,OA  External Provision Residential,"3,230.48"
2609469,REDACTED - PERSONAL DATA,08/11/2012,48502,Legal Fees,Children's Services,Management Team,"1,950.00"
2621331,EUROMEDIA ASSOCIATES LIMITED,26/11/2012,48203,Marketing,Central Services,Marketing  General,585.00
2610007,EVAC & CHAIR INTERNATIONAL LTD,06/12/2012,40106,Op Equip Health & Safety,Children's Services,Castle Hill Youth Club,674.00
2617819,EXPERIAN LIMITED#T/A FOOTFALL LTD,29/11/2012,48631,Office Expenses  General,Finance Department,Council Tax,"3,356.00"
2609918,F R SHARROCK LTD#SHARROCKS,15/11/2012,40102,Operational Equipment Rental,Environmental Services,Activities and Operations,"16,798.10"
2609918,F R SHARROCK LTD#SHARROCKS,15/11/2012,40102,Operational Equipment Rental,Environmental Services,Bereavement Services,858.34
2622749,F R SHARROCK LTD#SHARROCKS,29/11/2012,40101,Operational Equipment Maint,Environmental Services,Activities and Operations,873.81
2610738,F R SHARROCK LTD#SHARROCKS,20/12/2012,40102,Operational Equipment Rental,Environmental Services,Activities and Operations,"1,680.00"
2619524,F R SHARROCK LTD#SHARROCKS,04/12/2012,40101,Operational Equipment Maint,Environmental Services,Activities and Operations,599.28
2609452,FAUN ZOELLER (UK) LTD,15/11/2012,31305,Vehicle Servicing,Environmental Services,Transport Support Service,"2,256.00"
2619467,FAUN ZOELLER (UK) LTD,26/11/2012,31305,Vehicle Servicing,Environmental Services,Transport Support Service,"1,265.81"
2619593,FAUN ZOELLER (UK) LTD,29/11/2012,31305,Vehicle Servicing,Environmental Services,Transport Support Service,"1,361.95"
2628219,FIBROUS LIMITED,06/12/2012,40601,General Materials,Environmental Services,Bereavement Services,889.00
2613083,FIRST CALL COMMUNITY SYSTEMS LTD T/A SURECARE,15/11/2012,52200,Contracted Services,Adult Services,OA  Home Care Services external provision,"15,315.05"
2616333,FIRST MANCHESTER LTD & FIRST TRANSFORMING TRAVEL,29/11/2012,34401,Clients  Bus Fares,Development & Regen,The Work Programme,640.50
2620537,FIRSTCALL HEALTHCARE#PASSHALL LTD,26/11/2012,52200,Contracted Services,Adult Services,OA  Home Care Services external provision,"45,353.13"
2612412,FISCHER EDUCATION PROJECT LTD#FISCHER FAMILY TRUST,12/11/2012,48509,Other Fees,Children's Services,Income – Teaching & Learning CPD,"1,300.00"
2606394,FLASHLIGHT LIMITED,05/11/2012,40100,Operational Equipment Purchase,Environmental Services,Albert Halls  Operations,"1,229.92"
2613072,FLEMING TECHNICAL LTD,26/11/2012,40601,General Materials,Environmental Services,Transport Support Service,"1,299.00"
2624221,FLOORSTOCK LTD,24/12/2012,26000,Cleaning Materials,Environmental Services,Building Cleaning,"1,054.43"
2620177,FORTALICE LTD#BOLTON WOMENS AID,26/11/2012,52200,Contracted Services,Adult Services,Supporting People  Capital Financing,"17,254.06"
2616521,FOSTER CARES LTD#RESOURCE PARTNERS SPV LIMITED,26/11/2012,52000,Vol Assoc Grants  General,Children's Services,Res Serv Agency Placements,"1,320.00"
2609655,FOSTER CARES LTD#RESOURCE PARTNERS SPV LIMITED,15/11/2012,52000,Vol Assoc Grants  General,Children's Services,Res Serv Agency Placements,"1,320.00"
2622378,FOSTER CARES LTD#RESOURCE PARTNERS SPV LIMITED,04/12/2012,52000,Vol Assoc Grants  General,Children's Services,Res Serv Agency Placements,"1,320.00"
2612576,FOSTERING NETWORK,19/11/2012,48509,Other Fees,Children's Services,Regional Activities,"4,675.47"
2605927,FOUR SEASONS NURSING HOME,06/11/2012,54302,Nursing Provision,Adult Services,LD Purchaser Residential Care,"1,544.08"
2605927,FOUR SEASONS NURSING HOME,06/11/2012,54301,Residential Provision,Adult Services,MH Residential External Provision,"1,544.08"
2605927,FOUR SEASONS NURSING HOME,06/11/2012,54301,Residential Provision,Adult Services,OA  External Provision Residential,"21,597.44"
2605927,FOUR SEASONS NURSING HOME,06/11/2012,54302,Nursing Provision,Adult Services,OA  External Provision Residential,"36,772.88"
2605927,FOUR SEASONS NURSING HOME,06/11/2012,54301,Residential Provision,Adult Services,PD Purchaser Residential Care,"4,632.24"
2605926,FOUR SEASONS NURSING HOME,06/11/2012,54301,Residential Provision,Adult Services,OA  External Provision Residential,"1,709.52"
2625699,FOUR SEASONS NURSING HOME,05/12/2012,54301,Residential Provision,Adult Services,OA  External Provision Residential,"6,959.43"
2625700,FOUR SEASONS NURSING HOME,05/12/2012,54302,Nursing Provision,Adult Services,LD Purchaser Residential Care,"1,544.08"
2625700,FOUR SEASONS NURSING HOME,05/12/2012,54301,Residential Provision,Adult Services,MH Residential External Provision,"1,544.08"
2625700,FOUR SEASONS NURSING HOME,05/12/2012,54301,Residential Provision,Adult Services,OA  External Provision Residential,"29,747.94"
2625700,FOUR SEASONS NURSING HOME,05/12/2012,54302,Nursing Provision,Adult Services,OA  External Provision Residential,"39,780.08"
2625700,FOUR SEASONS NURSING HOME,05/12/2012,54301,Residential Provision,Adult Services,PD Purchaser Residential Care,"4,632.24"
2609479,REDACTED - PERSONAL DATA,08/11/2012,93120,Refunds,Environmental Services,Trade Waste,575.89
2609379,FREEDOM MANUFACTURING LTD,15/11/2012,44051,Clients Aids & Adaptations,Adult Services,ICES,"1,782.50"
2622697,FREEDOM MANUFACTURING LTD,29/11/2012,44051,Clients Aids & Adaptations,Adult Services,ICES,620.00
2619519,FUCHS LUBRICANTS (UK) PLC,26/11/2012,31305,Vehicle Servicing,Environmental Services,Transport Support Service,"3,268.20"
2610062,FUJITSU SERVICES LIMITED,12/11/2012,Z1051,Work in Progress Additions,Finance Department,Finance Balance Sheet,"15,094.46"
2608188,FUJITSU SERVICES LIMITED,08/11/2012,45401,Computer Maintenance,Finance Department,Bolton at Home Recharges,"2,307.65"
2609648,FUJITSU SERVICES LIMITED,19/11/2012,45430,Computer Software,Environmental Services,Regulatory Services,588.70
2613116,FUJITSU SERVICES LIMITED,15/11/2012,45401,Computer Maintenance,Finance Department,Bolton at Home Recharges,"20,033.68"
2623332,FUJITSU SERVICES LIMITED,06/12/2012,45430,Computer Software,Environmental Services,Regulatory Services,978.71
2610064,G4S CASH SOLUTIONS,06/12/2012,44402,Security Cash Collection,Finance Department,CSD Cashiers,833.99
2622262,G4S CASH SOLUTIONS,06/12/2012,44402,Security Cash Collection,Finance Department,CSD Cashiers,"5,351.07"
2608126,GAG REFLEX LTD,08/11/2012,48501,Artistes Fees,Environmental Services,Albert Halls Entertainment,800.00
2628075,GAG REFLEX LTD,06/12/2012,48501,Artistes Fees,Environmental Services,Albert Halls Entertainment,780.00
2628118,REDACTED - PERSONAL DATA,06/12/2012,48509,Other Fees,Finance Department,Collections Access MUS,525.00
2618078,GARIC LTD,29/11/2012,33201,Transport Hire,Environmental Services,Transport Support Service,729.00
2613453,GASKELL MCDOWALL CONSTRUCTION,15/11/2012,Z1051,Work in Progress Additions,Property Services,Corporate Property Capital Project Transfers to Other Projects,"267,875.73"
2615457,GATENBYSANDERSON,19/11/2012,48510,Consultancy Fees,Adult Services,AD Departmental Management Team,"12,000.00"
2614040,GEMINI (NORTHERN) LIMITED,22/11/2012,Z6008,Expense AP Accrual,Bolton MBC Balance Sheet,Bolton MBC Balance Sheet,864.00
2608111,GEORGE COX & SONS LTD,08/11/2012,Z1051,Work in Progress Additions,Environmental Services,Environmental Services Balance sheet,"9,769.71"
2606062,GHS BROOKDALE,06/11/2012,54301,Residential Provision,Adult Services,OA  External Provision Residential,"1,574.44"
2625828,GHS BROOKDALE,05/12/2012,54301,Residential Provision,Adult Services,OA  External Provision Residential,"1,574.44"
2606064,GLEN ROSA & KITWOOD HOUSE,06/11/2012,54301,Residential Provision,Adult Services,OA  External Provision Residential,"1,700.72"
2625830,GLEN ROSA & KITWOOD HOUSE,05/12/2012,54301,Residential Provision,Adult Services,OA  External Provision Residential,"1,700.72"
2605928,GLENBANK CARE HOME LTD,06/11/2012,54301,Residential Provision,Adult Services,OA  External Provision Residential,"14,701.86"
2605928,GLENBANK CARE HOME LTD,06/11/2012,54301,Residential Provision,Adult Services,PD Purchaser Residential Care,"1,522.96"
2625701,GLENBANK CARE HOME LTD,05/12/2012,54301,Residential Provision,Adult Services,OA  External Provision Residential,"14,307.00"
2625701,GLENBANK CARE HOME LTD,05/12/2012,54301,Residential Provision,Adult Services,PD Purchaser Residential Care,"1,522.96"
2605980,GLENHOMES REST HOME,06/11/2012,54301,Residential Provision,Adult Services,OA  External Provision Residential,"15,292.96"
2605979,GLENHOMES REST HOME,06/11/2012,54301,Residential Provision,Adult Services,OA  External Provision Residential,"1,794.92"
2625750,GLENHOMES REST HOME,05/12/2012,54301,Residential Provision,Adult Services,OA  External Provision Residential,"16,815.92"
2607328,G-MAP SERVICES LTD,05/11/2012,52000,Vol Assoc Grants  General,Children's Services,Res Serv Agency Placements,756.00
2622280,G-MAP SERVICES LTD,04/12/2012,52000,Vol Assoc Grants  General,Children's Services,Res Serv Agency Placements,"3,024.00"
2605930,GORSEY CLOUGH NURSING HOME LTD,06/11/2012,54301,Residential Provision,Adult Services,OA  External Provision Residential,"1,615.24"
2605930,GORSEY CLOUGH NURSING HOME LTD,06/11/2012,54302,Nursing Provision,Adult Services,OA  External Provision Residential,"12,921.92"
2625702,GORSEY CLOUGH NURSING HOME LTD,05/12/2012,54301,Residential Provision,Adult Services,OA  External Provision Residential,"1,615.24"
2625702,GORSEY CLOUGH NURSING HOME LTD,05/12/2012,54302,Nursing Provision,Adult Services,OA  External Provision Residential,"12,921.92"
2613048,REDACTED - PERSONAL DATA,15/11/2012,Z1051,Work in Progress Additions,Housing GRF,Capital  General Fund,"10,000.00"
2605932,GRANGE LEA RESIDENTIAL CARE HOME LTD,06/11/2012,54301,Residential Provision,Adult Services,OA  External Provision Residential,"24,211.25"
2625703,GRANGE LEA RESIDENTIAL CARE HOME LTD,05/12/2012,54301,Residential Provision,Adult Services,OA  External Provision Residential,924.11
2625704,GRANGE LEA RESIDENTIAL CARE HOME LTD,05/12/2012,54301,Residential Provision,Adult Services,OA  External Provision Residential,"24,466.17"
2608732,GREAT LEVER BUILDERS,08/11/2012,Z1051,Work in Progress Additions,Housing GRF,Capital  General Fund,"4,658.00"
2620191,GREAT PLACES HOUSING ASSOCIATION,26/11/2012,52200,Contracted Services,Adult Services,Supporting People  Capital Financing,"17,925.29"
2612456,GREAT PLACES HOUSING ASSOCIATION,19/11/2012,52210,Contracted Services  Rental Voids,Adult Services,LD Purchaser Supported Housing,610.32
2609640,GREENBOOTH CONSTRUCTION CO LTD,08/11/2012,20501,Engineering Work,Environmental Services,Lighting / Stores Billable Costs,"1,022.26"
2609645,GREENBOOTH CONSTRUCTION CO LTD,08/11/2012,20501,Engineering Work,Environmental Services,Lighting / Stores Billable Costs,680.00
2609639,GREENBOOTH CONSTRUCTION CO LTD,08/11/2012,20501,Engineering Work,Environmental Services,Lighting / Stores Billable Costs,"1,599.70"
2625869,GREENLANDS RESIDENTIAL HOME LTD,05/12/2012,54301,Residential Provision,Adult Services,OA  External Provision Residential,652.70
2625870,GREENLANDS RESIDENTIAL HOME LTD,05/12/2012,54301,Residential Provision,Adult Services,OA  External Provision Residential,"23,049.36"
2606016,GREENLANDS RESIDENTIAL HOME#REDACTED - PERSONAL DATA,06/11/2012,54301,Residential Provision,Adult Services,OA  External Provision Residential,"22,057.75"
2606015,GREENLANDS RESIDENTIAL HOME#REDACTED - PERSONAL DATA,06/11/2012,54301,Residential Provision,Adult Services,OA  External Provision Residential,652.70
2618488,GREENSIDE ONLINE,22/11/2012,48629,Miscellaneous Expenses,Adult Services,"AD Finance, Income & Assess. Team",763.60
2628222,GROSVENOR STATIONERY CO (PRESTON) LTD,06/12/2012,43032,Office Stationery,Finance Department,Housing Benefits,"1,028.00"
2609378,GT CLEANING MACHINES LTD,15/11/2012,26001,Hygiene Requisite,Environmental Services,Markets  Rent Account,"4,032.00"
2610236,GULLIVERS TRUCK HIRE LTD,15/11/2012,33201,Transport Hire,Environmental Services,Transport Support Service,"2,750.00"
2611160,REDACTED - PERSONAL DATA T/A BOLTON BLACK CAB,12/11/2012,33201,Transport Hire,Environmental Services,SNT Adult Servs,"1,008.00"
2609905,H COMPSTY & SON LTD#2,08/11/2012,40101,Operational Equipment Maint,Central Corporate,Bolton Sports Village,"13,580.00"
2605960,HAIGHFIELD NURSING HOME,06/11/2012,54302,Nursing Provision,Adult Services,OA  External Provision Residential,"1,494.08"
2625731,HAIGHFIELD NURSING HOME,05/12/2012,54302,Nursing Provision,Adult Services,OA  External Provision Residential,"1,494.08"
2620193,HANOVER HOUSING ASSOCIATION#2,26/11/2012,52200,Contracted Services,Adult Services,Supporting People  Capital Financing,"2,088.42"
2606025,HARBOUR CLOSE,06/11/2012,54301,Residential Provision,Adult Services,PD Purchaser Residential Care,"3,877.88"
2625791,HARBOUR CLOSE,05/12/2012,54301,Residential Provision,Adult Services,PD Purchaser Residential Care,"3,877.88"
2613043,HARWOOD HEATING SERVICES LTD,15/11/2012,Z1051,Work in Progress Additions,Housing GRF,Capital  General Fund,"1,666.66"
2605981,HAZELBROOK CHRISTIAN NURSING HOME,06/11/2012,54301,Residential Provision,Adult Services,OA  External Provision Residential,"1,500.00"
2605981,HAZELBROOK CHRISTIAN NURSING HOME,06/11/2012,54302,Nursing Provision,Adult Services,OA  External Provision Residential,"3,161.12"
2625751,HAZELBROOK CHRISTIAN NURSING HOME,05/12/2012,54301,Residential Provision,Adult Services,OA  External Provision Residential,"1,500.00"
2625751,HAZELBROOK CHRISTIAN NURSING HOME,05/12/2012,54302,Nursing Provision,Adult Services,OA  External Provision Residential,"3,161.12"
2628138,HEADSTART MINIBUS#REDACTED - PERSONAL DATA,06/12/2012,34402,Clients  Taxi Fares,Environmental Services,SNT Childrens Servs,540.00
2614537,HEARING PRODUCTS INTERNATIONAL LIMITED,26/11/2012,44051,Clients Aids & Adaptations,Adult Services,ICES,709.50
2623383,HEARING PRODUCTS INTERNATIONAL LIMITED,06/12/2012,44051,Clients Aids & Adaptations,Adult Services,ICES,732.50
2623851,HEARTLIFT#ANDREA WOOD,04/12/2012,52200,Contracted Services,Children's Services,Admin Commissioning,"3,808.00"
2623853,HEARTLIFT#ANDREA WOOD,04/12/2012,52200,Contracted Services,Children's Services,Admin Commissioning,"7,200.00"
2610904,HELPING HAND CO (LEDBURY) LTD,15/11/2012,44051,Clients Aids & Adaptations,Adult Services,ICES,"3,076.00"
2605933,HENSHAWS SOCIETY FOR THE BLIND,06/11/2012,54301,Residential Provision,Adult Services,PD Purchaser Residential Care,"2,946.72"
2625705,HENSHAWS SOCIETY FOR THE BLIND,05/12/2012,54301,Residential Provision,Adult Services,PD Purchaser Residential Care,"2,946.72"
2606040,HIGHCLIFFE RESIDENTIAL HOME#TEAMCARE LTD,06/11/2012,54301,Residential Provision,Adult Services,OA  External Provision Residential,"1,682.00"
2625805,HIGHCLIFFE RESIDENTIAL HOME#TEAMCARE LTD,05/12/2012,54301,Residential Provision,Adult Services,OA  External Provision Residential,"1,682.00"
2605958,HILLCREST,06/11/2012,54301,Residential Provision,Adult Services,OA  External Provision Residential,"1,679.28"
2625729,HILLCREST,05/12/2012,54301,Residential Provision,Adult Services,OA  External Provision Residential,"1,679.28"
2606034,HILLCREST VERNON,06/11/2012,54301,Residential Provision,Adult Services,LD Purchaser Residential Care,"4,870.72"
2625799,HILLCREST VERNON,05/12/2012,54301,Residential Provision,Adult Services,LD Purchaser Residential Care,"4,870.72"
2606089,HILLVIEW CARE HOME,06/11/2012,54301,Residential Provision,Adult Services,OA  External Provision Residential,"3,364.00"
2625856,HILLVIEW CARE HOME,05/12/2012,54301,Residential Provision,Adult Services,OA  External Provision Residential,"3,364.00"
2614281,HILMAY HYGIENE SUPPLIES LTD,26/11/2012,26000,Cleaning Materials,Environmental Services,Building Cleaning,902.50
2625291,HILTON TABLE TENNIS CENTRE,04/12/2012,47103,Miscellaneous Grants,Chief Executives Department,Neighbourhood Mgt and Area Working Devolved,"1,530.12"
2617924,HOLGATE HOUSE LIMITED,04/12/2012,54301,Residential Provision,Adult Services,Drugs Rehab Budget,"1,842.29"
2617928,HOLGATE HOUSE LIMITED,04/12/2012,54301,Residential Provision,Adult Services,Alcohol Rehab Budget,"1,126.43"
2618010,HOLGATE HOUSE LIMITED,04/12/2012,54301,Residential Provision,Adult Services,Alcohol Rehab Budget,"1,834.43"
2605938,HOLLANDS NURSING HOME,06/11/2012,54301,Residential Provision,Adult Services,LD Purchaser Residential Care,"1,697.28"
2605938,HOLLANDS NURSING HOME,06/11/2012,54301,Residential Provision,Adult Services,MH Residential External Provision,"11,909.36"
2605938,HOLLANDS NURSING HOME,06/11/2012,54302,Nursing Provision,Adult Services,MH Residential External Provision,"8,508.40"
2605938,HOLLANDS NURSING HOME,06/11/2012,54301,Residential Provision,Adult Services,OA  External Provision Residential,"3,045.92"
2605938,HOLLANDS NURSING HOME,06/11/2012,54301,Residential Provision,Adult Services,PD Purchaser Residential Care,"3,422.96"
2605938,HOLLANDS NURSING HOME,06/11/2012,54302,Nursing Provision,Adult Services,PD Purchaser Residential Care,"4,032.00"
2625710,HOLLANDS NURSING HOME,05/12/2012,54301,Residential Provision,Adult Services,LD Purchaser Residential Care,"1,697.28"
2625710,HOLLANDS NURSING HOME,05/12/2012,54301,Residential Provision,Adult Services,MH Residential External Provision,"11,909.36"
2625710,HOLLANDS NURSING HOME,05/12/2012,54302,Nursing Provision,Adult Services,MH Residential External Provision,"8,508.40"
2625710,HOLLANDS NURSING HOME,05/12/2012,54301,Residential Provision,Adult Services,OA  External Provision Residential,"3,045.92"
2625710,HOLLANDS NURSING HOME,05/12/2012,54301,Residential Provision,Adult Services,PD Purchaser Residential Care,"3,422.96"
2625710,HOLLANDS NURSING HOME,05/12/2012,54302,Nursing Provision,Adult Services,PD Purchaser Residential Care,"4,032.00"
2619033,HOLTWOOD HOUSE#FACTOR ARC ADVENTURE (BURY) LTD,29/11/2012,52000,Vol Assoc Grants  General,Children's Services,Disability Serv External Provision,"10,923.58"
2620701,HOME CARE FOR YOU LTD,26/11/2012,52200,Contracted Services,Adult Services,OA  Home Care Services external provision,"12,976.02"
2620700,HOME CARE FOR YOU LTD,26/11/2012,52200,Contracted Services,Adult Services,OA  Home Care Services external provision,"11,013.32"
2613087,HOMECARE SUPPORT,15/11/2012,52200,Contracted Services,Adult Services,OA  Home Care Services external provision,"41,735.61"
2613089,HOMECARE SUPPORT,15/11/2012,52200,Contracted Services,Adult Services,OA  Home Care Services external provision,"24,006.15"
2626329,HOMECARE SUPPORT,04/12/2012,52200,Contracted Services,Adult Services,OA  Home Care Services external provision,"1,188.56"
2626328,HOMECARE SUPPORT,04/12/2012,52200,Contracted Services,Adult Services,OA  Home Care Services external provision,"1,516.96"
2626326,HOMECARE SUPPORT,04/12/2012,52200,Contracted Services,Adult Services,OA  Home Care Services external provision,"1,371.44"
2606047,HOMELEA RESIDENTIAL CARE HOME,06/11/2012,54301,Residential Provision,Adult Services,OA  External Provision Residential,"1,772.12"
2625811,HOMELEA RESIDENTIAL CARE HOME,05/12/2012,54301,Residential Provision,Adult Services,OA  External Provision Residential,"1,772.12"
2611186,HORWICH PRIVATE HIRE LINK LIMITED,12/11/2012,34402,Clients  Taxi Fares,Environmental Services,SNT Childrens Servs,"2,110.90"
2606552,HORWICH PRIVATE HIRE LTD,05/11/2012,34402,Clients  Taxi Fares,Environmental Services,SNT Childrens Servs,"2,023.20"
2618470,HURSTWOOD PROPERTIES(R) LIMITED,22/11/2012,48509,Other Fees,Property Services,Estates & Property Management,"1,500.00"
2613744,HURSTWOOD PROPERTIES(R) LIMITED,15/11/2012,48509,Other Fees,Property Services,Estates & Property Management,694.30
2605924,HYDE  LEA,06/11/2012,54301,Residential Provision,Adult Services,OA  External Provision Residential,"1,030.49"
2605925,HYDE  LEA,06/11/2012,54301,Residential Provision,Adult Services,OA  External Provision Residential,"22,170.24"
2625698,HYDE  LEA,05/12/2012,54301,Residential Provision,Adult Services,OA  External Provision Residential,"22,170.24"
2611197,I K CARS#REDACTED - PERSONAL DATA,12/11/2012,33201,Transport Hire,Environmental Services,SNT Adult Servs,"1,378.20"
2611189,REDACTED - PERSONAL DATA,12/11/2012,33201,Transport Hire,Environmental Services,SNT Adult Servs,"1,338.20"
2611193,REDACTED - PERSONAL DATA#SENTINEL,12/11/2012,33201,Transport Hire,Environmental Services,SNT Adult Servs,"1,530.00"
2614346,IDOX SOFTWARE LTD,29/11/2012,45431,Computer Software Licences,Development & Regen,Spatial Data  from GIS,"17,454.55"
2612519,IDOX SOFTWARE LTD,22/11/2012,45401,Computer Maintenance,Development & Regen,D&R Building NonTrading,"3,250.00"
2612519,IDOX SOFTWARE LTD,22/11/2012,45401,Computer Maintenance,Development & Regen,Development Management,"3,250.00"
2611195,IFTIKHAR CAB#REDACTED - PERSONAL DATA,12/11/2012,33201,Transport Hire,Environmental Services,SNT Adult Servs,"1,149.00"
2611060,IMAGES BY JULIE#REDACTED - PERSONAL DATA,12/11/2012,48203,Marketing,Central Services,Marketing  General,"1,015.29"
2614351,IMPRESSION (BOLTON) LIMITED#1,15/11/2012,48203,Marketing,Central Services,Marketing  General,"1,300.00"
2623374,IMPRESSION (BOLTON) LIMITED#1,04/12/2012,48203,Marketing,Central Services,Marketing  General,945.00
2611163,INDEPENDENT BUSINESS SERVICES LTD,20/12/2012,48509,Other Fees,Children's Services,Special Needs Unit,561.00
2625868,INNAGE GRANGE,05/12/2012,54302,Nursing Provision,Adult Services,OA  External Provision Residential,880.88
2617861,INTEGRATE (PRESTON & CHORLEY) LTD,29/11/2012,52200,Contracted Services,Adult Services,LD Purchaser Supported Housing,"5,719.16"
2615533,INTERIOR PARTNERS LTD,19/11/2012,Z1051,Work in Progress Additions,Property Services,Property Services Balance Sheet,"4,474.00"
2606363,IPSOS MORI NORTH#MORI LTD,05/11/2012,52200,Contracted Services,Adult Services,AD Performance Mgmnt,"10,412.50"
2620196,IRWELL VALLEY HOUSING ASSOCIATION,26/11/2012,52200,Contracted Services,Adult Services,Supporting People  Capital Financing,"17,257.17"
2611161,REDACTED - PERSONAL DATA#LADYBRIDGE PRIVATE HIRE,12/11/2012,33201,Transport Hire,Environmental Services,SNT Adult Servs,"7,037.50"
2609626,J A TYRE SERVICE LTD,08/11/2012,31303,Tyres,Environmental Services,Transport Support Service,727.12
2620023,J A TYRE SERVICE LTD,26/11/2012,31303,Tyres,Environmental Services,Transport Support Service,766.95
2620028,J A TYRE SERVICE LTD,26/11/2012,31303,Tyres,Environmental Services,Transport Support Service,666.52
2620043,J A TYRE SERVICE LTD,26/11/2012,31303,Tyres,Environmental Services,Transport Support Service,529.90
2616393,J DICKINSON & SONS (HORWICH) LTD#2,19/11/2012,20501,Engineering Work,Environmental Services,Buildings,540.00
2623314,J DICKINSON & SONS (HORWICH) LTD#2,29/11/2012,26106,Refuse Collection,Environmental Services,Activities and Operations,949.42
2622221,J DICKINSON & SONS (HORWICH) LTD#2,29/11/2012,33202,Plant Hire,Environmental Services,Activities and Operations,"2,377.35"
2622211,J DICKINSON & SONS (HORWICH) LTD#2,29/11/2012,40601,General Materials,Environmental Services,Activities and Operations,990.00
2618922,J DICKINSON & SONS (HORWICH) LTD#2,22/11/2012,52200,Contracted Services,Environmental Services,Activities and Operations,696.19
2618923,J DICKINSON & SONS (HORWICH) LTD#2,22/11/2012,52200,Contracted Services,Environmental Services,Activities and Operations,566.28
2618924,J DICKINSON & SONS (HORWICH) LTD#2,22/11/2012,52200,Contracted Services,Environmental Services,Activities and Operations,"1,872.90"
2618948,J DICKINSON & SONS (HORWICH) LTD#2,26/11/2012,52200,Contracted Services,Environmental Services,Activities and Operations,700.49
2618950,J DICKINSON & SONS (HORWICH) LTD#2,26/11/2012,52200,Contracted Services,Environmental Services,Activities and Operations,"1,177.42"
2618776,J DICKINSON & SONS (HORWICH) LTD#2,22/11/2012,52200,Contracted Services,Environmental Services,Activities and Operations,808.00
2618777,J DICKINSON & SONS (HORWICH) LTD#2,22/11/2012,52200,Contracted Services,Environmental Services,Activities and Operations,846.00
2622387,J DICKINSON & SONS (HORWICH) LTD#2,29/11/2012,48629,Miscellaneous Expenses,Environmental Services,Activities and Operations,500.00
2617922,J DICKINSON & SONS (HORWICH) LTD#2,22/11/2012,40601,General Materials,Environmental Services,Bereavement Services,632.50
2617828,J DICKINSON & SONS (HORWICH) LTD#2,22/11/2012,20501,Engineering Work,Environmental Services,Highways Maintenance Billable Costs,"1,122.96"
2617905,J DICKINSON & SONS (HORWICH) LTD#2,22/11/2012,20501,Engineering Work,Environmental Services,Highways Managers,"1,827.51"
2617908,J DICKINSON & SONS (HORWICH) LTD#2,22/11/2012,20501,Engineering Work,Environmental Services,Highways Managers,"1,178.69"
2624397,J DICKINSON & SONS (HORWICH) LTD#2,04/12/2012,40610,Direct Materials,Environmental Services,Highway Services,"5,077.30"
2627794,J DICKINSON & SONS (HORWICH) LTD#2,04/12/2012,26106,Refuse Collection,Environmental Services,Markets  Rent Account,629.20
2627662,J DICKINSON & SONS (HORWICH) LTD#2,04/12/2012,52200,Contracted Services,Environmental Services,Activities and Operations,825.00
2628210,J DICKINSON & SONS (HORWICH) LTD#2,06/12/2012,33202,Plant Hire,Environmental Services,Bereavement Services,553.60
2622047,J PHILLIPS & SONS LTD#1,29/11/2012,25000,Fixed Equipment Purchase,Environmental Services,Assets,"14,980.00"
2618435,J TAYLOR (ELECTRICAL CONTRACTORS) LTD,22/11/2012,20100,Day To Day Maintenance,Environmental Services,Depots,588.48
2613861,J W YOUNG (BUTCHERS) LIMITED,15/11/2012,41101,Catering ProvisionsFood,Environmental Services,Catering,"1,979.63"
2618766,J W YOUNG (BUTCHERS) LIMITED,22/11/2012,41101,Catering ProvisionsFood,Environmental Services,Catering,"2,611.05"
2611326,J W YOUNG (BUTCHERS) LIMITED,12/11/2012,41101,Catering ProvisionsFood,Environmental Services,Catering,"1,177.98"
2625417,J W YOUNG (BUTCHERS) LIMITED,04/12/2012,41101,Catering ProvisionsFood,Environmental Services,Catering,"3,303.28"
2605994,JAH-JIREH (BLACKPOOL),06/11/2012,54301,Residential Provision,Adult Services,OA  External Provision Residential,"1,548.88"
2625762,JAH-JIREH (BLACKPOOL),05/12/2012,54301,Residential Provision,Adult Services,OA  External Provision Residential,"1,548.88"
2613112,REDACTED - PERSONAL DATA,15/11/2012,52200,Contracted Services,Adult Services,LD Purchaser Domiciliary Care,"2,712.50"
2622526,JANET(UK),20/12/2012,40100,Operational Equipment Purchase,Children's Services,Admin IT (Schools),"10,088.62"
2618810,JO HOSSLE-STANDRING T/A JORCHID,22/11/2012,55711,Medical Referees Fees,Chief Executives Department,Occ Health Holding Code,"1,280.00"
2613739,REDACTED - PERSONAL DATA,15/11/2012,48509,Other Fees,Children's Services,Management Team,540.00
2614575,REDACTED - PERSONAL DATA,26/11/2012,48509,Other Fees,Adult Services,Independent,"2,170.00"
2610009,JUST ONE RECRUITMENT & TRAINING LTD,22/11/2012,52000,Vol Assoc Grants  General,Children's Services,Res Serv Agency Placements,"1,291.50"
2612801,JUST ONE RECRUITMENT & TRAINING LTD,22/11/2012,52000,Vol Assoc Grants  General,Children's Services,Res Serv Agency Placements,790.75
2616523,JUST ONE RECRUITMENT & TRAINING LTD,29/11/2012,52000,Vol Assoc Grants  General,Children's Services,Res Serv Agency Placements,790.75
2627550,JUST ONE RECRUITMENT & TRAINING LTD,06/12/2012,52000,Vol Assoc Grants  General,Children's Services,Res Serv Agency Placements,790.75
2617353,KALEIDOSCOPE CARE (NORTHWEST) LTD,26/11/2012,52000,Vol Assoc Grants  General,Children's Services,Res Serv Agency Placements,"9,600.00"
2614402,KANA SOFTWARE IRELAND LIMITED#KANA SOLUTIONS,29/11/2012,45432,Computer Software Installation,Finance Department,C.R.M. Operations,"12,100.00"
2616424,KAROMED LIMITED,29/11/2012,44051,Clients Aids & Adaptations,Adult Services,ICES,"2,995.60"
2616422,KAROMED LIMITED,29/11/2012,44051,Clients Aids & Adaptations,Adult Services,ICES,"2,675.60"
2616475,KAYS TRAFFIC MANAGEMENT SYSTEMS LTD,29/11/2012,Z6008,Expense AP Accrual,Bolton MBC Balance Sheet,Bolton MBC Balance Sheet,800.00
2611104,KAYS TRAFFIC MANAGEMENT SYSTEMS LTD,12/11/2012,52200,Contracted Services,Environmental Services,Activities and Operations,"6,705.00"
2613017,KCOM GROUP PLC,22/11/2012,40100,Operational Equipment Purchase,Children's Services,Admin IT (Schools),"23,157.15"
2608053,KCOM GROUP PLC,08/11/2012,40100,Operational Equipment Purchase,Children's Services,Admin IT (Schools),"23,157.04"
2616524,KCOM GROUP PLC,22/11/2012,20101,Programmed Maint. Work,Property Services,Accomm Rationalisation Strategy,"3,225.00"
2628077,KELLIBRATIONS BY KELLY DOOLEY,06/12/2012,40613,Goods for Resale,Environmental Services,Civic Catering  Town Hall Functions,584.00
2628086,KELLIBRATIONS BY KELLY DOOLEY,06/12/2012,40613,Goods for Resale,Environmental Services,Civic Catering  Town Hall Functions,529.00
2628079,KELLIBRATIONS BY KELLY DOOLEY,06/12/2012,40613,Goods for Resale,Environmental Services,Civic Catering  Town Hall Functions,764.00
2605971,KENYON LODGE,06/11/2012,54301,Residential Provision,Adult Services,OA  External Provision Residential,"2,841.05"
2625741,KENYON LODGE,05/12/2012,54301,Residential Provision,Adult Services,OA  External Provision Residential,"3,012.08"
2614563,KILLGERM CHEMICALS LTD,26/11/2012,40605,Chemicals,Environmental Services,Activities and Operations,"1,368.53"
2606088,KINGARTH,06/11/2012,54301,Residential Provision,Adult Services,LD Purchaser Residential Care,"11,162.40"
2625855,KINGARTH,05/12/2012,54301,Residential Provision,Adult Services,LD Purchaser Residential Care,"11,162.40"
2615523,KINGKRAFT LTD,19/11/2012,44051,Clients Aids & Adaptations,Adult Services,ICES,783.00
2622118,KINGS CHAMBERS,29/11/2012,48502,Legal Fees,Development & Regen,Development Management,"1,075.00"
2605983,KNIGHTSWOOD RESIDENTIAL HOME,06/11/2012,54301,Residential Provision,Adult Services,OA  External Provision Residential,"11,941.20"
2605982,KNIGHTSWOOD RESIDENTIAL HOME,06/11/2012,54301,Residential Provision,Adult Services,OA  External Provision Residential,"7,234.06"
2625752,KNIGHTSWOOD RESIDENTIAL HOME,05/12/2012,54301,Residential Provision,Adult Services,OA  External Provision Residential,"11,941.20"
2624407,L H TECHNICAL SOLUTIONS,04/12/2012,44051,Clients Aids & Adaptations,Adult Services,ICES,560.00
2606065,LABURNUM HOUSE LTD#REDACTED - PERSONAL DATA,06/11/2012,54301,Residential Provision,Adult Services,MH Residential External Provision,549.26
2625831,LABURNUM HOUSE LTD#REDACTED - PERSONAL DATA,05/12/2012,54301,Residential Provision,Adult Services,MH Residential External Provision,"2,526.58"
2605936,LADYMEAD NURSING HOME#FACTOR ICON HEALTHCARE (UK) LIMITED,06/11/2012,54302,Nursing Provision,Adult Services,LD Purchaser Residential Care,"1,522.96"
2605936,LADYMEAD NURSING HOME#FACTOR ICON HEALTHCARE (UK) LIMITED,06/11/2012,54301,Residential Provision,Adult Services,OA  External Provision Residential,"7,591.84"
2605935,LADYMEAD NURSING HOME#FACTOR ICON HEALTHCARE (UK) LIMITED,06/11/2012,54301,Residential Provision,Adult Services,OA  External Provision Residential,"1,660.71"
2625707,LADYMEAD NURSING HOME#FACTOR ICON HEALTHCARE (UK) LIMITED,05/12/2012,54302,Nursing Provision,Adult Services,LD Purchaser Residential Care,"1,522.96"
2625707,LADYMEAD NURSING HOME#FACTOR ICON HEALTHCARE (UK) LIMITED,05/12/2012,54301,Residential Provision,Adult Services,OA  External Provision Residential,"9,579.22"
2606030,LAKE VIEW CARE HOME,06/11/2012,54302,Nursing Provision,Adult Services,OA  External Provision Residential,"1,866.00"
2625795,LAKE VIEW CARE HOME,05/12/2012,54302,Nursing Provision,Adult Services,OA  External Provision Residential,"1,866.00"
2612320,LANDSCAPE ENGINEERING LTD,12/11/2012,Z1051,Work in Progress Additions,Environmental Services,Environmental Services Balance sheet,"32,048.06"
2615645,LAS MANCHESTER LTD,19/11/2012,48200,Advertising General,Environmental Services,Markets  Rent Account,923.00
2606091,LEAWOOD MANOR,06/11/2012,54301,Residential Provision,Adult Services,OA  External Provision Residential,"2,060.00"
2625858,LEAWOOD MANOR,05/12/2012,54301,Residential Provision,Adult Services,OA  External Provision Residential,"2,060.00"
2611199,LESS TAXIS / REDACTED - PERSONAL DATA,12/11/2012,33201,Transport Hire,Environmental Services,SNT Adult Servs,"1,037.60"
2606052,LEVER EDGE CARE HOME,06/11/2012,54301,Residential Provision,Adult Services,OA  External Provision Residential,"86,220.55"
2606052,LEVER EDGE CARE HOME,06/11/2012,54301,Residential Provision,Adult Services,PD Purchaser Residential Care,"1,544.08"
2606051,LEVER EDGE CARE HOME,06/11/2012,54301,Residential Provision,Adult Services,OA  External Provision Residential,"1,819.81"
2625816,LEVER EDGE CARE HOME,05/12/2012,54301,Residential Provision,Adult Services,OA  External Provision Residential,"84,318.42"
2625816,LEVER EDGE CARE HOME,05/12/2012,54301,Residential Provision,Adult Services,PD Purchaser Residential Care,"1,544.08"
2625815,LEVER EDGE CARE HOME,05/12/2012,54301,Residential Provision,Adult Services,OA  External Provision Residential,772.04
2618346,LIAM CURTIN T/A THE ART DEPARTMENT,22/11/2012,Z1051,Work in Progress Additions,Development & Regen,Development & Regeneration Capital,"20,000.00"
2611147,REDACTED - PERSONAL DATA#A K PRIVATE HIRE,12/11/2012,33201,Transport Hire,Environmental Services,SNT Adult Servs,990.00
2611200,LINK CARS,12/11/2012,33201,Transport Hire,Environmental Services,SNT Adult Servs,"1,100.00"
2616361,LITE LTD,29/11/2012,Z1051,Work in Progress Additions,Development & Regen,Development & Regeneration Capital,"10,000.00"
2606046,LITTLE SISTERS OF THE POOR,06/11/2012,54301,Residential Provision,Adult Services,OA  External Provision Residential,"1,661.68"
2625810,LITTLE SISTERS OF THE POOR,05/12/2012,54301,Residential Provision,Adult Services,OA  External Provision Residential,"1,661.68"
2626998,LITTLEDALE HALL THERAPEUTIC COMMUNITY,04/12/2012,54301,Residential Provision,Adult Services,Alcohol Rehab Budget,"1,626.16"
2623098,LITTLEWOOD HIRE LIMITED,29/11/2012,40100,Operational Equipment Purchase,Chief Executives Department,Community Safety,920.00
2609967,LIVING STREETS,22/11/2012,48509,Other Fees,Housing GRF,Neighbourhood Management Project,"5,000.00"
2606311,LOCAL SOLUTIONS,05/11/2012,52200,Contracted Services,Adult Services,OA  Home Care Services external provision,"18,851.19"
2626720,LOCAL SOLUTIONS,04/12/2012,52200,Contracted Services,Adult Services,OA  Home Care Services external provision,"17,567.06"
2617358,REDACTED - PERSONAL DATA,22/11/2012,48502,Legal Fees,Children's Services,Management Team,500.00
2613108,LPW (EUROPE) LTD,22/11/2012,31305,Vehicle Servicing,Environmental Services,Transport Support Service,945.00
2613523,LUCION ENVIRONMENTAL LTD,15/11/2012,20102,Health & Safety,Property Services,Annual Charge Holding Account,960.00
2624925,LUCION ENVIRONMENTAL LTD,04/12/2012,20102,Health & Safety,Environmental Services,Depots,960.00
2612517,LUCY ZODION LIMITED,22/11/2012,Z1051,Work in Progress Additions,Highways,Stores,"19,600.00"
2612518,LUCY ZODION LIMITED,22/11/2012,Z1051,Work in Progress Additions,Highways,Stores,"19,600.00"
2612516,LUCY ZODION LIMITED,22/11/2012,Z1051,Work in Progress Additions,Highways,Stores,"22,600.00"
2612514,LUCY ZODION LIMITED,22/11/2012,Z1051,Work in Progress Additions,Highways,Stores,"22,600.00"
2621375,LUCY ZODION LIMITED,10/12/2012,Z1051,Work in Progress Additions,Highways,Stores,"4,575.14"
2606044,LYNDHURST,06/11/2012,54301,Residential Provision,Adult Services,OA  External Provision Residential,"1,492.68"
2625809,LYNDHURST,05/12/2012,54301,Residential Provision,Adult Services,OA  External Provision Residential,"1,492.68"
2605937,LYNGATE RESIDENTIAL HOME,06/11/2012,54301,Residential Provision,Adult Services,OA  External Provision Residential,"39,543.14"
2625709,LYNGATE RESIDENTIAL HOME,05/12/2012,54301,Residential Provision,Adult Services,OA  External Provision Residential,"38,873.12"
2623467,MALCOLM NICHOLSON & SON,04/12/2012,36200,Uninsured Losses  Vehicles,Environmental Services,Transport Support Service,"1,666.60"
2623414,MALCOLM NICHOLSON & SON,04/12/2012,36200,Uninsured Losses  Vehicles,Environmental Services,Transport Support Service,"1,677.76"
2618092,MALROD INSULATIONS LTD,06/12/2012,20100,Day To Day Maintenance,Environmental Services,Assets,"1,890.00"
2618421,MANCHESTER LIGHT & STAGE LTD,22/11/2012,48203,Marketing,Central Services,Marketing  General,"3,850.00"
2606348,MANUSCRIPTI LTD,05/11/2012,Z1051,Work in Progress Additions,Environmental Services,Environmental Services Balance sheet,"25,000.00"
2606049,MARIANA HOUSE,06/11/2012,54301,Residential Provision,Adult Services,OA  External Provision Residential,"1,593.40"
2625813,MARIANA HOUSE,05/12/2012,54301,Residential Provision,Adult Services,OA  External Provision Residential,"1,593.40"
2609923,MARIANNE BAILEY MPTA,08/11/2012,40101,Operational Equipment Maint,Environmental Services,Albert Halls  Operations,600.00
2613838,REDACTED - PERSONAL DATA,22/11/2012,19100,Training Exps Tuition Fees,Chief Executives Department,Organisational Development,"1,000.00"
2617411,REDACTED - PERSONAL DATA,29/11/2012,19100,Training Exps Tuition Fees,Adult Services,Staff Development  Childrens,500.00
2609646,REDACTED - PERSONAL DATA,19/11/2012,19100,Training Exps Tuition Fees,Chief Executives Department,Organisational Development,"1,390.00"
2607932,MARKET PHARMACY,08/11/2012,52200,Contracted Services,Adult Services,Drugs Pooled Treatment Budget,812.00
2612758,MARKETING MANCHESTER,22/11/2012,48205,Promoting Bolton,Development & Regen,Strategic Development,"1,500.00"
2605984,MARLEY COURT  NURSING & RESIDENTAIL HOME,06/11/2012,54301,Residential Provision,Adult Services,OA  External Provision Residential,"1,556.00"
2605984,MARLEY COURT  NURSING & RESIDENTAIL HOME,06/11/2012,54302,Nursing Provision,Adult Services,OA  External Provision Residential,"1,752.00"
2625753,MARLEY COURT  NURSING & RESIDENTAIL HOME,05/12/2012,54301,Residential Provision,Adult Services,OA  External Provision Residential,"1,556.00"
2625753,MARLEY COURT  NURSING & RESIDENTAIL HOME,05/12/2012,54302,Nursing Provision,Adult Services,OA  External Provision Residential,"1,752.00"
2613982,MARWOOD GROUP LIMITED,22/11/2012,33202,Plant Hire,Environmental Services,Highways Maintenance Billable Costs,"1,400.00"
2605962,MARY & JOSEPH HOUSE,06/11/2012,54301,Residential Provision,Adult Services,MH Residential External Provision,"5,756.40"
2605961,MARY & JOSEPH HOUSE,06/11/2012,54301,Residential Provision,Adult Services,MH Residential External Provision,765.24
2625732,MARY & JOSEPH HOUSE,05/12/2012,54301,Residential Provision,Adult Services,MH Residential External Provision,"5,756.40"
2618854,MASTA LTD,22/11/2012,44052,Clients Medical Requisites,Chief Executives Department,Occ Health Holding Code,"1,712.00"
2613059,REDACTED - PERSONAL DATA,15/11/2012,Z1051,Work in Progress Additions,Property Services,Property Services Balance Sheet,"1,050.00"
2611201,REDACTED - PERSONAL DATA,12/11/2012,33201,Transport Hire,Environmental Services,SNT Adult Servs,"1,485.00"
2609508,MBE JOINERY#REDACTED - PERSONAL DATA,08/11/2012,20100,Day To Day Maintenance,Environmental Services,Assets,"1,217.00"
2613424,MBE JOINERY#REDACTED - PERSONAL DATA,15/11/2012,40101,Operational Equipment Maint,Environmental Services,Bereavement Services,"1,672.90"
2623816,MCGRATH MEDIA,04/12/2012,48200,Advertising General,Environmental Services,Albert Halls Entertainment,600.00
2618940,MEACO MEASUREMENT & CONTROL SOLUTIONS LTD#MEACO MEASUREMENT & CONTROL LTD,06/12/2012,Z1051,Work in Progress Additions,Property Services,Property Services Balance Sheet,"2,438.00"
2606010,MEADOW BANK NURSING HOME,06/11/2012,54301,Residential Provision,Adult Services,OA  External Provision Residential,"1,638.00"
2606010,MEADOW BANK NURSING HOME,06/11/2012,54302,Nursing Provision,Adult Services,OA  External Provision Residential,"7,209.68"
2625778,MEADOW BANK NURSING HOME,05/12/2012,54301,Residential Provision,Adult Services,OA  External Provision Residential,"1,638.00"
2625778,MEADOW BANK NURSING HOME,05/12/2012,54302,Nursing Provision,Adult Services,OA  External Provision Residential,"7,209.68"
2605995,MEADOWBANK HOUSE,06/11/2012,54301,Residential Provision,Adult Services,OA  External Provision Residential,"1,158.06"
2605996,MEADOWBANK HOUSE,06/11/2012,54301,Residential Provision,Adult Services,OA  External Provision Residential,"26,249.36"
2605996,MEADOWBANK HOUSE,06/11/2012,54302,Nursing Provision,Adult Services,OA  External Provision Residential,"3,088.16"
2625763,MEADOWBANK HOUSE,05/12/2012,54301,Residential Provision,Adult Services,OA  External Provision Residential,"26,249.36"
2625763,MEADOWBANK HOUSE,05/12/2012,54302,Nursing Provision,Adult Services,OA  External Provision Residential,"3,529.32"
2622724,MEDWAY HEATING (BOLTON)  LTD,29/11/2012,20100,Day To Day Maintenance,Property Services,Darley Court EPH,522.23
2622723,MEDWAY HEATING (BOLTON)  LTD,29/11/2012,20100,Day To Day Maintenance,Property Services,Darley Court EPH,522.23
2622722,MEDWAY HEATING (BOLTON)  LTD,29/11/2012,20100,Day To Day Maintenance,Property Services,Darley Court EPH,522.23
2617895,MEDWAY HEATING (BOLTON)  LTD,22/11/2012,20100,Day To Day Maintenance,Property Services,Darley Court EPH,"8,800.65"
2617898,MEDWAY HEATING (BOLTON)  LTD,22/11/2012,20100,Day To Day Maintenance,Property Services,Darley Court EPH,920.45
2617418,MEDWAY HEATING (BOLTON)  LTD,22/11/2012,20100,Day To Day Maintenance,Development & Regen,The Leisure Trust,"1,775.81"
2616673,MEDWAY HEATING (BOLTON)  LTD,22/11/2012,20100,Day To Day Maintenance,Development & Regen,The Leisure Trust,"17,349.16"
2611202,REDACTED - PERSONAL DATA#SMA CARS,12/11/2012,33201,Transport Hire,Environmental Services,SNT Adult Servs,"2,790.00"
2609558,REDACTED - PERSONAL DATA#KNOLE BUTTERFLIES,10/12/2012,48622,Livestock,Environmental Services,Assets,958.00
2611203,MICKEY SPILLANES TRAVEL#REDACTED - PERSONAL DATA,12/11/2012,33201,Transport Hire,Environmental Services,SNT Adult Servs,"1,836.00"
2616482,MIDDLESBROUGH COUNCIL T/A AYRESOME INDUSTRIES,29/11/2012,40101,Operational Equipment Maint,Environmental Services,Activities and Operations,"3,270.00"
2617981,MILE END ESTATES LLP,22/11/2012,22006,Rent of Storage Facilities,Finance Department,Museum Premises,588.75
2621363,MILLER METCALFE,26/11/2012,44054,Other Clients Services,Housing GRF,Home Ownership,875.00
2606005,MILLVIEW NURSING HOME,06/11/2012,54301,Residential Provision,Adult Services,LD Purchaser Residential Care,"5,711.10"
2606005,MILLVIEW NURSING HOME,06/11/2012,54301,Residential Provision,Adult Services,MH Residential External Provision,"1,522.96"
2606005,MILLVIEW NURSING HOME,06/11/2012,54301,Residential Provision,Adult Services,OA  External Provision Residential,"82,811.38"
2606005,MILLVIEW NURSING HOME,06/11/2012,54302,Nursing Provision,Adult Services,OA  External Provision Residential,"34,482.93"
2606005,MILLVIEW NURSING HOME,06/11/2012,54302,Nursing Provision,Adult Services,PD Purchaser Residential Care,"1,522.96"
2625772,MILLVIEW NURSING HOME,05/12/2012,54301,Residential Provision,Adult Services,LD Purchaser Residential Care,"3,535.44"
2625772,MILLVIEW NURSING HOME,05/12/2012,54301,Residential Provision,Adult Services,MH Residential External Provision,"1,522.96"
2625772,MILLVIEW NURSING HOME,05/12/2012,54301,Residential Provision,Adult Services,OA  External Provision Residential,"83,396.92"
2625772,MILLVIEW NURSING HOME,05/12/2012,54302,Nursing Provision,Adult Services,OA  External Provision Residential,"32,914.74"
2625772,MILLVIEW NURSING HOME,05/12/2012,54302,Nursing Provision,Adult Services,PD Purchaser Residential Care,"1,522.96"
2625771,MILLVIEW NURSING HOME,05/12/2012,54301,Residential Provision,Adult Services,LD Purchaser Residential Care,761.48
2608723,MINT NORTHWEST LTD,08/11/2012,Z1051,Work in Progress Additions,Housing GRF,Capital  General Fund,"11,078.50"
2608776,REDACTED - PERSONAL DATA,08/11/2012,48502,Legal Fees,Children's Services,Management Team,"1,250.00"
2618471,REDACTED - PERSONAL DATA,22/11/2012,48502,Legal Fees,Children's Services,Management Team,"5,000.00"
2617382,REDACTED - PERSONAL DATA,22/11/2012,48502,Legal Fees,Children's Services,Management Team,"9,750.00"
2615405,REDACTED - PERSONAL DATA,19/11/2012,48509,Other Fees,Children's Services,Management Team,650.00
2615391,REDACTED - PERSONAL DATA,19/11/2012,48502,Legal Fees,Children's Services,Management Team,"1,300.00"
2614360,REDACTED - PERSONAL DATA,15/11/2012,48502,Legal Fees,Children's Services,Management Team,"1,850.00"
2611074,MISSING LINK PRODUCTIONS LTD,12/11/2012,48203,Marketing,Central Services,Marketing  General,837.50
2611220,REDACTED - PERSONAL DATA T/A PAL MINIBUSES,12/11/2012,33201,Transport Hire,Environmental Services,SNT Adult Servs,"2,460.50"
2611179,REDACTED - PERSONAL DATA#DAUBHILL MINI BUS,12/11/2012,33201,Transport Hire,Environmental Services,SNT Adult Servs,"1,350.00"
2615096,MORGAN HEATING ENGINEERS,19/11/2012,Z1051,Work in Progress Additions,Housing GRF,Capital  General Fund,"1,250.00"
2625867,MOSTON GRANGE NURSING HOME,05/12/2012,54302,Nursing Provision,Adult Services,MH Residential External Provision,"10,967.86"
2606407,REDACTED - PERSONAL DATA,05/11/2012,48502,Legal Fees,Children's Services,Management Team,"5,150.00"
2611154,REDACTED - PERSONAL DATA T/A ATLAS LUXURY MINIBUS,12/11/2012,33201,Transport Hire,Environmental Services,SNT Adult Servs,"3,195.00"
2615401,REDACTED - PERSONAL DATA,19/11/2012,48502,Legal Fees,Children's Services,Management Team,"2,905.00"
2611208,REDACTED - PERSONAL DATA,12/11/2012,33201,Transport Hire,Environmental Services,SNT Adult Servs,"3,502.00"
2611231,REDACTED - PERSONAL DATA,12/11/2012,33201,Transport Hire,Environmental Services,SNT Adult Servs,972.00
2613050,MRG HEATING & PLUMBING LTD,15/11/2012,Z1051,Work in Progress Additions,Housing GRF,Capital  General Fund,"3,302.00"
2613060,MRG HEATING & PLUMBING LTD,15/11/2012,Z1051,Work in Progress Additions,Housing GRF,Capital  General Fund,"3,119.00"
2626392,MRG HEATING & PLUMBING LTD,04/12/2012,Z1051,Work in Progress Additions,Housing GRF,Capital  General Fund,"3,628.00"
2626717,MRG HEATING & PLUMBING LTD,04/12/2012,Z1051,Work in Progress Additions,Housing GRF,Capital  General Fund,"4,123.00"
2609682,MRM STREET FURNITURE LTD,12/11/2012,40601,General Materials,Environmental Services,Bereavement Services,750.00
2609467,REDACTED - PERSONAL DATA,12/11/2012,48502,Legal Fees,Children's Services,Management Team,850.00
2607496,NABMA,05/11/2012,48200,Advertising General,Environmental Services,Markets  Rent Account,"1,500.00"
2611213,NADY MINIBUS#REDACTED - PERSONAL DATA,12/11/2012,33201,Transport Hire,Environmental Services,SNT Adult Servs,"2,261.00"
2614273,NAS SERVICES LTD,26/11/2012,52200,Contracted Services,Adult Services,MH Residential External Provision,534.01
2612348,NATIONAL CAR PARKS LTD#NCP,12/11/2012,37100,Car Parking,Chief Executives Department,Car Parking,"33,841.67"
2627904,NATIONAL CAR PARKS LTD#NCP,13/12/2012,37100,Car Parking,Chief Executives Department,Car Parking,"36,086.08"
2613472,NATIONAL GRID,15/11/2012,Z1051,Work in Progress Additions,Highways,Stores,"158,020.53"
2608734,NATIONAL GRID,08/11/2012,Z1051,Work in Progress Additions,Housing GRF,Capital  General Fund,"2,904.00"
2611182,REDACTED - PERSONAL DATA#2#ELITE MINIBUS,12/11/2012,33201,Transport Hire,Environmental Services,SNT Adult Servs,"2,856.00"
2610136,NCER CIC,22/11/2012,40702,Videos & CD's,Children's Services,Admin Strategy&Performance,"2,302.30"
2616553,NEW START CHILDCARE,26/11/2012,52000,Vol Assoc Grants  General,Children's Services,Res Serv Agency Placements,"19,400.00"
2611230,NEWSQUEST (NORTH WEST) LTD,12/11/2012,48200,Advertising General,Environmental Services,Highway Management,"1,017.20"
2615559,NEWSQUEST (NORTH WEST) LTD,26/11/2012,48200,Advertising General,Environmental Services,Highway Management,"3,578.00"
2615563,NEWSQUEST (NORTH WEST) LTD,26/11/2012,48200,Advertising General,Environmental Services,Highway Management,805.70
2623310,NEWSQUEST (NORTH WEST) LTD,04/12/2012,48202,General Publicity,Development & Regen,Development Management,538.40
2613452,NORMAN ASHWORTH LTD,22/11/2012,52200,Contracted Services,Environmental Services,Activities and Operations,"7,038.00"
2617481,NORTHERN COMMERCIALS (MIRFIELD) LTD,29/11/2012,52200,Contracted Services,Environmental Services,Transport Support Service,"1,467.04"
2624266,NORTHERN EDUCATION,04/12/2012,48509,Other Fees,Children's Services,Secondary Commissioning,"3,865.00"
2624264,NORTHERN EDUCATION,04/12/2012,53102,Agency Staff  Other,Children's Services,Sec Sch Imp  Running Costs,915.00
2624267,NORTHERN EDUCATION,04/12/2012,53102,Agency Staff  Other,Children's Services,Sec Sch Imp  Running Costs,"1,220.00"
2613928,NORTHGATE INFORMATION SOLUTIONS UK LIMITED,26/11/2012,45431,Computer Software Licences,Finance Department,CSD Cashiers,"5,016.00"
2613931,NORTHGATE INFORMATION SOLUTIONS UK LIMITED,26/11/2012,45431,Computer Software Licences,Finance Department,CSD Cashiers,"5,016.00"
2618093,NORTHGATE INFORMATION SOLUTIONS UK LIMITED,26/11/2012,43031,Blue Badge Stationery,Finance Department,C.R.M. Operations,"2,580.60"
2616421,NORTHGATE INFORMATION SOLUTIONS UK LIMITED,26/11/2012,45431,Computer Software Licences,Finance Department,Housing Benefits,"1,000.00"
2615534,NORTHGATE VEHICLE HIRE LTD,19/11/2012,33201,Transport Hire,Environmental Services,Transport Support Service,"15,078.34"
2609490,NORTHGATE VEHICLE HIRE LTD,08/11/2012,36200,Uninsured Losses  Vehicles,Environmental Services,Transport Support Service,731.15
2611215,NORTHWEST MINIBUSES,12/11/2012,33201,Transport Hire,Environmental Services,SNT Adult Servs,"1,908.00"
2614303,NORWICH BOOKS & MUSIC,26/11/2012,40601,General Materials,Environmental Services,Bereavement Services,577.00
2625399,NPOWER LIMITED,04/12/2012,21200,Gas  General,Housing GRF,Communal Services Capital And Admin.,653.40
2616483,NSL LIMITED#NSL SERVICES GROUP,29/11/2012,44202,Contract UnitNonLEA,Environmental Services,Parking Services  On Street,"6,651.92"
2609958,NUGENT CARE#BOLTON PROJECT,12/11/2012,52200,Contracted Services,Adult Services,LD Purchaser Day Services,"33,929.50"
2616660,NUGENT CARE#BOLTON PROJECT,22/11/2012,52200,Contracted Services,Adult Services,LD Purchaser Day Services,"2,575.67"
2620385,OFSTED,26/11/2012,48509,Other Fees,Children's Services,Res Serv 217 Deepdale Rd,647.28
2627376,OJT COMMUNICATIONS LTD,04/12/2012,Z1051,Work in Progress Additions,Adult Services,Adult Services Balance Sheet,"2,895.00"
2611217,OLYMPIC TRAVEL#MR DAD,12/11/2012,33201,Transport Hire,Environmental Services,SNT Adult Servs,"1,957.00"
2611219,ON TIME CARS#REDACTED - PERSONAL DATA,12/11/2012,33201,Transport Hire,Environmental Services,SNT Adult Servs,"1,008.00"
2615452,ONSIDE EDUCATION CONSULTANTS,19/11/2012,19100,Training Exps Tuition Fees,Children's Services,CWPD Governors,500.00
2611404,ORCHARD FURNITURE & RECYCLING SERVICE,12/11/2012,50002,Other Agency/Contracted Services,Environmental Services,Waste,520.00
2608109,OVE ARUP & PARTNERS LTD,08/11/2012,48510,Consultancy Fees,Property Services,Business Support,"1,180.00"
2622381,P J CARNEY & CO LTD,06/12/2012,52200,Contracted Services,Environmental Services,Activities and Operations,"3,900.00"
2622380,P J CARNEY & CO LTD,06/12/2012,52200,Contracted Services,Environmental Services,Activities and Operations,"5,700.00"
2621974,PANNONE LLP#2,30/11/2012,48629,Miscellaneous Expenses,Financial Services,Miscellaneous Transactions,"25,094.28"
2613812,PANNONE LLP#2,30/11/2012,48629,Miscellaneous Expenses,Financial Services,Miscellaneous Transactions,"146,322.99"
2622281,PARALLEL PARENTS,04/12/2012,52000,Vol Assoc Grants  General,Children's Services,Res Serv Agency Placements,"3,144.33"
2622285,PARALLEL PARENTS,04/12/2012,52000,Vol Assoc Grants  General,Children's Services,Res Serv Agency Placements,"2,902.84"
2622283,PARALLEL PARENTS,04/12/2012,52000,Vol Assoc Grants  General,Children's Services,Res Serv Agency Placements,"3,388.61"
2622383,PARK HOUSE HEALTHCARE LTD,29/11/2012,44051,Clients Aids & Adaptations,Adult Services,ICES,"2,200.00"
2606093,PARK VIEW RESIDENTIAL HOME,06/11/2012,54301,Residential Provision,Adult Services,OA  External Provision Residential,"1,682.00"
2605973,PARKLANDS HOUSE NURSING HOME,06/11/2012,54302,Nursing Provision,Adult Services,MH Residential External Provision,"11,900.00"
2625743,PARKLANDS HOUSE NURSING HOME,05/12/2012,54302,Nursing Provision,Adult Services,MH Residential External Provision,"11,900.00"
2625743,PARKLANDS HOUSE NURSING HOME,05/12/2012,93259,Nursing Home Provision,Adult Services,MH Residential External Provision,"2,456.77"
2605942,PARKVIEW NURSING & RESIDENTIAL HOME,06/11/2012,54301,Residential Provision,Adult Services,OA  External Provision Residential,"18,803.57"
2605942,PARKVIEW NURSING & RESIDENTIAL HOME,06/11/2012,54302,Nursing Provision,Adult Services,PD Purchaser Residential Care,"1,521.12"
2605941,PARKVIEW NURSING & RESIDENTIAL HOME,06/11/2012,54301,Residential Provision,Adult Services,OA  External Provision Residential,589.29
2625712,PARKVIEW NURSING & RESIDENTIAL HOME,05/12/2012,54301,Residential Provision,Adult Services,OA  External Provision Residential,540.99
2625713,PARKVIEW NURSING & RESIDENTIAL HOME,05/12/2012,54301,Residential Provision,Adult Services,OA  External Provision Residential,"20,416.00"
2625713,PARKVIEW NURSING & RESIDENTIAL HOME,05/12/2012,54302,Nursing Provision,Adult Services,OA  External Provision Residential,750.00
2625713,PARKVIEW NURSING & RESIDENTIAL HOME,05/12/2012,54302,Nursing Provision,Adult Services,PD Purchaser Residential Care,"1,521.12"
2611222,REDACTED - PERSONAL DATA,12/11/2012,33201,Transport Hire,Environmental Services,SNT Adult Servs,"1,179.00"
2624448,REDACTED - PERSONAL DATA,03/12/2012,79000,Election Expenses,Central Services,Police Commissioner Elections,"2,000.00"
2610911,PAWS FOR KIDS,12/11/2012,55700,Grant Funded Expenditure,Chief Executives Department,Community Safety,"7,550.25"
2608702,PC WORLD BUSINESS#FACTOR DSG RETAIL,15/11/2012,40100,Operational Equipment Purchase,Adult Services,AD Overhead,"1,590.63"
2622372,PEAK FABRICATIONS (BOLTON) LTD,29/11/2012,52200,Contracted Services,Environmental Services,Activities and Operations,"1,920.00"
2622375,PEAK FABRICATIONS (BOLTON) LTD,29/11/2012,52200,Contracted Services,Environmental Services,Activities and Operations,"1,200.00"
2617923,PEAK FABRICATIONS (BOLTON) LTD,22/11/2012,40101,Operational Equipment Maint,Environmental Services,Civic Catering  General,500.00
2614300,PEAK FABRICATIONS (BOLTON) LTD,15/11/2012,52200,Contracted Services,Environmental Services,Activities and Operations,600.00
2614283,PEAK FABRICATIONS (BOLTON) LTD,15/11/2012,52200,Contracted Services,Environmental Services,Activities and Operations,"1,475.00"
2614285,PEAK FABRICATIONS (BOLTON) LTD,15/11/2012,52200,Contracted Services,Environmental Services,Activities and Operations,"1,370.00"
2614287,PEAK FABRICATIONS (BOLTON) LTD,15/11/2012,52200,Contracted Services,Environmental Services,Activities and Operations,550.00
2609397,PENDLE SIGNS & PLASTICS LTD,15/11/2012,48205,Promoting Bolton,Development & Regen,Strategic Development,768.30
2614258,PERON PLASTICS,15/11/2012,48601,Exhibits Maint & Restoration,Finance Department,Collections Access MUS,626.00
2611146,REDACTED - PERSONAL DATA T/A AKHTAR MINI BUSES,12/11/2012,33201,Transport Hire,Environmental Services,SNT Adult Servs,"1,710.00"
2617342,PETER EDGE ELECTRICAL LTD,22/11/2012,Z1051,Work in Progress Additions,Housing GRF,Capital  General Fund,"6,222.05"
2626342,PETER EDGE ELECTRICAL LTD,04/12/2012,Z1051,Work in Progress Additions,Housing GRF,Capital  General Fund,"4,376.00"
2615631,REDACTED - PERSONAL DATA#2,19/11/2012,48509,Other Fees,Children's Services,Management Team,820.80
2607560,PETERS LTD,12/11/2012,40753,Book Fund Expenditure,Finance Department,Schools Library Services,"1,340.06"
2616551,PGL TRAVEL LTD,29/11/2012,44059,Educational Visits,Children's Services,Harvey’s YP Centre,"6,160.00"
2616539,PGL TRAVEL LTD,29/11/2012,44059,Educational Visits,Children's Services,Harwood Youth Centre,"1,400.00"
2609589,PGL TRAVEL LTD,15/11/2012,44059,Educational Visits,Children's Services,Leverhulme YP Centre,870.00
2616541,PGL TRAVEL LTD,29/11/2012,44059,Educational Visits,Children's Services,Leverhulme YP Centre,"2,400.00"
2622045,PHOENIX FUTURES#PHOENIX HOUSE,29/11/2012,54301,Residential Provision,Adult Services,Alcohol Rehab Budget,"1,011.21"
2616700,PICK EVERARD,22/11/2012,52200,Contracted Services,Property Services,Projects,850.00
2617368,PIPS COURIER SERVICES#REDACTED - PERSONAL DATA,22/11/2012,48509,Other Fees,Children's Services,Management Team,763.00
2620198,PLACES FOR PEOPLE HOMES,26/11/2012,52200,Contracted Services,Adult Services,Supporting People  Capital Financing,"1,355.41"
2620199,PLACES FOR PEOPLE INDIVIDUAL SUPPORT,26/11/2012,52200,Contracted Services,Adult Services,Supporting People  Capital Financing,"5,449.58"
2613054,POLLOCK LIFTS,15/11/2012,Z1051,Work in Progress Additions,Housing GRF,Capital  General Fund,"14,235.24"
2614574,PORTFOLIO#ROTHWELL COMPANY LTD,19/11/2012,48203,Marketing,Central Services,Marketing  General,"2,330.00"
2611481,POST OFFICE LTD,12/11/2012,31300,Vehicle Tax,Environmental Services,Transport Support Service,"5,520.00"
2625419,PPL,04/12/2012,47200,General Subscriptions,Environmental Services,Markets  Rent Account,543.47
2620689,PREMIER CARE LTD#BOLTON CARE SERVICES,26/11/2012,52200,Contracted Services,Adult Services,OA  Home Care Services external provision,"9,269.60"
2613039,PREMIER ENERGY SOLUTIONS#HEATING SOLUTIONS LTD T/A,15/11/2012,Z1051,Work in Progress Additions,Housing GRF,Capital  General Fund,"1,250.00"
2611224,PREMIER MINIBUSES (NW) LTD,12/11/2012,33201,Transport Hire,Environmental Services,SNT Adult Servs,"9,904.50"
2614381,PREMIER PAPER GROUP LIMITED,29/11/2012,43032,Office Stationery,Central Services,Printing Services,630.53
2612888,PREMIER PAPER GROUP LIMITED,22/11/2012,43032,Office Stationery,Central Services,Printing Services,"1,130.53"
2609649,PRICEWATERHOUSECOOPERS,19/11/2012,48509,Other Fees,Finance Department,Financial Management,"6,000.00"
2606048,PRINCESS ALEXANDRA HOME,06/11/2012,54301,Residential Provision,Adult Services,OA  External Provision Residential,"1,508.72"
2625812,PRINCESS ALEXANDRA HOME,05/12/2012,54301,Residential Provision,Adult Services,OA  External Provision Residential,"1,508.72"
2614265,PRISM MEDICAL UK,26/11/2012,44051,Clients Aids & Adaptations,Adult Services,ICES,692.48
2610034,PRISM MEDICAL UK,15/11/2012,44051,Clients Aids & Adaptations,Adult Services,ICES,671.44
2608180,PRISM MEDICAL UK,08/11/2012,44051,Clients Aids & Adaptations,Adult Services,ICES,"1,435.71"
2616337,PRISM MEDICAL UK,19/11/2012,44051,Clients Aids & Adaptations,Adult Services,ICES,"1,586.78"
2615550,PRISM MEDICAL UK,19/11/2012,44051,Clients Aids & Adaptations,Adult Services,ICES,"1,066.80"
2614394,PRISM MEDICAL UK,26/11/2012,44051,Clients Aids & Adaptations,Adult Services,ICES,"1,676.34"
2614263,PRISM MEDICAL UK,26/11/2012,44051,Clients Aids & Adaptations,Adult Services,ICES,526.50
2622534,PRISM MEDICAL UK,06/12/2012,44051,Clients Aids & Adaptations,Adult Services,ICES,721.77
2605658,PROBRAND LIMITED,29/11/2012,40140,Office Equipment Purchase,Children's Services,Admin IT (Schools),"1,244.79"
2618651,PROBRAND LIMITED,10/12/2012,45400,Computer Purchase,Children's Services,Admin IT (Schools),"2,000.00"
2618652,PROBRAND LIMITED,20/12/2012,45400,Computer Purchase,Children's Services,Admin IT (Schools),"2,000.00"
2616811,PROBRAND LIMITED,13/12/2012,45400,Computer Purchase,Children's Services,Admin IT (Schools),"3,200.00"
2613018,PROBRAND LIMITED,04/12/2012,45401,Computer Maintenance,Children's Services,Admin IT (Schools),934.70
2613019,PROBRAND LIMITED,06/12/2012,45400,Computer Purchase,Children's Services,Admin IT (Schools),703.29
2616812,PROBRAND LIMITED,13/12/2012,45400,Computer Purchase,Children's Services,Admin IT (Schools),"14,296.76"
2627010,PROJECTORPOINT,04/12/2012,40601,General Materials,Children's Services,Technical Innovation Centre,803.00
2614568,PROLUDIC LIMITED,22/11/2012,40601,General Materials,Environmental Services,Activities and Operations,"5,135.00"
2614569,PROLUDIC LIMITED,04/12/2012,40601,General Materials,Environmental Services,Activities and Operations,"6,680.00"
2624302,QUALITY PRINT SERVICES LTD,04/12/2012,20100,Day To Day Maintenance,Children's Services,Technical Innovation Centre,"1,300.00"
2606028,QUEENS PARK VIEW#INTELLIGENT CARE,06/11/2012,54301,Residential Provision,Adult Services,MH Residential External Provision,"5,219.16"
2606029,QUEENS PARK VIEW#INTELLIGENT CARE,06/11/2012,54301,Residential Provision,Adult Services,MH Residential External Provision,"6,051.56"
2625794,QUEENS PARK VIEW#INTELLIGENT CARE,05/12/2012,54301,Residential Provision,Adult Services,MH Residential External Provision,"4,428.66"
2615621,R S TYRER LTD,22/11/2012,34405,Clients  Swimming Fares,Environmental Services,SNT Childrens Servs,"6,370.00"
2616360,R82 UK LTD,29/11/2012,44051,Clients Aids & Adaptations,Adult Services,ICES,563.00
2618491,R82 UK LTD,22/11/2012,44051,Clients Aids & Adaptations,Adult Services,ICES,517.00
2608183,R82 UK LTD,08/11/2012,44051,Clients Aids & Adaptations,Adult Services,ICES,"1,129.00"
2615406,REDACTED - PERSONAL DATA,19/11/2012,48502,Legal Fees,Children's Services,Management Team,"1,725.00"
2611152,REDACTED - PERSONAL DATA#ALPHA LUXURY TRAVEL,12/11/2012,33201,Transport Hire,Environmental Services,SNT Adult Servs,"3,177.00"
2613056,RAINBOWS END REDACTED - PERSONAL DATA,15/11/2012,40150,Office Furniture Purchase,Housing GRF,Furnished Tenancies,514.80
2605943,RANDOMLIGHT LTD#HEIGHTSIDE HOUSE,06/11/2012,54302,Nursing Provision,Adult Services,LD Purchaser Residential Care,"2,228.04"
2605943,RANDOMLIGHT LTD#HEIGHTSIDE HOUSE,06/11/2012,54301,Residential Provision,Adult Services,MH Residential External Provision,"2,270.12"
2605943,RANDOMLIGHT LTD#HEIGHTSIDE HOUSE,06/11/2012,54302,Nursing Provision,Adult Services,MH Residential External Provision,"8,848.52"
2625714,RANDOMLIGHT LTD#HEIGHTSIDE HOUSE,05/12/2012,54302,Nursing Provision,Adult Services,LD Purchaser Residential Care,"2,228.04"
2625714,RANDOMLIGHT LTD#HEIGHTSIDE HOUSE,05/12/2012,54301,Residential Provision,Adult Services,MH Residential External Provision,"2,270.12"
2625714,RANDOMLIGHT LTD#HEIGHTSIDE HOUSE,05/12/2012,54302,Nursing Provision,Adult Services,MH Residential External Provision,"8,848.52"
2622228,RAPID ELECTRONICS LTD,29/11/2012,40100,Operational Equipment Purchase,Children's Services,Technical Innovation Centre,607.00
2615590,RAPID PRIVATE HIRE LTD,19/11/2012,33201,Transport Hire,Environmental Services,SNT Adult Servs,"1,000.80"
2622728,RAPID PRIVATE HIRE LTD,29/11/2012,34402,Clients  Taxi Fares,Environmental Services,SNT Childrens Servs,"1,000.80"
2611098,RAPID PRIVATE HIRE LTD,12/11/2012,33201,Transport Hire,Environmental Services,SNT Adult Servs,"1,588.00"
2615477,RAPID PRIVATE HIRE LTD,19/11/2012,33201,Transport Hire,Environmental Services,SNT Adult Servs,"1,636.00"
2611100,RAPID PRIVATE HIRE LTD,12/11/2012,33201,Transport Hire,Environmental Services,SNT Adult Servs,"1,306.40"
2611099,RAPID PRIVATE HIRE LTD,12/11/2012,33201,Transport Hire,Environmental Services,SNT Adult Servs,640.00
2628135,RAPID PRIVATE HIRE LTD,06/12/2012,33201,Transport Hire,Environmental Services,SNT Adult Servs,"1,636.00"
2628132,RAPID PRIVATE HIRE LTD,06/12/2012,33201,Transport Hire,Environmental Services,SNT Adult Servs,"1,636.00"
2608299,RED ZULU LTD,12/11/2012,40601,General Materials,Chief Executives Department,Neighbourhood Mgt and Area Working Devolved,"1,220.00"
2606014,REDBANK CARE HOME#PAYEE VOYAGE NORTH,06/11/2012,54301,Residential Provision,Adult Services,LD Purchaser Residential Care,"4,692.20"
2625783,REDBANK CARE HOME#PAYEE VOYAGE NORTH,05/12/2012,54301,Residential Provision,Adult Services,LD Purchaser Residential Care,"4,692.20"
2617983,REFRESHMENT SYSTEMS LTD,29/11/2012,41102,Catering ProvisionsVending,Environmental Services,Depots,660.09
2613538,RICOH UK LIMITED,22/11/2012,43030,Photocopying Lease/Maintenance,Central Services,Text & Reprographics,"3,335.73"
2613502,RICOH UK LIMITED,15/11/2012,43030,Photocopying Lease/Maintenance,Central Services,Text & Reprographics,"1,249.51"
2613458,RICOH UK LIMITED,15/11/2012,43030,Photocopying Lease/Maintenance,Central Services,Text & Reprographics,558.47
2616460,RIGBY TAYLOR LTD,19/11/2012,40601,General Materials,Environmental Services,Activities and Operations,600.00
2616459,RIGBY TAYLOR LTD,19/11/2012,40601,General Materials,Environmental Services,Activities and Operations,"1,650.00"
2606391,RIVINGTON PIKE DOG HOTEL,15/11/2012,52300,Client Support Costs,Adult Services,MH Residential External Provision,840.00
2605944,RIVINGTON VIEW NURSING HOME,06/11/2012,54301,Residential Provision,Adult Services,OA  External Provision Residential,"12,051.88"
2625715,RIVINGTON VIEW NURSING HOME,05/12/2012,54301,Residential Provision,Adult Services,OA  External Provision Residential,"12,051.88"
2617987,RMAC UK LTD,04/12/2012,20100,Day To Day Maintenance,Property Services,Town Hall,833.92
2624319,RMAC UK LTD,24/12/2012,20100,Day To Day Maintenance,Property Services,Town Hall,922.46
2618006,RMAC UK LTD,04/12/2012,20100,Day To Day Maintenance,Property Services,Winifred Kettle,610.64
2624321,RMAC UK LTD,24/12/2012,20100,Day To Day Maintenance,Property Services,Wellsprings  BMBC,551.70
2606026,RNID - FOSSE BANK HOUSE,06/11/2012,54301,Residential Provision,Adult Services,MH Residential External Provision,"4,545.88"
2625792,RNID - FOSSE BANK HOUSE,05/12/2012,54301,Residential Provision,Adult Services,MH Residential External Provision,"4,545.88"
2622379,ROBINSON PLANT HIRE,29/11/2012,33202,Plant Hire,Environmental Services,Activities and Operations,661.78
2613915,ROBINSON PLANT HIRE,15/11/2012,33202,Plant Hire,Environmental Services,Activities and Operations,661.78
2609591,ROBINSON PLANT HIRE,08/11/2012,33202,Plant Hire,Environmental Services,Activities and Operations,661.78
2612595,ROBINSON PLANT HIRE,15/11/2012,33202,Plant Hire,Environmental Services,Activities and Operations,661.78
2605945,ROSE COURT NURSING HOME,06/11/2012,54301,Residential Provision,Adult Services,OA  External Provision Residential,"9,446.64"
2605945,ROSE COURT NURSING HOME,06/11/2012,54302,Nursing Provision,Adult Services,OA  External Provision Residential,"4,723.32"
2625716,ROSE COURT NURSING HOME,05/12/2012,54301,Residential Provision,Adult Services,OA  External Provision Residential,"9,446.64"
2605974,ROSEBRIDGE COURT,06/11/2012,54302,Nursing Provision,Adult Services,OA  External Provision Residential,"1,494.08"
2625744,ROSEBRIDGE COURT,05/12/2012,54302,Nursing Provision,Adult Services,OA  External Provision Residential,"1,494.08"
2606090,ROUNDHAM COURT#EPH,06/11/2012,54301,Residential Provision,Adult Services,OA  External Provision Residential,"1,679.64"
2625857,ROUNDHAM COURT#EPH,05/12/2012,54301,Residential Provision,Adult Services,OA  External Provision Residential,"1,679.64"
2611380,ROYAL MAIL GROUP LTD,12/11/2012,40100,Operational Equipment Purchase,Environmental Services,Couriers,953.38
2617381,ROYAL MAIL GROUP LTD,22/11/2012,45000,Postages Direct Costs,Finance Department,Council Tax,889.81
2617381,ROYAL MAIL GROUP LTD,22/11/2012,45000,Postages Direct Costs,Finance Department,Housing Benefits,631.73
2611460,ROYAL MAIL GROUP LTD,12/11/2012,45000,Postages Direct Costs,Finance Department,Council Tax,"1,348.22"
2611460,ROYAL MAIL GROUP LTD,12/11/2012,45000,Postages Direct Costs,Finance Department,Housing Benefits,975.39
2611462,ROYAL MAIL GROUP LTD,12/11/2012,45000,Postages Direct Costs,Finance Department,Council Tax,"1,351.24"
2611462,ROYAL MAIL GROUP LTD,12/11/2012,45000,Postages Direct Costs,Finance Department,Housing Benefits,799.30
2627535,ROYAL MAIL GROUP LTD,04/12/2012,45000,Postages Direct Costs,Children's Services,Music ServMusic Service general,750.00
2627052,ROYAL MAIL GROUP LTD,04/12/2012,45000,Postages Direct Costs,Finance Department,Accounts Receivable (R & B),"1,199.17"
2627052,ROYAL MAIL GROUP LTD,04/12/2012,45000,Postages Direct Costs,Finance Department,Council Tax,"1,071.65"
2627052,ROYAL MAIL GROUP LTD,04/12/2012,45000,Postages Direct Costs,Finance Department,Housing Benefits,854.35
2627055,ROYAL MAIL GROUP LTD,04/12/2012,45000,Postages Direct Costs,Finance Department,Accounts Receivable (R & B),600.62
2627055,ROYAL MAIL GROUP LTD,04/12/2012,45000,Postages Direct Costs,Finance Department,Council Tax,"1,467.51"
2627055,ROYAL MAIL GROUP LTD,04/12/2012,45000,Postages Direct Costs,Finance Department,Housing Benefits,740.24
2622284,ROYAL MAIL GROUP LTD,10/12/2012,45000,Postages Direct Costs,Finance Department,Finance Ap Centre of Excellence,529.98
2611211,REDACTED - PERSONAL DATA,12/11/2012,33201,Transport Hire,Environmental Services,SNT Adult Servs,"1,206.00"
2613036,RUSSELL & RUSSELL SOLICITORS#(BOLTON),15/11/2012,93258,Residential Provision,Adult Services,OA  External Provision Residential,"2,999.91"
2616527,REDACTED - PERSONAL DATA#BALANCE ME,29/11/2012,45914,Commissioning Worklessness,Development & Regen,The Work Programme,980.00
2616530,REDACTED - PERSONAL DATA#BALANCE ME,29/11/2012,45914,Commissioning Worklessness,Development & Regen,The Work Programme,805.00
2622275,SAFECARE SERVICES LIMITED,04/12/2012,52000,Vol Assoc Grants  General,Children's Services,Res Serv Agency Placements,585.00
2621636,SAFEHANDS CARE LTD#SAFEHANDS GROUP,29/11/2012,52200,Contracted Services,Adult Services,OA  Home Care Services external provision,"5,249.96"
2620252,SANCTUARY CARR-GOMM#THE SANCTUARY GROUP,26/11/2012,52200,Contracted Services,Adult Services,Supporting People  Capital Financing,"9,532.63"
2606066,SANDS CARE MORECAMBE LTD,06/11/2012,54301,Residential Provision,Adult Services,OA  External Provision Residential,"1,682.00"
2625832,SANDS CARE MORECAMBE LTD,05/12/2012,54301,Residential Provision,Adult Services,OA  External Provision Residential,"1,682.00"
2608141,SANTIA TRAINING SERVICES,08/11/2012,19100,Training Exps Tuition Fees,Property Services,Operational Facilities Management,563.21
2624311,SECURE INDUSTRIAL DOORS,20/12/2012,20100,Day To Day Maintenance,Central Corporate,Tonge Bridge,"1,150.00"
2614301,SELECT BUSINESS FORMS (PUBLIC SERVICES) LTD,29/11/2012,48629,Miscellaneous Expenses,Finance Department,Finance Ap Centre of Excellence,718.00
2612463,SELF UNLIMITED,19/11/2012,52200,Contracted Services,Adult Services,LD Purchaser Day Services,"2,116.95"
2624367,SELF UNLIMITED,04/12/2012,52200,Contracted Services,Adult Services,LD Purchaser Day Services,"2,224.00"
2608345,SERCO LEISURE OPERATING LTD#2,08/11/2012,52000,Vol Assoc Grants  General,Children's Services,Castle Hill NonStaff,"5,317.92"
2616535,SERCO LEISURE OPERATING LTD#2,29/11/2012,48629,Miscellaneous Expenses,Children's Services,Castle Hill Youth Club,"5,477.00"
2617907,SERCO LEISURE OPERATING LTD#2,29/11/2012,40100,Operational Equipment Purchase,Children's Services,Castle Hill Youth Club,568.75
2606314,SEVA LINE,05/11/2012,52200,Contracted Services,Adult Services,OA  Home Care Services external provision,"8,250.88"
2626725,SEVA LINE,04/12/2012,52200,Contracted Services,Adult Services,OA  Home Care Services external provision,"6,846.40"
2606310,SEVACARE UK LTD,05/11/2012,52200,Contracted Services,Adult Services,OA  Home Care Services external provision,"29,635.97"
2625441,SEVACARE UK LTD,04/12/2012,52200,Contracted Services,Adult Services,OA  Home Care Services external provision,"29,921.25"
2624207,SGH MARTINEAU LLP,30/11/2012,41101,Catering ProvisionsFood,Environmental Services,Civic Catering  Dido,"1,075.61"
2618002,SHAKE RATTLE AND ROLL,22/11/2012,48517,Fees/Expenses Schools,Children's Services,Music ServMusic Service general,750.00
2614256,SHANLEYS LTD,15/11/2012,48203,Marketing,Central Services,Marketing  General,641.00
2610000,SHANLEYS LTD,12/11/2012,48203,Marketing,Central Services,Marketing  General,"1,873.00"
2605947,SHANNON COURT NURSING HOME,06/11/2012,54302,Nursing Provision,Adult Services,MH Residential External Provision,"1,544.08"
2605947,SHANNON COURT NURSING HOME,06/11/2012,54301,Residential Provision,Adult Services,OA  External Provision Residential,"34,507.90"
2605947,SHANNON COURT NURSING HOME,06/11/2012,54302,Nursing Provision,Adult Services,OA  External Provision Residential,"13,762.15"
2625718,SHANNON COURT NURSING HOME,05/12/2012,54302,Nursing Provision,Adult Services,MH Residential External Provision,"1,544.08"
2625718,SHANNON COURT NURSING HOME,05/12/2012,54301,Residential Provision,Adult Services,OA  External Provision Residential,"33,587.32"
2625718,SHANNON COURT NURSING HOME,05/12/2012,54302,Nursing Provision,Adult Services,OA  External Provision Residential,"18,141.76"
2625717,SHANNON COURT NURSING HOME,05/12/2012,54301,Residential Provision,Adult Services,OA  External Provision Residential,859.20
2618574,SHARP ASPHALT CO LTD,22/11/2012,Z6008,Expense AP Accrual,Bolton MBC Balance Sheet,Bolton MBC Balance Sheet,"4,730.05"
2626334,SHARP ASPHALT CO LTD,04/12/2012,Z6008,Expense AP Accrual,Bolton MBC Balance Sheet,Bolton MBC Balance Sheet,"6,600.09"
2606020,SHASSAB,06/11/2012,54301,Residential Provision,Adult Services,MH Residential External Provision,"1,562.16"
2625787,SHASSAB,05/12/2012,54301,Residential Provision,Adult Services,MH Residential External Provision,"1,562.16"
2627598,SHOWSEC INTERNATIONAL LIMITED,04/12/2012,48203,Marketing,Central Services,Marketing  General,"2,134.13"
2622844,SHOWSEC INTERNATIONAL LIMITED,04/12/2012,44401,Other Security Expenses,Environmental Services,Activities and Operations,"1,895.32"
2606381,SIGNHEALTH,05/11/2012,52200,Contracted Services,Adult Services,MH Residential External Provision,741.48
2609551,SIGNHEALTH,15/11/2012,52200,Contracted Services,Adult Services,MH Residential External Provision,989.46
2614570,SIGNHEALTH,26/11/2012,52000,Vol Assoc Grants  General,Adult Services,Independent,947.06
2614573,SIGNHEALTH,26/11/2012,52000,Vol Assoc Grants  General,Adult Services,Independent,859.92
2624256,SIGNHEALTH,04/12/2012,52000,Vol Assoc Grants  General,Adult Services,Independent,965.82
2624254,SIGNHEALTH,04/12/2012,52000,Vol Assoc Grants  General,Adult Services,Independent,"1,062.82"
2619596,SILK GROUP LTD,26/11/2012,48205,Promoting Bolton,Environmental Services,Civil Contingencies,521.00
2620248,SLC PARAGON,26/11/2012,52200,Contracted Services,Adult Services,Supporting People  Capital Financing,"3,754.78"
2617344,SMITHBUILD (NW) LTD,22/11/2012,Z1051,Work in Progress Additions,Housing GRF,Capital  General Fund,"5,044.00"
2619816,SMITHS GORE,26/11/2012,22003,Ground Rent,Environmental Services,Assets,650.00
2607542,SMW ARCHITECTS LTD,05/11/2012,48510,Consultancy Fees,Development & Regen,Project Revenue Account,"18,812.00"
2619039,SMW ARCHITECTS LTD,04/12/2012,48510,Consultancy Fees,Development & Regen,Project Revenue Account,"19,165.00"
2616525,SOCIAL CARE SERVICES GROUP,29/11/2012,52000,Vol Assoc Grants  General,Children's Services,Res Serv Agency Placements,604.28
2619031,SOCIAL CARE SERVICES GROUP,29/11/2012,52000,Vol Assoc Grants  General,Children's Services,Res Serv Agency Placements,"8,850.00"
2620426,SODEXO LTD#PROPERTY SOLUTIONS,13/12/2012,20100,Day To Day Maintenance,Finance Department,Libraries  Horwich,598.50
2611233,REDACTED - PERSONAL DATA,12/11/2012,33201,Transport Hire,Environmental Services,SNT Adult Servs,"1,143.10"
2623376,SOLON SECURITY LTD,06/12/2012,40100,Operational Equipment Purchase,Chief Executives Department,Neighbourhood Mgt and Area Working Devolved,"1,290.00"
2605987,SOUTHLANDS RESIDENTIAL HOME#SOUTHLANDS,06/11/2012,54301,Residential Provision,Adult Services,OA  External Provision Residential,"10,374.90"
2605986,SOUTHLANDS RESIDENTIAL HOME#SOUTHLANDS,06/11/2012,54301,Residential Provision,Adult Services,OA  External Provision Residential,"7,016.49"
2625755,SOUTHLANDS RESIDENTIAL HOME#SOUTHLANDS,05/12/2012,54301,Residential Provision,Adult Services,OA  External Provision Residential,"12,101.83"
2606007,SOUTHLEA RESIDENTIAL CARE HOME,06/11/2012,54301,Residential Provision,Adult Services,MH Residential External Provision,"1,574.44"
2625775,SOUTHLEA RESIDENTIAL CARE HOME,05/12/2012,54301,Residential Provision,Adult Services,MH Residential External Provision,"1,574.44"
2606050,SOUTHVIEW LODGE RESIDENTIAL CARE HOME,06/11/2012,54301,Residential Provision,Adult Services,OA  External Provision Residential,"1,444.00"
2625814,SOUTHVIEW LODGE RESIDENTIAL CARE HOME,05/12/2012,54301,Residential Provision,Adult Services,OA  External Provision Residential,"1,444.00"
2614299,SPECTRA SECURITY LTD,15/11/2012,25101,Security Systems   Repairs,Environmental Services,Depots,"2,955.00"
2617415,SPECTRA SECURITY LTD,22/11/2012,25107,Secure Doors,Property Services,Admin Buildings  General,"1,072.50"
2617390,SPECTRA SECURITY LTD,22/11/2012,25107,Secure Doors,Property Services,Admin Buildings  General,612.00
2606023,SPENNYMOOR CARE HOME LTD,06/11/2012,54301,Residential Provision,Adult Services,OA  External Provision Residential,"16,310.23"
2606022,SPENNYMOOR CARE HOME LTD,06/11/2012,54301,Residential Provision,Adult Services,OA  External Provision Residential,"1,087.83"
2625789,SPENNYMOOR CARE HOME LTD,05/12/2012,54301,Residential Provision,Adult Services,OA  External Provision Residential,"8,981.05"
2614292,SPORTING NRG LTD,26/11/2012,44056,Clients Training Courses,Environmental Services,Highway Management,"16,112.00"
2611289,SPUR INFORMATION SOLUTIONS LTD,12/11/2012,45430,Computer Software,Environmental Services,Parking Services  On Street,816.00
2605949,ST CATHERINES CARE HOME,06/11/2012,54301,Residential Provision,Adult Services,OA  External Provision Residential,"18,174.32"
2605949,ST CATHERINES CARE HOME,06/11/2012,54302,Nursing Provision,Adult Services,OA  External Provision Residential,"3,200.51"
2625720,ST CATHERINES CARE HOME,05/12/2012,54301,Residential Provision,Adult Services,OA  External Provision Residential,"18,993.56"
2625720,ST CATHERINES CARE HOME,05/12/2012,54302,Nursing Provision,Adult Services,OA  External Provision Residential,"7,864.69"
2625719,ST CATHERINES CARE HOME,05/12/2012,54302,Nursing Provision,Adult Services,OA  External Provision Residential,657.77
2620250,ST VINCENTS HOUSING ASSOCIATION LTD,26/11/2012,52200,Contracted Services,Adult Services,Supporting People  Capital Financing,"3,049.24"
2612471,ST VINCENTS HOUSING ASSOCIATION LTD,19/11/2012,52210,Contracted Services  Rental Voids,Adult Services,LD Purchaser Supported Housing,628.80
2612493,ST VINCENTS HOUSING ASSOCIATION LTD,19/11/2012,52210,Contracted Services  Rental Voids,Adult Services,LD Purchaser Supported Housing,724.08
2613057,STANNAH LIFT SERVICES LTD,15/11/2012,Z1051,Work in Progress Additions,Housing GRF,Capital  General Fund,"4,793.40"
2626337,STANNAH LIFT SERVICES LTD,04/12/2012,Z1051,Work in Progress Additions,Housing GRF,Capital  General Fund,"2,498.00"
2626332,STANNAH LIFT SERVICES LTD,04/12/2012,Z1051,Work in Progress Additions,Housing GRF,Capital  General Fund,"5,708.00"
2605950,STARMOUNT VILLA RESIDENTIAL CARE HOME,06/11/2012,54301,Residential Provision,Adult Services,OA  External Provision Residential,"8,084.52"
2625721,STARMOUNT VILLA RESIDENTIAL CARE HOME,05/12/2012,54301,Residential Provision,Adult Services,OA  External Provision Residential,"8,084.52"
2618495,REDACTED - PERSONAL DATA (FREELANCE TECHNICIAN),22/11/2012,Z1051,Work in Progress Additions,Property Services,Property Services Balance Sheet,"1,080.00"
2618492,REDACTED - PERSONAL DATA (FREELANCE TECHNICIAN),22/11/2012,Z1051,Work in Progress Additions,Property Services,Property Services Balance Sheet,960.00
2613948,STEVE ARMSTRONG CONSULTANCY,15/11/2012,48509,Other Fees,Children's Services,Sec Sch Imp  Intensive Supp/Intervention,"1,000.00"
2615396,STOCKPORT PSYCHOLOGY SERVICES,19/11/2012,48509,Other Fees,Children's Services,Management Team,643.50
2615393,STOCKPORT PSYCHOLOGY SERVICES,19/11/2012,48509,Other Fees,Children's Services,Management Team,555.75
2606041,STONEDALE LODGE#BUPA CARE HOMES,06/11/2012,54301,Residential Provision,Adult Services,OA  External Provision Residential,"1,713.20"
2625806,STONEDALE LODGE#BUPA CARE HOMES,05/12/2012,54301,Residential Provision,Adult Services,OA  External Provision Residential,"1,713.20"
2617377,STONEPAVE J FLETCHER,22/11/2012,20100,Day To Day Maintenance,Development & Regen,The Leisure Trust,985.00
2620254,STONHAM,26/11/2012,52200,Contracted Services,Adult Services,Supporting People  Capital Financing,"40,065.39"
2605988,STRATHMORE NURSING HOME#WHITEHILL HOMES LTD,06/11/2012,54301,Residential Provision,Adult Services,OA  External Provision Residential,"8,221.47"
2605988,STRATHMORE NURSING HOME#WHITEHILL HOMES LTD,06/11/2012,54302,Nursing Provision,Adult Services,OA  External Provision Residential,"4,024.97"
2605988,STRATHMORE NURSING HOME#WHITEHILL HOMES LTD,06/11/2012,54301,Residential Provision,Adult Services,PD Purchaser Residential Care,"1,522.96"
2625756,STRATHMORE NURSING HOME#WHITEHILL HOMES LTD,05/12/2012,54301,Residential Provision,Adult Services,OA  External Provision Residential,"7,296.81"
2625756,STRATHMORE NURSING HOME#WHITEHILL HOMES LTD,05/12/2012,54302,Nursing Provision,Adult Services,OA  External Provision Residential,"3,535.44"
2625756,STRATHMORE NURSING HOME#WHITEHILL HOMES LTD,05/12/2012,54301,Residential Provision,Adult Services,PD Purchaser Residential Care,"1,522.96"
2611235,STREET CARS#REDACTED - PERSONAL DATA,12/11/2012,33201,Transport Hire,Environmental Services,SNT Adult Servs,"11,963.10"
2613968,REDACTED - PERSONAL DATA,26/11/2012,19100,Training Exps Tuition Fees,Adult Services,Staff Development  Adults,"2,400.00"
2605990,SUNNYSIDE RESIDENTIAL HOME,06/11/2012,54301,Residential Provision,Adult Services,OA  External Provision Residential,"33,368.20"
2605990,SUNNYSIDE RESIDENTIAL HOME,06/11/2012,54301,Residential Provision,Adult Services,PD Purchaser Residential Care,"1,500.00"
2625758,SUNNYSIDE RESIDENTIAL HOME,05/12/2012,54301,Residential Provision,Adult Services,OA  External Provision Residential,"34,223.08"
2625758,SUNNYSIDE RESIDENTIAL HOME,05/12/2012,54301,Residential Provision,Adult Services,PD Purchaser Residential Care,"1,500.00"
2625757,SUNNYSIDE RESIDENTIAL HOME,05/12/2012,54301,Residential Provision,Adult Services,OA  External Provision Residential,706.23
2606072,SUPPORTED HOUSING FOR REDACTED - PERSONAL DATA#LIFEWAYS,06/11/2012,52200,Contracted Services,Adult Services,LD Purchaser Supported Housing,"14,623.84"
2625838,SUPPORTED HOUSING FOR REDACTED - PERSONAL DATA#LIFEWAYS,05/12/2012,52200,Contracted Services,Adult Services,LD Purchaser Supported Housing,"14,623.84"
2606073,SUPPORTED HOUSING FOR REDACTED - PERSONAL DATA#LIFEWAYS,06/11/2012,52200,Contracted Services,Adult Services,LD Purchaser Supported Housing,"19,568.60"
2625839,SUPPORTED HOUSING FOR REDACTED - PERSONAL DATA#LIFEWAYS,05/12/2012,52200,Contracted Services,Adult Services,LD Purchaser Supported Housing,"19,568.60"
2606077,SUPPORTED HOUSING FOR REDACTED - PERSONAL DATA#LIFEWAYS,06/11/2012,52200,Contracted Services,Adult Services,LD Purchaser Supported Housing,"14,276.00"
2625844,SUPPORTED HOUSING FOR REDACTED - PERSONAL DATA#LIFEWAYS,05/12/2012,52200,Contracted Services,Adult Services,LD Purchaser Supported Housing,"14,276.00"
2606078,SUPPORTED HOUSING FOR REDACTED - PERSONAL DATA#LIFEWAYS,06/11/2012,52200,Contracted Services,Adult Services,LD Purchaser Supported Housing,"11,897.76"
2625845,SUPPORTED HOUSING FOR REDACTED - PERSONAL DATA#LIFEWAYS,05/12/2012,52200,Contracted Services,Adult Services,LD Purchaser Supported Housing,"11,897.76"
2606069,SUPPORTED HOUSING FOR REDACTED - PERSONAL DATA#LIFEWAYS,06/11/2012,52200,Contracted Services,Adult Services,LD Purchaser Supported Housing,"9,603.84"
2625835,SUPPORTED HOUSING FOR REDACTED - PERSONAL DATA#LIFEWAYS,05/12/2012,52200,Contracted Services,Adult Services,LD Purchaser Supported Housing,"9,603.84"
2606083,SUPPORTED HOUSING FOR REDACTED - PERSONAL DATA#LIFEWAYS,06/11/2012,52200,Contracted Services,Adult Services,LD Purchaser Supported Housing,"7,192.00"
2625850,SUPPORTED HOUSING FOR REDACTED - PERSONAL DATA#LIFEWAYS,05/12/2012,52200,Contracted Services,Adult Services,LD Purchaser Supported Housing,"7,192.00"
2606080,SUPPORTED HOUSING FOR REDACTED - PERSONAL DATA#LIFEWAYS,06/11/2012,52200,Contracted Services,Adult Services,LD Purchaser Supported Housing,"6,787.20"
2625847,SUPPORTED HOUSING FOR REDACTED - PERSONAL DATA#LIFEWAYS,05/12/2012,52200,Contracted Services,Adult Services,LD Purchaser Supported Housing,"6,787.20"
2606082,SUPPORTED HOUSING FOR REDACTED - PERSONAL DATA#LIFEWAYS,06/11/2012,52200,Contracted Services,Adult Services,LD Purchaser Supported Housing,"17,818.04"
2625849,SUPPORTED HOUSING FOR REDACTED - PERSONAL DATA#LIFEWAYS,05/12/2012,52200,Contracted Services,Adult Services,LD Purchaser Supported Housing,"17,818.04"
2606079,SUPPORTED HOUSING FOR REDACTED - PERSONAL DATA#LIFEWAYS,06/11/2012,52200,Contracted Services,Adult Services,LD Purchaser Supported Housing,"11,923.12"
2625846,SUPPORTED HOUSING FOR REDACTED - PERSONAL DATA#LIFEWAYS,05/12/2012,52200,Contracted Services,Adult Services,LD Purchaser Supported Housing,"11,923.12"
2606081,SUPPORTED HOUSING FOR REDACTED - PERSONAL DATA#LIFEWAYS,06/11/2012,52200,Contracted Services,Adult Services,LD Purchaser Supported Housing,"11,442.40"
2625848,SUPPORTED HOUSING FOR REDACTED - PERSONAL DATA#LIFEWAYS,05/12/2012,52200,Contracted Services,Adult Services,LD Purchaser Supported Housing,"11,442.40"
2606074,SUPPORTED HOUSING FOR REDACTED - PERSONAL DATA#LIFEWAYS,06/11/2012,52200,Contracted Services,Adult Services,LD Purchaser Supported Housing,"2,125.20"
2625841,SUPPORTED HOUSING FOR REDACTED - PERSONAL DATA#LIFEWAYS,05/12/2012,52200,Contracted Services,Adult Services,LD Purchaser Supported Housing,"2,125.20"
2606076,SUPPORTED HOUSING FOR REDACTED - PERSONAL DATA#LIFEWAYS,06/11/2012,52200,Contracted Services,Adult Services,LD Purchaser Supported Housing,"11,746.00"
2625843,SUPPORTED HOUSING FOR REDACTED - PERSONAL DATA#LIFEWAYS,05/12/2012,52200,Contracted Services,Adult Services,LD Purchaser Supported Housing,"11,746.00"
2606075,SUPPORTED HOUSING FOR REDACTED - PERSONAL DATA#LIFEWAYS,06/11/2012,52200,Contracted Services,Adult Services,LD Purchaser Supported Housing,"6,433.04"
2625842,SUPPORTED HOUSING FOR REDACTED - PERSONAL DATA#LIFEWAYS,05/12/2012,52200,Contracted Services,Adult Services,LD Purchaser Supported Housing,"6,433.04"
2606071,SUPPORTED HOUSING FOR REDACTED - PERSONAL DATA#LIFEWAYS,06/11/2012,52200,Contracted Services,Adult Services,PD Purchaser Supported Housing,"1,667.89"
2625837,SUPPORTED HOUSING FOR REDACTED - PERSONAL DATA#LIFEWAYS,05/12/2012,52200,Contracted Services,Adult Services,PD Purchaser Supported Housing,"1,019.38"
2608644,SUPPORTED HOUSING FOR REDACTED - PERSONAL DATA#LIFEWAYS,06/11/2012,52200,Contracted Services,Adult Services,LD Purchaser Supported Housing,"8,052.24"
2606067,SUPPORTED HOUSING FOR REDACTED - PERSONAL DATA#LIFEWAYS,06/11/2012,52200,Contracted Services,Adult Services,LD Purchaser Supported Housing,"6,591.80"
2625833,SUPPORTED HOUSING FOR REDACTED - PERSONAL DATA#LIFEWAYS,05/12/2012,52200,Contracted Services,Adult Services,LD Purchaser Supported Housing,"6,591.80"
2606070,SUPPORTED HOUSING FOR REDACTED - PERSONAL DATA#LIFEWAYS,06/11/2012,52200,Contracted Services,Adult Services,LD Purchaser Supported Housing,"8,951.20"
2625836,SUPPORTED HOUSING FOR REDACTED - PERSONAL DATA#LIFEWAYS,05/12/2012,52200,Contracted Services,Adult Services,LD Purchaser Supported Housing,"8,951.20"
2606068,SUPPORTED HOUSING FOR REDACTED - PERSONAL DATA#LIFEWAYS,06/11/2012,52200,Contracted Services,Adult Services,LD Purchaser Supported Housing,"16,807.52"
2625834,SUPPORTED HOUSING FOR REDACTED - PERSONAL DATA#LIFEWAYS,05/12/2012,52200,Contracted Services,Adult Services,LD Purchaser Supported Housing,"16,807.52"
2617989,SUPRA UK LIMITED,26/11/2012,44051,Clients Aids & Adaptations,Adult Services,ICES,"5,077.64"
2608286,SUSTAIN LTD,08/11/2012,48509,Other Fees,Property Services,Energy Efficiency Initiatives,"2,750.00"
2624396,SUSTAIN LTD,04/12/2012,48509,Other Fees,Property Services,Energy Efficiency Initiatives,"2,750.00"
2610010,SUTCLIFFE PLAY LTD,15/11/2012,40601,General Materials,Environmental Services,Activities and Operations,"1,430.00"
2610006,SWIFT DATAPRO SOFTWARE LIMITED,22/11/2012,45430,Computer Software,Development & Regen,Spatial Data  from GIS,950.00
2606098,SYCAMORE COURT,06/11/2012,54301,Residential Provision,Adult Services,OA  External Provision Residential,"3,294.50"
2625864,SYCAMORE COURT,05/12/2012,54301,Residential Provision,Adult Services,OA  External Provision Residential,"1,844.92"
2607593,SYKES CHEMIST LTD,08/11/2012,52200,Contracted Services,Adult Services,Drugs Pooled Treatment Budget,"1,335.40"
2615562,SYKES CHEMIST LTD,19/11/2012,52200,Contracted Services,Adult Services,Drugs Pooled Treatment Budget,"1,322.20"
2607809,SYKES CHEMIST LTD,08/11/2012,52200,Contracted Services,Adult Services,Drugs Pooled Treatment Budget,"1,407.50"
2607799,SYKES CHEMIST LTD,08/11/2012,52200,Contracted Services,Adult Services,Drugs Pooled Treatment Budget,523.50
2607766,SYKES CHEMIST LTD,08/11/2012,52200,Contracted Services,Adult Services,Drugs Pooled Treatment Budget,558.00
2620301,SYMPHONY HOUSING GROUP,26/11/2012,52200,Contracted Services,Adult Services,Supporting People  Capital Financing,"8,241.69"
2619059,SYSTEM STORE SOLUTIONS LTD,04/12/2012,Z1051,Work in Progress Additions,Property Services,Property Services Balance Sheet,"1,280.00"
2622718,T LOWE & SON LIMITED,29/11/2012,20100,Day To Day Maintenance,Environmental Services,Depots,527.24
2617449,T LOWE & SON LIMITED,22/11/2012,20100,Day To Day Maintenance,Central Corporate,Land & Property,655.00
2617799,TARMAC LIMITED#CMS POZAMENT,29/11/2012,Z6008,Expense AP Accrual,Bolton MBC Balance Sheet,Bolton MBC Balance Sheet,837.20
2617834,TARMAC LIMITED#CMS POZAMENT,29/11/2012,Z6008,Expense AP Accrual,Bolton MBC Balance Sheet,Bolton MBC Balance Sheet,555.74
2617794,TARMAC LIMITED#CMS POZAMENT,29/11/2012,Z6008,Expense AP Accrual,Bolton MBC Balance Sheet,Bolton MBC Balance Sheet,507.14
2617801,TARMAC LIMITED#CMS POZAMENT,29/11/2012,Z6008,Expense AP Accrual,Bolton MBC Balance Sheet,Bolton MBC Balance Sheet,503.42
2612858,TARMAC LIMITED#CMS POZAMENT,19/11/2012,Z6008,Expense AP Accrual,Bolton MBC Balance Sheet,Bolton MBC Balance Sheet,"1,249.58"
2624374,TARMAC LIMITED#CMS POZAMENT,04/12/2012,Z6008,Expense AP Accrual,Bolton MBC Balance Sheet,Bolton MBC Balance Sheet,"1,154.43"
2609636,TEAM-TEACH LTD,15/11/2012,48630,NonStaff Training,Children's Services,Disability Serv Family Support Team,"2,880.00"
2609495,TECALEMIT GARAGE EQUIPMENT CO LTD,15/11/2012,40101,Operational Equipment Maint,Environmental Services,Transport Support Service,"1,551.73"
2614409,TECHNIDIAMANT#CID GROUP,29/11/2012,Z6008,Expense AP Accrual,Bolton MBC Balance Sheet,Bolton MBC Balance Sheet,"1,320.00"
2622708,TELECARS BOLTON,29/11/2012,34402,Clients  Taxi Fares,Environmental Services,SNT Childrens Servs,"2,016.50"
2622717,TELECARS BOLTON,29/11/2012,34402,Clients  Taxi Fares,Environmental Services,SNT Childrens Servs,"2,136.50"
2615487,TELECARS BOLTON,19/11/2012,33201,Transport Hire,Environmental Services,SNT Adult Servs,"1,108.00"
2611103,TELECARS BOLTON,12/11/2012,33201,Transport Hire,Environmental Services,SNT Adult Servs,631.00
2611102,TELECARS BOLTON,12/11/2012,33201,Transport Hire,Environmental Services,SNT Adult Servs,"2,295.00"
2612606,TFP THE FINISHING POINT LTD,22/11/2012,40141,Office Equipment Maintenance,Central Services,Text & Reprographics,"2,318.00"
2605940,THE BAKEWELLS,06/11/2012,54301,Residential Provision,Adult Services,OA  External Provision Residential,"18,117.52"
2625711,THE BAKEWELLS,05/12/2012,54301,Residential Provision,Adult Services,OA  External Provision Residential,"18,117.52"
2606099,THE BEECHES CARE HOME,06/11/2012,54301,Residential Provision,Adult Services,OA  External Provision Residential,"4,800.00"
2625866,THE BEECHES CARE HOME,05/12/2012,54301,Residential Provision,Adult Services,OA  External Provision Residential,"1,792.00"
2605966,THE BRANDLES,06/11/2012,54301,Residential Provision,Adult Services,MH Residential External Provision,"3,112.36"
2625736,THE BRANDLES,05/12/2012,54301,Residential Provision,Adult Services,MH Residential External Provision,"3,112.36"
2608305,THE BREAD AND BUTTER THEATRE COMPANY LTD,08/11/2012,55700,Grant Funded Expenditure,Chief Executives Department,Neighbourhood Mgt and Area Working Devolved,600.00
2605934,THE BUNGALOW RESIDENTIAL HOME,06/11/2012,54301,Residential Provision,Adult Services,LD Purchaser Residential Care,"1,522.96"
2605934,THE BUNGALOW RESIDENTIAL HOME,06/11/2012,54301,Residential Provision,Adult Services,OA  External Provision Residential,"15,827.90"
2605934,THE BUNGALOW RESIDENTIAL HOME,06/11/2012,54301,Residential Provision,Adult Services,PD Purchaser Residential Care,"1,522.96"
2625706,THE BUNGALOW RESIDENTIAL HOME,05/12/2012,54301,Residential Provision,Adult Services,LD Purchaser Residential Care,"1,522.96"
2625706,THE BUNGALOW RESIDENTIAL HOME,05/12/2012,54301,Residential Provision,Adult Services,OA  External Provision Residential,"15,229.60"
2625706,THE BUNGALOW RESIDENTIAL HOME,05/12/2012,54301,Residential Provision,Adult Services,PD Purchaser Residential Care,"1,522.96"
2606006,THE CLOUGH RESIDENTIAL HOME,06/11/2012,54301,Residential Provision,Adult Services,OA  External Provision Residential,"21,158.27"
2625774,THE CLOUGH RESIDENTIAL HOME,05/12/2012,54301,Residential Provision,Adult Services,OA  External Provision Residential,"22,844.40"
2609879,THE COLUMBARIA COMPANY,12/11/2012,40610,Direct Materials,Environmental Services,Bereavement Services,949.00
2623836,THE CORPORATE GROUP#CORPORATE PRODUCTS LTD,04/12/2012,48509,Other Fees,Development & Regen,Project Revenue Account,"6,500.00"
2605999,THE DAVID LEWIS CENTRE,06/11/2012,54301,Residential Provision,Adult Services,LD Purchaser Residential Care,"12,746.64"
2625766,THE DAVID LEWIS CENTRE,05/12/2012,54301,Residential Provision,Adult Services,LD Purchaser Residential Care,"12,746.64"
2618525,THE GREATER MANCHESTER COMBINED AUTHORITY,22/11/2012,20501,Engineering Work,Environmental Services,Highway Services,754.40
2618437,THE GREEN ESTATE LTD,22/11/2012,20401,Landscape Work,Environmental Services,Activities and Operations,"6,408.70"
2608330,THE LANCASHIRE WILDLIFE TRUST,08/11/2012,53000,Private Contracted Services,Environmental Services,Assets,"8,561.39"
2618620,THE LAS GROUP#ASHLEY RAMSDEN,22/11/2012,40100,Operational Equipment Purchase,Children's Services,Res Serv Maintenance,"3,515.00"
2619023,THE LEAVING CARE COMPANY,26/11/2012,52000,Vol Assoc Grants  General,Children's Services,Res Serv Agency Placements,"2,464.29"
2613167,THE LEAVING CARE TEAM,15/11/2012,52300,Client Support Costs,Children's Services,Child Prot Leaving Care Team,"2,000.61"
2621336,THE LEAVING CARE TEAM,26/11/2012,52300,Client Support Costs,Children's Services,Child Prot Leaving Care Team,"1,421.83"
2608187,THE LEAVING CARE TEAM,08/11/2012,52300,Client Support Costs,Children's Services,Child Prot Leaving Care Team,"1,495.83"
2606058,THE LIMES#MAKING SPACES,06/11/2012,54301,Residential Provision,Adult Services,MH Residential External Provision,"2,100.00"
2625824,THE LIMES#MAKING SPACES,05/12/2012,54301,Residential Provision,Adult Services,MH Residential External Provision,"2,100.00"
2606312,THE LOCAL CARE COMPANY (BOLTON) LTD,05/11/2012,52200,Contracted Services,Adult Services,OA  Home Care Services external provision,"23,492.62"
2626718,THE LOCAL CARE COMPANY (BOLTON) LTD,04/12/2012,52200,Contracted Services,Adult Services,OA  Home Care Services external provision,"23,735.55"
2622300,THE MUSIC CELLAR,06/12/2012,40610,Direct Materials,Children's Services,Music Serv  Events and External Funding,912.00
2617940,THE NATIONAL FOSTERING AGENCY,29/11/2012,52000,Vol Assoc Grants  General,Children's Services,Res Serv Agency Placements,"2,988.40"
2622376,THE NATIONAL FOSTERING AGENCY,29/11/2012,52000,Vol Assoc Grants  General,Children's Services,Disability Serv External Provision,"3,453.40"
2616435,THE NOISY DRINKS COMPANY,19/11/2012,41101,Catering ProvisionsFood,Environmental Services,Catering,632.39
2616440,THE NOISY DRINKS COMPANY,19/11/2012,41101,Catering ProvisionsFood,Environmental Services,Catering,585.14
2616443,THE NOISY DRINKS COMPANY,19/11/2012,41101,Catering ProvisionsFood,Environmental Services,Catering,536.07
2609493,THE NOISY DRINKS COMPANY,08/11/2012,41101,Catering ProvisionsFood,Environmental Services,Catering,570.07
2606011,THE OAKS,06/11/2012,54301,Residential Provision,Adult Services,OA  External Provision Residential,"3,219.20"
2625779,THE OAKS,05/12/2012,54301,Residential Provision,Adult Services,OA  External Provision Residential,"3,219.20"
2606002,THE OLD VICARAGE,06/11/2012,54301,Residential Provision,Adult Services,OA  External Provision Residential,"3,593.08"
2625769,THE OLD VICARAGE,05/12/2012,54301,Residential Provision,Adult Services,OA  External Provision Residential,"3,593.08"
2606092,THE OLD VICARAGE#1,06/11/2012,54301,Residential Provision,Adult Services,OA  External Provision Residential,"1,772.00"
2625859,THE OLD VICARAGE#1,05/12/2012,54301,Residential Provision,Adult Services,OA  External Provision Residential,"1,772.00"
2605964,THE SPINAL UNIT ACTION GROUP,06/11/2012,54301,Residential Provision,Adult Services,PD Purchaser Residential Care,"2,192.40"
2625734,THE SPINAL UNIT ACTION GROUP,05/12/2012,54301,Residential Provision,Adult Services,PD Purchaser Residential Care,"2,192.40"
2609908,THE STROKE ASSOCIATION,15/11/2012,52000,Vol Assoc Grants  General,Adult Services,OA  Day Care Provision  external,"3,000.00"
2609571,THE TOGETHER TRUST,08/11/2012,52200,Contracted Services,Adult Services,LD Purchaser Supported Housing,"1,436.34"
2609573,THE TOGETHER TRUST,08/11/2012,52200,Contracted Services,Adult Services,LD Purchaser Supported Housing,"2,263.18"
2617967,THE TOGETHER TRUST,22/11/2012,52000,Vol Assoc Grants  General,Children's Services,Disability Serv External Provision,"15,882.85"
2609575,THE TOGETHER TRUST,08/11/2012,52200,Contracted Services,Adult Services,LD Purchaser Supported Housing,"3,018.27"
2625781,THE TOGETHER TRUST,05/12/2012,54301,Residential Provision,Adult Services,LD Purchaser Residential Care,"55,333.65"
2617763,THE VACANT PROPERTY SPECIALISTS#VPS (UK) LIMITED,04/12/2012,Z1051,Work in Progress Additions,Housing GRF,Capital  General Fund,"1,606.50"
2610901,THERAPEUTIC ENVIRONMENTS LTD,15/11/2012,54301,Residential Provision,Adult Services,Alcohol Rehab Budget,846.02
2611129,THERAPEUTIC ENVIRONMENTS LTD,12/11/2012,54301,Residential Provision,Adult Services,Alcohol Rehab Budget,"1,502.90"
2611132,THERAPEUTIC ENVIRONMENTS LTD,12/11/2012,54301,Residential Provision,Adult Services,Alcohol Rehab Budget,"1,790.78"
2620388,THOMSON REUTERS,26/11/2012,40750,Text Books,Legal Trading,Legal Services Trading Account,515.00
2606012,THORLEY HOUSE,06/11/2012,54301,Residential Provision,Adult Services,OA  External Provision Residential,"1,492.68"
2625780,THORLEY HOUSE,05/12/2012,54301,Residential Provision,Adult Services,OA  External Provision Residential,"1,492.68"
2606001,THORNCLIFFE GRANGE NURSING HOME,06/11/2012,54302,Nursing Provision,Adult Services,OA  External Provision Residential,"1,762.80"
2625768,THORNCLIFFE GRANGE NURSING HOME,05/12/2012,54302,Nursing Provision,Adult Services,OA  External Provision Residential,"1,762.80"
2605967,THORNCLIFFE NURSING HOME,06/11/2012,54301,Residential Provision,Adult Services,OA  External Provision Residential,"3,152.00"
2625737,THORNCLIFFE NURSING HOME,05/12/2012,54301,Residential Provision,Adult Services,OA  External Provision Residential,"3,152.00"
2613170,TICKETSOLVE LTD,15/11/2012,48509,Other Fees,Environmental Services,Albert Halls Entertainment,"2,201.60"
2618466,TL ELECTRICAL SERVICES,29/11/2012,20100,Day To Day Maintenance,Property Services,Accomm Rationalisation Strategy,"1,829.20"
2618467,TL ELECTRICAL SERVICES,29/11/2012,20100,Day To Day Maintenance,Central Corporate,Land & Property,885.00
2624368,TONGE BIKES LTD,04/12/2012,48509,Other Fees,Children's Services,Targeted Youth Support,500.00
2622051,TOTAL CLOSURE TRAFFIC MANAGEMENT LTD,29/11/2012,Z1051,Work in Progress Additions,Highways,Stores,605.00
2618422,TRAKM8 LIMITED,22/11/2012,45409,Information and Communication Technology,Environmental Services,Transport Support Service,805.00
2619440,TRANSPORT FOR GREATER MANCHESTER,26/11/2012,Z1051,Work in Progress Additions,Highways,Stores,572.98
2607830,TRANSPORT FOR GREATER MANCHESTER,08/11/2012,40102,Operational Equipment Rental,Development & Regen,Metro Shuttle Bus,"9,936.00"
2615212,TRANSPORT FOR GREATER MANCHESTER,10/12/2012,Z1051,Work in Progress Additions,Highways,Stores,"1,109.97"
2612455,TREESCAPE NORTH WEST LTD,22/11/2012,52200,Contracted Services,Environmental Services,Activities and Operations,800.00
2614564,TREESCAPE NORTH WEST LTD,26/11/2012,52200,Contracted Services,Environmental Services,Activities and Operations,"2,200.00"
2614550,TREESCAPE NORTH WEST LTD,26/11/2012,52200,Contracted Services,Environmental Services,Activities and Operations,"1,200.00"
2609919,TRENCH-RIGHT LTD,15/11/2012,20501,Engineering Work,Environmental Services,Highway Regulation & Inspection,"6,624.00"
2612360,TROWERS & HAMLINS,12/11/2012,48502,Legal Fees,Housing GRF,Bolton Community Homes,765.80
2624278,TURNER & WRIGHTS LIMITED,04/12/2012,41101,Catering ProvisionsFood,Environmental Services,Albert Halls  Operations,586.22
2610237,TURNING POINT (SERVICES) LIMITED,15/11/2012,54301,Residential Provision,Adult Services,Drugs Rehab Budget,"2,193.00"
2610140,TURNING POINT (SERVICES) LIMITED,15/11/2012,54301,Residential Provision,Adult Services,Drugs and Alcohol Section 75 Agreement,"1,855.00"
2610151,TURNING POINT (SERVICES) LIMITED,15/11/2012,54301,Residential Provision,Adult Services,Drugs and Alcohol Section 75 Agreement,"1,855.00"
2610149,TURNING POINT (SERVICES) LIMITED,15/11/2012,54301,Residential Provision,Adult Services,Drugs and Alcohol Section 75 Agreement,"2,650.00"
2615630,TURNING POINT (SERVICES) LIMITED,19/11/2012,54301,Residential Provision,Adult Services,Drugs and Alcohol Section 75 Agreement,"1,325.00"
2615627,TURNING POINT (SERVICES) LIMITED,19/11/2012,54301,Residential Provision,Adult Services,Drugs and Alcohol Section 75 Agreement,"1,855.00"
2610135,TURNING POINT (SERVICES) LIMITED,15/11/2012,54301,Residential Provision,Adult Services,Drugs and Alcohol Section 75 Agreement,"1,855.00"
2610144,TURNING POINT (SERVICES) LIMITED,15/11/2012,54301,Residential Provision,Adult Services,Drugs Rehab Budget,678.86
2610138,TURNING POINT (SERVICES) LIMITED,15/11/2012,54301,Residential Provision,Adult Services,Drugs and Alcohol Section 75 Agreement,"1,855.00"
2610133,TURNING POINT (SERVICES) LIMITED,15/11/2012,54301,Residential Provision,Adult Services,Drugs and Alcohol Section 75 Agreement,"1,590.00"
2610132,TURNING POINT (SERVICES) LIMITED,15/11/2012,54301,Residential Provision,Adult Services,Drugs and Alcohol Section 75 Agreement,"1,855.00"
2617933,TURNING POINT (SERVICES) LIMITED,04/12/2012,54301,Residential Provision,Adult Services,Drugs and Alcohol Section 75 Agreement,"1,855.00"
2614611,TURNOCK LIMITED,26/11/2012,Z1051,Work in Progress Additions,Development & Regen,Development & Regeneration Capital,"2,265.00"
2616356,TWM TRAFFIC CONTROL SYSTEMS LTD,19/11/2012,20504,Signage,Environmental Services,Highway Management,955.00
2616650,ULVERSCROFT LARGE PRINT BOOKS LIMITED,26/11/2012,40753,Book Fund Expenditure,Finance Department,Libraries Info. Services,633.60
2609341,UNIGLOBE DIAMOND TRAVEL#CRESTA WORLD TRAVEL LTD T/A NORTHENDEN,15/11/2012,34101,Staff/Officers   Rail Fares,Children's Services,Admin Directorate,541.00
2609926,UNIGLOBE DIAMOND TRAVEL#CRESTA WORLD TRAVEL LTD T/A NORTHENDEN,19/11/2012,44054,Other Clients Services,Children's Services,Safeguarding Team West,882.78
2612573,UNIGLOBE DIAMOND TRAVEL#CRESTA WORLD TRAVEL LTD T/A NORTHENDEN,22/11/2012,34101,Staff/Officers   Rail Fares,Children's Services,Payment by Results,614.00
2614595,UNIGLOBE DIAMOND TRAVEL#CRESTA WORLD TRAVEL LTD T/A NORTHENDEN,29/11/2012,34101,Staff/Officers   Rail Fares,Children's Services,Positive Activities,572.00
2623868,UNIT ONE ENTERTAINMENTS,04/12/2012,48501,Artistes Fees,Environmental Services,Civic Catering  Town Hall Functions,"2,005.00"
2623872,UNIT ONE ENTERTAINMENTS,04/12/2012,48501,Artistes Fees,Environmental Services,Civic Catering  Town Hall Functions,"6,050.00"
2606315,UNITED UTILITIES WATER PLC#1,05/11/2012,20100,Day To Day Maintenance,Children's Services,Technical Innovation Centre,"1,037.82"
2622137,UNITED UTILITIES WATER PLC#1,29/11/2012,Z1051,Work in Progress Additions,Highways,Stores,"8,299.43"
2617988,UNITED UTILITIES WATER PLC#1,22/11/2012,22201,Water Charges  Unmetered,Children's Services,Tonge CC,953.89
2619859,UNIVERSAL BODY REPAIRS LTD,26/11/2012,36200,Uninsured Losses  Vehicles,Environmental Services,Transport Support Service,586.94
2620302,URBAN OUTREACH (BOLTON),26/11/2012,52200,Contracted Services,Adult Services,Supporting People  Capital Financing,"3,068.49"
2613450,URBAN VISION PARTNERSHIP LTD#GMGU,29/11/2012,48510,Consultancy Fees,Property Services,Estates & Property Management,"6,118.86"
2605951,VALE HOUSE#VALE RESIDENTIAL LTD,06/11/2012,54301,Residential Provision,Adult Services,OA  External Provision Residential,"14,438.80"
2625723,VALE HOUSE#VALE RESIDENTIAL LTD,05/12/2012,54301,Residential Provision,Adult Services,OA  External Provision Residential,"14,438.80"
2619433,VEOLIA ES (UK) LTD#C&C RECYCLING IS A SUBSIDIARY,13/12/2012,26106,Refuse Collection,Environmental Services,Security Services,500.00
2616335,REDACTED - PERSONAL DATA,04/12/2012,48509,Other Fees,Children's Services,Music ServInstru & Vocal Teach,600.00
2618946,VIP-SYSTEM LIMITED,04/12/2012,40100,Operational Equipment Purchase,Environmental Services,Regulatory Services,575.40
2609497,W & S C JOBSON,08/11/2012,52200,Contracted Services,Environmental Services,Transport Support Service,"1,660.22"
2609491,W & S C JOBSON,08/11/2012,52200,Contracted Services,Environmental Services,Transport Support Service,"1,659.98"
2623454,W & S C JOBSON,04/12/2012,52200,Contracted Services,Environmental Services,Transport Support Service,"3,384.38"
2624386,W CRAVEN & SON,04/12/2012,Z1051,Work in Progress Additions,Property Services,Corporate Property Capital Project Transfers to Other Projects,870.00
2619532,W CRAVEN & SON,17/12/2012,20100,Day To Day Maintenance,Property Services,Town Hall,641.18
2615211,W CRAVEN & SON,10/12/2012,20100,Day To Day Maintenance,Development & Regen,The Leverhulme Centre,"3,800.00"
2609422,WAINWRIGHT TREE STUMP REMOVAL LTD,15/11/2012,52200,Contracted Services,Environmental Services,Activities and Operations,740.00
2608642,WALKDEN MANOR CARE HOME LTD,06/11/2012,54301,Residential Provision,Adult Services,OA  External Provision Residential,763.48
2613081,WALTON SUMMIT TRUCK CENTRE,22/11/2012,52200,Contracted Services,Environmental Services,Transport Support Service,546.79
2612503,WALTONS THE CATERERS,15/11/2012,41101,Catering ProvisionsFood,Children's Services,Technical Innovation Centre,803.25
2609659,WALTONS THE CATERERS,08/11/2012,41101,Catering ProvisionsFood,Children's Services,Technical Innovation Centre,"1,261.40"
2613745,WARWICK INTERNATIONAL COMPUTING SYSTEMS,15/11/2012,48631,Office Expenses  General,Chief Executives Department,Occupational Health Unit,"5,834.00"
2608090,WAYFINDER UK LIMITED,08/11/2012,Z1051,Work in Progress Additions,Development & Regen,Development & Regeneration Capital,"6,230.00"
2606027,WESTFIELD HOUSE CARE HOME,06/11/2012,54301,Residential Provision,Adult Services,MH Residential External Provision,"4,292.72"
2625793,WESTFIELD HOUSE CARE HOME,05/12/2012,54301,Residential Provision,Adult Services,MH Residential External Provision,"4,292.72"
2611239,WESTHOUGHTON COACH HIRE,12/11/2012,33201,Transport Hire,Environmental Services,SNT Adult Servs,"1,692.00"
2612451,WHITES WASTE PAPER LTD,15/11/2012,53000,Private Contracted Services,Environmental Services,Trade Waste,783.33
2623377,WHITTINGHAMS FARM SUPPLIES,06/12/2012,52200,Contracted Services,Environmental Services,Transport Support Service,"1,157.35"
2610131,WILDE CONSULTANTS LTD,12/11/2012,Z1051,Work in Progress Additions,Environmental Services,Environmental Services Balance sheet,"5,150.90"
2611241,WILLOWS MINIBUS,12/11/2012,33201,Transport Hire,Environmental Services,SNT Adult Servs,"2,880.00"
2605953,WINGATES RESIDENTIAL HOME,06/11/2012,54301,Residential Provision,Adult Services,OA  External Provision Residential,"44,343.02"
2605952,WINGATES RESIDENTIAL HOME,06/11/2012,54301,Residential Provision,Adult Services,OA  External Provision Residential,"1,800.19"
2625724,WINGATES RESIDENTIAL HOME,05/12/2012,54301,Residential Provision,Adult Services,OA  External Provision Residential,"42,854.08"
2623385,WINSCRIBE EUROPE LTD,06/12/2012,43032,Office Stationery,Finance Department,H.B. Investigation Team,"2,668.00"
2605968,WITHINS RESIDENTIAL HOME,06/11/2012,54301,Residential Provision,Adult Services,OA  External Provision Residential,"1,268.35"
2605969,WITHINS RESIDENTIAL HOME,06/11/2012,54301,Residential Provision,Adult Services,OA  External Provision Residential,"71,579.15"
2625739,WITHINS RESIDENTIAL HOME,05/12/2012,54301,Residential Provision,Adult Services,OA  External Provision Residential,"74,998.17"
2625738,WITHINS RESIDENTIAL HOME,05/12/2012,54301,Residential Provision,Adult Services,OA  External Provision Residential,"1,930.10"
2614240,WJ ROADMARKINGS LTD,26/11/2012,52200,Contracted Services,Environmental Services,Activities and Operations,732.00
2605955,WOODLANDS HOUSE RESIDENTIAL HOME LTD,06/11/2012,54301,Residential Provision,Adult Services,OA  External Provision Residential,"33,504.29"
2605954,WOODLANDS HOUSE RESIDENTIAL HOME LTD,06/11/2012,54301,Residential Provision,Adult Services,OA  External Provision Residential,599.29
2625726,WOODLANDS HOUSE RESIDENTIAL HOME LTD,05/12/2012,54301,Residential Provision,Adult Services,OA  External Provision Residential,"23,836.44"
2614237,WTP PYROTECHNICS,26/11/2012,48203,Marketing,Central Services,Marketing  General,"3,500.00"
2628142,XEROX (UK) LTD,06/12/2012,43030,Photocopying Lease/Maintenance,Chief Executives Department,MFD,"31,567.64"
2621454,YORKSHIRE PURCHASING ORGANISATION,30/11/2012,41101,Catering ProvisionsFood,Environmental Services,Catering,635.95
2622637,YORKSHIRE PURCHASING ORGANISATION,30/11/2012,41101,Catering ProvisionsFood,Environmental Services,Catering,605.72
2622684,YORKSHIRE PURCHASING ORGANISATION,30/11/2012,41101,Catering ProvisionsFood,Environmental Services,Community Meals,654.44
2621546,YORKSHIRE PURCHASING ORGANISATION,30/11/2012,41101,Catering ProvisionsFood,Environmental Services,Community Meals,625.65
2622559,YORKSHIRE PURCHASING ORGANISATION,30/11/2012,41101,Catering ProvisionsFood,Environmental Services,Catering,568.51
2622586,YORKSHIRE PURCHASING ORGANISATION,30/11/2012,41101,Catering ProvisionsFood,Environmental Services,Catering,703.13
2622600,YORKSHIRE PURCHASING ORGANISATION,30/11/2012,41101,Catering ProvisionsFood,Environmental Services,Catering,777.56
2622627,YORKSHIRE PURCHASING ORGANISATION,30/11/2012,41101,Catering ProvisionsFood,Environmental Services,Catering,764.30
2621492,YORKSHIRE PURCHASING ORGANISATION,30/11/2012,41101,Catering ProvisionsFood,Environmental Services,Catering,570.76
2622799,YORKSHIRE PURCHASING ORGANISATION,30/11/2012,41101,Catering ProvisionsFood,Adult Services,LD Provider  ShortTerm Breaks,749.39
2608992,YORKSHIRE PURCHASING ORGANISATION,30/11/2012,41101,Catering ProvisionsFood,Environmental Services,Catering,840.45
2622675,YORKSHIRE PURCHASING ORGANISATION,30/11/2012,41101,Catering ProvisionsFood,Adult Services,OA  Darley Court Intermediate Care,582.53
2609023,YORKSHIRE PURCHASING ORGANISATION,30/11/2012,41101,Catering ProvisionsFood,Adult Services,OA  Darley Court Intermediate Care,544.15
2608982,YORKSHIRE PURCHASING ORGANISATION,30/11/2012,41101,Catering ProvisionsFood,Environmental Services,Catering,646.99
2609005,YORKSHIRE PURCHASING ORGANISATION,30/11/2012,41101,Catering ProvisionsFood,Environmental Services,Catering,512.95
2621441,YORKSHIRE PURCHASING ORGANISATION,30/11/2012,41101,Catering ProvisionsFood,Environmental Services,Catering,594.83
2609001,YORKSHIRE PURCHASING ORGANISATION,30/11/2012,41101,Catering ProvisionsFood,Environmental Services,Catering,618.12
2608953,YORKSHIRE PURCHASING ORGANISATION,30/11/2012,41101,Catering ProvisionsFood,Environmental Services,Catering,643.57
2608939,YORKSHIRE PURCHASING ORGANISATION,30/11/2012,41101,Catering ProvisionsFood,Environmental Services,Catering,758.94
2621415,YORKSHIRE PURCHASING ORGANISATION,30/11/2012,41101,Catering ProvisionsFood,Environmental Services,Catering,577.24
2621483,YORKSHIRE PURCHASING ORGANISATION,30/11/2012,41101,Catering ProvisionsFood,Environmental Services,Catering,704.88
2621525,YORKSHIRE PURCHASING ORGANISATION,30/11/2012,41101,Catering ProvisionsFood,Adult Services,OA  Firwood  Residential,561.20
2613171,YOTTA DCL,15/11/2012,20501,Engineering Work,Environmental Services,Insurance,"6,650.00"
